Workbook

Sheet Select an authority
A1: 7
A2: Selecting an Authority and its Standard Comparator Authorities
A3: PLEASE REMEMBER TO 'ENABLE MACROS' - | E3: Please select a Local Authority:
A4: THEY MAY HAVE BEEN DISABLED.
A5: Last updated: 23/05/2023
A6: Child Protection publications can be found at:
A7: Children's Social Work Statistics
A8: To help comparisons between local authorities, we have used the comparators as calculated by HMIE in 2003.
A9: These were determined by comparing a number of statistical measures between education authorities, such as unemployment rates, looked after children rates, % owner-occupied properties etc. In order to determine the weight that can be given to comparisons between the local authority and its group, a star rating was introduced which indicates the ‘closeness’ of a particular authority to each member; five stars indicating extremely close and one star indicating not close:
A10: ***** | B10: Extremely Close
A11: **** | B11: Very Close
A12: *** | B12: Close
A13: ** | B13: Somewhat Close
A14: * | B14: Not close
A16: =OFFSET('REF EA Name'!B35,'Select an authority'!A1,0) -> 0
A18: Comparators | B18: Rating
A19: =OFFSET('REF CAS2'!$C$1,'Select an authority'!$A$1,0) -> Angus | B19: =OFFSET('REF CAS2'!$D$1,'Select an authority'!$A$1,0) -> *****
A20: =OFFSET('REF CAS2'!$E$1,'Select an authority'!$A$1,0) -> Highland | B20: =OFFSET('REF CAS2'!$F$1,'Select an authority'!$A$1,0) -> ****
A21: =OFFSET('REF CAS2'!$G$1,'Select an authority'!$A$1,0) -> Argyll and Bute | B21: =OFFSET('REF CAS2'!$H$1,'Select an authority'!$A$1,0) -> ****
A22: =OFFSET('REF CAS2'!$I$1,'Select an authority'!$A$1,0) -> Scottish Borders | B22: =OFFSET('REF CAS2'!$J$1,'Select an authority'!$A$1,0) -> ****
A23: =OFFSET('REF CAS2'!$K$1,'Select an authority'!$A$1,0) -> Moray | B23: =OFFSET('REF CAS2'!$L$1,'Select an authority'!$A$1,0) -> ****
A24: Note: Caution should be exercised when making comparisons with comparator authority averages if there are a number of authorities that are not extremely or very close.

Sheet CP conferences
A1: ='DATA CP CON'!A1 -> Child Protection: Case conferences: 31 July 2016-2022
B2: select comparators:
A3: =M3 -> 3 | B3: =J3 -> 0 | M3: =VLOOKUP('Select an authority'!$A$1,'REF CAs'!$A$1:$F$32,2,0) -> 3
A4: =M4 -> 16 | B4: 33 | M4: =VLOOKUP('Select an authority'!$A$1,'REF CAs'!$A$1:$F$32,3,0) -> 16
A5: =M5 -> 4 | B5: 33 | M5: =VLOOKUP('Select an authority'!$A$1,'REF CAs'!$A$1:$F$32,4,0) -> 4
A6: 10 | B6: 33 | M6: =VLOOKUP('Select an authority'!$A$1,'REF CAs'!$A$1:$F$32,5,0) -> 26
A7: =M7 -> 19 | B7: 33 | M7: =VLOOKUP('Select an authority'!$A$1,'REF CAs'!$A$1:$F$32,6,0) -> 19
A8: =M8 -> 0
A15: =IF(Z21="*","[text statement not available due to suppression of data for confidentiality]",IF(Y21="","[text statement not available due to suppression of data for confidentiality]","* The number of referrals resulted in a case conference in "&A21&" in "&Z19&" was "&ROUND(Z21,0)&" ("&Y44&ROUND((SQRT((Y21*100)^2)),1)&"% from "&ROUND(V21,0)&" in "&V19&")")) -> * The number of referrals resulted in a case conference in Dumfries & Galloway in 2022 was 90 (a decrease of 3.2% from 93 in 2021)
A16: =IF(Y30="","[text statement not available due to suppression of data for confidentiality]","* The comparator authorities show "&Y46&ROUND(SQRT((Y30*100)^2),1)&"%, while the Scotland figures show "&Y47&ROUND(SQRT((100*Y32)^2),1)&"%") -> * The comparator authorities show a decrease of 2.8%, while the Scotland figures show a decrease of 8.8%
A17: =IF(AB21="*","[text statement not available due to suppression of data for confidentiality]",IF(AB30="*","[text statement not available due to suppression of data for confidentiality]","* The rate (per 1,000 pop 0-15) is "&ROUND(AB21,1)&". This is "&AC40&" the comparator average rate of "&ROUND(AB30,1)&", and "&AC41&" the Scotland average rate of "&ROUND(AB32,1))) -> * The rate (per 1,000 pop 0-15) is 3.9. This is similar to the comparator average rate of 4, and less than the Scotland average rate of 4.5
B19: ='DATA CP CON'!B3 -> 2016 | C19: ='DATA CP CON'!C3 -> 2017 | D19: 2016 | E19: 2016 | F19: ='DATA CP CON'!C3 -> 2017 | H19: 2017 | I19: 2017 | J19: ='DATA CP CON'!D3 -> 2018 | L19: 2018 | M19: 2018 | N19: 2019 | P19: 2019 | Q19: 2019 | R19: 2020 | T19: 2020 | U19: 2020 | V19: 2021 | X19: 2021 | Y19: 2021 | Z19: 2022 | AB19: 2022 | AC19: 2022
B20: Number | C20: population 0-17 (2001) | D20: Rate | E20: % change | F20: Number | G20: population 0-17 (2001) | H20: Rate | I20: % change | J20: Number | K20: population 0-17 (2001) | L20: Rate | M20: % change | N20: Number | O20: population 0-17 (2001) | P20: Rate | Q20: % change | R20: Number | S20: population 0-17 (2001) | T20: Rate | U20: % change | V20: Number | W20: population 0-17 (2001) | X20: Rate | Y20: % change | Z20: Number | AA20: population 0-17 (2001) | AB20: Rate | AC20: Quartile
A21: =OFFSET('REF EA Name'!$B$2,'Select an authority'!$A$1,0) -> Dumfries & Galloway | B21: =OFFSET('DATA CP CON'!$B$3,'Select an authority'!$A$1,0) -> 149 | D21: =IF(B21="*","*",OFFSET('DATA CP CON'!$S$3,'Select an authority'!$A$1,0)) -> 6.309816211 | E21: =IF(B21=0,"",IF(B21="*","",IF(F21="*","",F21/B21-1))) -> 0.5234899329 | F21: =OFFSET('DATA CP CON'!$C$3,'Select an authority'!$A$1,0) -> 227 | H21: =IF(F21="*","",OFFSET('DATA CP CON'!$T$3,'Select an authority'!$A$1,0)) -> 9.66492102 | I21: =IF(F21=0,"",IF(F21="*","",IF(J21="*","",J21/F21-1))) -> 0.2511013216 | J21: =OFFSET('DATA CP CON'!$D$3,'Select an authority'!$A$1,0) -> 284 | L21: =IF(J21="*","",OFFSET('DATA CP CON'!$U$3,'Select an authority'!$A$1,0)) -> 12.12431694 | M21: =IF(J21=0,"",IF(J21="*","",IF(N21="*","",N21/J21-1))) -> -0.264084507 | N21: =OFFSET('DATA CP CON'!$E$3,'Select an authority'!$A$1,0) -> 209 | P21: =IF(N21="*","",OFFSET('DATA CP CON'!$V$3,'Select an authority'!$A$1,0)) -> 8.991954567 | Q21: =IF(N21=0,"",IF(N21="*","",IF(R21="*","",R21/N21-1))) -> -0.6698564593 | R21: =OFFSET('DATA CP CON'!$F$3,'Select an authority'!$A$1,0) -> 69 | T21: =IF(R21="*","",OFFSET('DATA CP CON'!$W$3,'Select an authority'!$A$1,0)) -> 2.993492408 | U21: =IF(R21=0,"",IF(R21="*","",IF(V21="*","",V21/R21-1))) -> 0.347826087 | V21: =OFFSET('DATA CP CON'!$G$3,'Select an authority'!$A$1,0) -> 93 | X21: =IF(V21="*","",OFFSET('DATA CP CON'!$X$3,'Select an authority'!$A$1,0)) -> 4.064330041 | Y21: =IF(V21=0,"",IF(V21="*","",IF(Z21="*","",Z21/V21-1))) -> -0.03225806452 | Z21: =OFFSET('DATA CP CON'!$H$3,'Select an authority'!$A$1,0) -> 90 | AB21: =IF(Z21="*","",OFFSET('DATA CP CON'!$Y$3,'Select an authority'!$A$1,0)) -> 3.93322262 | AC21: =IF(RANK(AB21,'DATA CP CON'!$Y$4:$Y$35)<9,1,IF(RANK(AB21,'DATA CP CON'!$Y$4:$Y$35)<17,2,IF(RANK(AB21,'DATA CP CON'!$Y$4:$Y$35)<25,3,4))) -> 3
A23: Comparator Authorities:
A24: =OFFSET('REF EA Name'!$B$2, A3,0) -> Angus | B24: =IF(A3<33,OFFSET('DATA CP CON'!$B$3,A3,0),"") -> 181 | C24: =OFFSET('DATA CP CON'!$J$3,A3,0) -> 19445 | D24: =IF($A3=33,"",IF(B24="*","",B24*1000/C24)) -> 9.308305477 | E24: =IF($A3=33,"",IF(B24="*","",IF(F24="*","",F24/B24-1))) -> -0.05524861878 | F24: =IF(A3<33,OFFSET('DATA CP CON'!$C$3,A3,0),"") -> 171 | G24: =OFFSET('DATA CP CON'!$K$3,A3,0) -> 19288 | H24: =IF($A3=33,"",IF(F24="*","",F24*1000/G24)) -> 8.865615927 | I24: =IF($A3=33,"",IF(F24="*","",IF(J24="*","",J24/F24-1))) -> 0.1812865497 | J24: =IF(A3<33,OFFSET('DATA CP CON'!$D$3,A3,0),"") -> 202 | K24: =OFFSET('DATA CP CON'!$L$3,A3,0) -> 19253 | L24: =IF($A3=33,"",IF(J24="*","",J24*1000/K24)) -> 10.4918714 | M24: =IF($A3=33,"",IF(J24="*","",IF(N24="*","",N24/J24-1))) -> -0.2920792079 | N24: =IF(A3<33,OFFSET('DATA CP CON'!$E$3,A3,0),"") -> 143 | O24: =OFFSET('DATA CP CON'!$M$3,A3,0) -> 19145 | P24: =IF($A3=33,"",IF(N24="*","",N24*1000/O24)) -> 7.469313137 | Q24: =IF($A3=33,"",IF(N24="*","",IF(R24="*","",R24/N24-1))) -> -0.09090909091 | R24: =IF(A3<33,OFFSET('DATA CP CON'!$F$3,A3,0),"") -> 130 | S24: =OFFSET('DATA CP CON'!$N$3,A3,0) -> 18908 | T24: =IF($A3=33,"",IF(R24="*","",R24*1000/S24)) -> 6.875396657 | U24: =IF($A3=33,"",IF(R24="*","",IF(V24="*","",V24/R24-1))) -> -0.1461538462 | V24: =IF(A3<33,OFFSET('DATA CP CON'!$G$3,A3,0),"") -> 111 | W24: =OFFSET('DATA CP CON'!$O$3,A3,0) -> 18639 | X24: =IF($A3=33,"",IF(V24="*","",V24*1000/W24)) -> 5.95525511 | Y24: =IF($A3=33,"",IF(V24="*","",IF(Z24="*","",Z24/V24-1))) -> -0.1171171171 | Z24: =IF(A3<33,OFFSET('DATA CP CON'!$H$3,A3,0),"") -> 98 | AA24: =OFFSET('DATA CP CON'!$P$3,A3,0) -> 18639 | AB24: =IF($A3=33,"",IF(Z24="*","",Z24*1000/AA24)) -> 5.2577928 | AC24: =IF(A3<33,IF(RANK(AB24,'DATA CP CON'!$Y$4:$Y$35)<9,1,IF(RANK(AB24,'DATA CP CON'!$Y$4:$Y$35)<17,2,IF(RANK(AB24,'DATA CP CON'!$Y$4:$Y$35)<25,3,4))),"") -> 2
A25: =OFFSET('REF EA Name'!$B$2,A4,0) -> Highland | B25: =IF(A4<33,OFFSET('DATA CP CON'!$B$3,A4,0),"") -> 194 | C25: =OFFSET('DATA CP CON'!$J$3,A4,0) -> 39972 | D25: =IF($A4=33,"",IF(B25="*","",B25*1000/C25)) -> 4.853397378 | E25: =IF($A4=33,"",IF(B25="*","",IF(F25="*","",F25/B25-1))) -> -0.1597938144 | F25: =IF(A4<33,OFFSET('DATA CP CON'!$C$3,A4,0),"") -> 163 | G25: =OFFSET('DATA CP CON'!$K$3,A4,0) -> 39555 | H25: =IF($A4=33,"",IF(F25="*","",F25*1000/G25)) -> 4.120844394 | I25: =IF($A4=33,"",IF(F25="*","",IF(J25="*","",J25/F25-1))) -> 0.0736196319 | J25: =IF(A4<33,OFFSET('DATA CP CON'!$D$3,A4,0),"") -> 175 | K25: =OFFSET('DATA CP CON'!$L$3,A4,0) -> 39335 | L25: =IF($A4=33,"",IF(J25="*","",J25*1000/K25)) -> 4.448964027 | M25: =IF($A4=33,"",IF(J25="*","",IF(N25="*","",N25/J25-1))) -> 0.01142857143 | N25: =IF(A4<33,OFFSET('DATA CP CON'!$E$3,A4,0),"") -> 177 | O25: =OFFSET('DATA CP CON'!$M$3,A4,0) -> 39036 | P25: =IF($A4=33,"",IF(N25="*","",N25*1000/O25)) -> 4.534276053 | Q25: =IF($A4=33,"",IF(N25="*","",IF(R25="*","",R25/N25-1))) -> -0.01129943503 | R25: =IF(A4<33,OFFSET('DATA CP CON'!$F$3,A4,0),"") -> 175 | S25: =OFFSET('DATA CP CON'!$N$3,A4,0) -> 38490 | T25: =IF($A4=33,"",IF(R25="*","",R25*1000/S25)) -> 4.54663549 | U25: =IF($A4=33,"",IF(R25="*","",IF(V25="*","",V25/R25-1))) -> -0.2914285714 | V25: =IF(A4<33,OFFSET('DATA CP CON'!$G$3,A4,0),"") -> 124 | W25: =OFFSET('DATA CP CON'!$O$3,A4,0) -> 38130 | X25: =IF($A4=33,"",IF(V25="*","",V25*1000/W25)) -> 3.25203252 | Y25: =IF($A4=33,"",IF(V25="*","",IF(Z25="*","",Z25/V25-1))) -> 0.1290322581 | Z25: =IF(A4<33,OFFSET('DATA CP CON'!$H$3,A4,0),"") -> 140 | AA25: =OFFSET('DATA CP CON'!$P$3,A4,0) -> 38130 | AB25: =IF($A4=33,"",IF(Z25="*","",Z25*1000/AA25)) -> 3.67164962 | AC25: =IF(A4<33,IF(RANK(AB25,'DATA CP CON'!$Y$4:$Y$35)<9,1,IF(RANK(AB25,'DATA CP CON'!$Y$4:$Y$35)<17,2,IF(RANK(AB25,'DATA CP CON'!$Y$4:$Y$35)<25,3,4))),"") -> 4
A26: =OFFSET('REF EA Name'!$B$2,A5,0) -> Argyll & Bute | B26: =IF(A5<33,OFFSET('DATA CP CON'!$B$3,A5,0),"") -> 73 | C26: =OFFSET('DATA CP CON'!$J$3,A5,0) -> 13238 | D26: =IF($A5=33,"",IF(B26="*","",B26*1000/C26)) -> 5.514428161 | E26: =IF($A5=33,"",IF(B26="*","",IF(F26="*","",F26/B26-1))) -> 0.2602739726 | F26: =IF(A5<33,OFFSET('DATA CP CON'!$C$3,A5,0),"") -> 92 | G26: =OFFSET('DATA CP CON'!$K$3,A5,0) -> 13163 | H26: =IF($A5=33,"",IF(F26="*","",F26*1000/G26)) -> 6.989288156 | I26: =IF($A5=33,"",IF(F26="*","",IF(J26="*","",J26/F26-1))) -> -0.1304347826 | J26: =IF(A5<33,OFFSET('DATA CP CON'!$D$3,A5,0),"") -> 80 | K26: =OFFSET('DATA CP CON'!$L$3,A5,0) -> 13024 | L26: =IF($A5=33,"",IF(J26="*","",J26*1000/K26)) -> 6.142506143 | M26: =IF($A5=33,"",IF(J26="*","",IF(N26="*","",N26/J26-1))) -> -0.15 | N26: =IF(A5<33,OFFSET('DATA CP CON'!$E$3,A5,0),"") -> 68 | O26: =OFFSET('DATA CP CON'!$M$3,A5,0) -> 12906 | P26: =IF($A5=33,"",IF(N26="*","",N26*1000/O26)) -> 5.268867194 | Q26: =IF($A5=33,"",IF(N26="*","",IF(R26="*","",R26/N26-1))) -> 0.1029411765 | R26: =IF(A5<33,OFFSET('DATA CP CON'!$F$3,A5,0),"") -> 75 | S26: =OFFSET('DATA CP CON'!$N$3,A5,0) -> 12577 | T26: =IF($A5=33,"",IF(R26="*","",R26*1000/S26)) -> 5.96326628 | U26: =IF($A5=33,"",IF(R26="*","",IF(V26="*","",V26/R26-1))) -> -0.28 | V26: =IF(A5<33,OFFSET('DATA CP CON'!$G$3,A5,0),"") -> 54 | W26: =OFFSET('DATA CP CON'!$O$3,A5,0) -> 12441 | X26: =IF($A5=33,"",IF(V26="*","",V26*1000/W26)) -> 4.340487099 | Y26: =IF($A5=33,"",IF(V26="*","",IF(Z26="*","",Z26/V26-1))) -> -0.2962962963 | Z26: =IF(A5<33,OFFSET('DATA CP CON'!$H$3,A5,0),"") -> 38 | AA26: =OFFSET('DATA CP CON'!$P$3,A5,0) -> 12441 | AB26: =IF($A5=33,"",IF(Z26="*","",Z26*1000/AA26)) -> 3.054416848 | AC26: =IF(A5<33,IF(RANK(AB26,'DATA CP CON'!$Y$4:$Y$35)<9,1,IF(RANK(AB26,'DATA CP CON'!$Y$4:$Y$35)<17,2,IF(RANK(AB26,'DATA CP CON'!$Y$4:$Y$35)<25,3,4))),"") -> 4
A27: =OFFSET('REF EA Name'!$B$2,A6,0) -> East Dunbartonshire | B27: =IF(A6<33,OFFSET('DATA CP CON'!$B$3,A6,0),"") -> 91 | C27: =OFFSET('DATA CP CON'!$J$3,A6,0) -> 18810 | D27: =IF($A6=33,"",IF(B27="*","",B27*1000/C27)) -> 4.837852206 | E27: =IF($A6=33,"",IF(B27="*","",IF(F27="*","",F27/B27-1))) -> -0.03296703297 | F27: =IF(A6<33,OFFSET('DATA CP CON'!$C$3,A6,0),"") -> 88 | G27: =OFFSET('DATA CP CON'!$K$3,A6,0) -> 19061 | H27: =IF($A6=33,"",IF(F27="*","",F27*1000/G27)) -> 4.616756728 | I27: =IF($A6=33,"",IF(F27="*","",IF(J27="*","",J27/F27-1))) -> 0.3181818182 | J27: =IF(A6<33,OFFSET('DATA CP CON'!$D$3,A6,0),"") -> 116 | K27: =OFFSET('DATA CP CON'!$L$3,A6,0) -> 19224 | L27: =IF($A6=33,"",IF(J27="*","",J27*1000/K27)) -> 6.034124012 | M27: =IF($A6=33,"",IF(J27="*","",IF(N27="*","",N27/J27-1))) -> -0.1120689655 | N27: =IF(A6<33,OFFSET('DATA CP CON'!$E$3,A6,0),"") -> 103 | O27: =OFFSET('DATA CP CON'!$M$3,A6,0) -> 19398 | P27: =IF($A6=33,"",IF(N27="*","",N27*1000/O27)) -> 5.309825755 | Q27: =IF($A6=33,"",IF(N27="*","",IF(R27="*","",R27/N27-1))) -> -0.1553398058 | R27: =IF(A6<33,OFFSET('DATA CP CON'!$F$3,A6,0),"") -> 87 | S27: =OFFSET('DATA CP CON'!$N$3,A6,0) -> 19500 | T27: =IF($A6=33,"",IF(R27="*","",R27*1000/S27)) -> 4.461538462 | U27: =IF($A6=33,"",IF(R27="*","",IF(V27="*","",V27/R27-1))) -> 0.01149425287 | V27: =IF(A6<33,OFFSET('DATA CP CON'!$G$3,A6,0),"") -> 88 | W27: =OFFSET('DATA CP CON'!$O$3,A6,0) -> 19528 | X27: =IF($A6=33,"",IF(V27="*","",V27*1000/W27)) -> 4.506349857 | Y27: =IF($A6=33,"",IF(V27="*","",IF(Z27="*","",Z27/V27-1))) -> -0.04545454545 | Z27: =IF(A6<33,OFFSET('DATA CP CON'!$H$3,A6,0),"") -> 84 | AA27: =OFFSET('DATA CP CON'!$P$3,A6,0) -> 19528 | AB27: =IF($A6=33,"",IF(Z27="*","",Z27*1000/AA27)) -> 4.301515772 | AC27: =IF(A6<33,IF(RANK(AB27,'DATA CP CON'!$Y$4:$Y$35)<9,1,IF(RANK(AB27,'DATA CP CON'!$Y$4:$Y$35)<17,2,IF(RANK(AB27,'DATA CP CON'!$Y$4:$Y$35)<25,3,4))),"") -> 3
A28: =OFFSET('REF EA Name'!$B$2,A7,0) -> Moray | B28: =IF(A7<33,OFFSET('DATA CP CON'!$B$3,A7,0),"") -> 97 | C28: =OFFSET('DATA CP CON'!$J$3,A7,0) -> 16527 | D28: =IF($A7=33,"",IF(B28="*","",B28*1000/C28)) -> 5.86918376 | E28: =IF($A7=33,"",IF(B28="*","",IF(F28="*","",F28/B28-1))) -> 0.175257732 | F28: =IF(A7<33,OFFSET('DATA CP CON'!$C$3,A7,0),"") -> 114 | G28: =OFFSET('DATA CP CON'!$K$3,A7,0) -> 16362 | H28: =IF($A7=33,"",IF(F28="*","",F28*1000/G28)) -> 6.967363403 | I28: =IF($A7=33,"",IF(F28="*","",IF(J28="*","",J28/F28-1))) -> -0.201754386 | J28: =IF(A7<33,OFFSET('DATA CP CON'!$D$3,A7,0),"") -> 91 | K28: =OFFSET('DATA CP CON'!$L$3,A7,0) -> 16173 | L28: =IF($A7=33,"",IF(J28="*","",J28*1000/K28)) -> 5.62666172 | M28: =IF($A7=33,"",IF(J28="*","",IF(N28="*","",N28/J28-1))) -> 0.2417582418 | N28: =IF(A7<33,OFFSET('DATA CP CON'!$E$3,A7,0),"") -> 113 | O28: =OFFSET('DATA CP CON'!$M$3,A7,0) -> 16145 | P28: =IF($A7=33,"",IF(N28="*","",N28*1000/O28)) -> 6.99907092 | Q28: =IF($A7=33,"",IF(N28="*","",IF(R28="*","",R28/N28-1))) -> -0.5575221239 | R28: =IF(A7<33,OFFSET('DATA CP CON'!$F$3,A7,0),"") -> 50 | S28: =OFFSET('DATA CP CON'!$N$3,A7,0) -> 16037 | T28: =IF($A7=33,"",IF(R28="*","",R28*1000/S28)) -> 3.11779011 | U28: =IF($A7=33,"",IF(R28="*","",IF(V28="*","",V28/R28-1))) -> 0.1 | V28: =IF(A7<33,OFFSET('DATA CP CON'!$G$3,A7,0),"") -> 55 | W28: =OFFSET('DATA CP CON'!$O$3,A7,0) -> 15941 | X28: =IF($A7=33,"",IF(V28="*","",V28*1000/W28)) -> 3.450222696 | Y28: =IF($A7=33,"",IF(V28="*","",IF(Z28="*","",Z28/V28-1))) -> 0.09090909091 | Z28: =IF(A7<33,OFFSET('DATA CP CON'!$H$3,A7,0),"") -> 60 | AA28: =OFFSET('DATA CP CON'!$P$3,A7,0) -> 15941 | AB28: =IF($A7=33,"",IF(Z28="*","",Z28*1000/AA28)) -> 3.763879305 | AC28: =IF(A7<33,IF(RANK(AB28,'DATA CP CON'!$Y$4:$Y$35)<9,1,IF(RANK(AB28,'DATA CP CON'!$Y$4:$Y$35)<17,2,IF(RANK(AB28,'DATA CP CON'!$Y$4:$Y$35)<25,3,4))),"") -> 3
A30: Comparator authorities | B30: =SUM(B24:B28) -> 636 | C30: =SUM(C24:C28) -> 107992 | D30: =B30*1000/C30 -> 5.889325135 | E30: =IF(B30=0,"",SUM(F24:F28)/SUM(B24:B28)-1) -> -0.01257861635 | F30: =SUM(F24:F28) -> 628 | G30: =SUM(G24:G28) -> 107429 | H30: =SUM(F24:F28)/SUM(G24:G28)*1000 -> 5.84572136 | I30: =IF(F30=0,"",SUM(J24:J28)/SUM(F24:F28)-1) -> 0.05732484076 | J30: =SUM(J24:J28) -> 664 | K30: =SUM(K24:K28) -> 107009 | L30: =SUM(J24:J28)/SUM(K24:K28)*1000 -> 6.205085554 | M30: =IF(J30=0,"",SUM(N24:N28)/SUM(J24:J28)-1) -> -0.09036144578 | N30: =SUM(N24:N28) -> 604 | O30: =SUM(O24:O28) -> 106630 | P30: =SUM(N24:N28)/SUM(O24:O28)*1000 -> 5.664447154 | Q30: =IF(N30=0,"",SUM(R24:R28)/SUM(N24:N28)-1) -> -0.1440397351 | R30: =SUM(R24:R28) -> 517 | S30: =SUM(S24:S28) -> 105512 | T30: =SUM(R24:R28)/SUM(S24:S28)*1000 -> 4.899916597 | U30: =IF(R30=0,"",SUM(V24:V28)/SUM(R24:R28)-1) -> -0.164410058 | V30: =SUM(V24:V28) -> 432 | W30: =SUM(W24:W28) -> 104679 | X30: =SUM(V24:V28)/SUM(W24:W28)*1000 -> 4.126902244 | Y30: =IF(V30=0,"",SUM(Z24:Z28)/SUM(V24:V28)-1) -> -0.02777777778 | Z30: =SUM(Z24:Z28) -> 420 | AA30: =SUM(AA24:AA28) -> 104679 | AB30: =SUM(Z24:Z28)/SUM(AA24:AA28)*1000 -> 4.012266071
A32: Scotland [Note 1],[Note2] | B32: ='DATA CP CON'!B36 -> 5707 | C32: ='DATA CP CON'!J36 -> 915917 | D32: =B32*1000/C32 -> 6.230913937 | E32: =IF(B32=0,"",F32/B32-1) -> -0.009462064132 | F32: ='DATA CP CON'!C36 -> 5653 | G32: ='DATA CP CON'!K36 -> 917442 | H32: =F32*1000/G32 -> 6.161697415 | I32: =IF(F32=0,"",J32/F32-1) -> 0.0003537944454 | J32: ='DATA CP CON'!D36 -> 5655 | K32: ='DATA CP CON'!L36 -> 919502 | L32: =J32*1000/K32 -> 6.150068189 | M32: =IF(J32=0,"",N32/J32-1) -> -0.02245800177 | N32: ='DATA CP CON'!E36 -> 5528 | O32: ='DATA CP CON'!$M$36 -> 921397 | P32: =N32*1000/O32 -> 5.999585412 | Q32: =IF(N32=0,"",R32/N32-1) -> -0.07742402315 | R32: ='DATA CP CON'!F36 -> 5100 | S32: ='DATA CP CON'!$N$36 -> 916783 | T32: =R32*1000/S32 -> 5.562930377 | U32: =IF(R32=0,"",V32/R32-1) -> -0.1105882353 | V32: ='DATA CP CON'!G36 -> 4536 | W32: ='DATA CP CON'!$O$36 -> 911522 | X32: =V32*1000/W32 -> 4.976292399 | Y32: =IF(V32=0,"",Z32/V32-1) -> -0.08840388007 | Z32: ='DATA CP CON'!H36 -> 4135 | AA32: ='DATA CP CON'!P36 -> 911522 | AB32: =Z32*1000/AA32 -> 4.536368842
A34: Notes
A35: [Note 1] | B35: =IF('DATA CP CON'!A38="","",'DATA CP CON'!A38) -> Figures for 2022 are provisional and may be revised with the publication of 2023 statistics.
A36: [Note 2] | B36: =IF('DATA CP CON'!A39="","",'DATA CP CON'!A39) -> Population figures source: NRS mid-year population estimates for 2016-2021
A37: [Note 3] | B37: =IF('DATA CP CON'!A40="","",'DATA CP CON'!A40) -> Source: Scottish Government CP Returns
U40: =U21-U30 -> 0.512236145 | X40: =X21-X30 -> -0.06257220292 | Y40: =Y21-Y30 -> -0.004480286738 | AB40: =AB21-AB30 -> -0.07904345016 | AC40: =IF(AB40<-0.5,"less than",IF(AB40>0.5,"greater than","similar to")) -> similar to
U41: =U21-U32 -> 0.4584143223 | X41: =X21-X32 -> -0.9119623578 | Y41: =Y22-Y32 -> 0.08840388007 | AB41: =AB21-AB32 -> -0.603146222 | AC41: =IF(AB41<-0.5,"less than",IF(AB41>0.5,"greater than","similar to")) -> less than
U43: =V21-R21 -> 24 | Y43: =Z21-V21 -> -3
U44: =IF(U43<0,"a decrease of ",IF(U43>=0,"an increase of ")) -> an increase of | Y44: =IF(Y43<0,"a decrease of ",IF(Y43>=0,"an increase of ")) -> a decrease of
U46: =IF(U30<0,"a decrease of ",IF(U30>=0,"an increase of ")) -> a decrease of | Y46: =IF(Y30<0,"a decrease of ",IF(Y30>=0,"an increase of ")) -> a decrease of
U47: =IF(U32<0,"a decrease of ",IF(U32>=0,"an increase of ")) -> a decrease of | Y47: =IF(Y32<0,"a decrease of ",IF(Y32>=0,"an increase of ")) -> a decrease of

Sheet CP registrations
A1: ='DATA CP REG'!A1 -> Child Protection: Registrations: 31 July 2016-2022
B2: select comparators:
A3: =J3 -> 3 | J3: =VLOOKUP('Select an authority'!$A$1,'REF CAs'!$A$1:$F$32,2,0) -> 3
A4: =J4 -> 16 | J4: =VLOOKUP('Select an authority'!$A$1,'REF CAs'!$A$1:$F$32,3,0) -> 16
A5: =J5 -> 4 | J5: =VLOOKUP('Select an authority'!$A$1,'REF CAs'!$A$1:$F$32,4,0) -> 4
A6: =J6 -> 26 | J6: =VLOOKUP('Select an authority'!$A$1,'REF CAs'!$A$1:$F$32,5,0) -> 26
A7: =J7 -> 19 | J7: =VLOOKUP('Select an authority'!$A$1,'REF CAs'!$A$1:$F$32,6,0) -> 19
A15: =IF(Z21="*","[text statement not available due to suppression of data for confidentiality]",IF(Y21="","[text statement not available due to suppression of data for confidentiality]","* The number of registrations following a case conference in "&A21&" in "&Z19&" was "&ROUND(Z21,0)&" ("&Y44&ROUND((SQRT((Y21*100)^2)),1)&"% from "&ROUND(V21,0)&" in "&V19&")")) -> * The number of registrations following a case conference in Dumfries & Galloway in 2022 was 79 (an increase of 29.5% from 61 in 2021)
A16: =IF(Y30="","[text statement not available due to suppression of data for confidentiality]","* The comparator authorities show "&Y46&ROUND(SQRT((Y30*100)^2),1)&"%, while the Scotland figures show "&Y47&ROUND(SQRT((100*Y32)^2),1)&"%") -> * The comparator authorities show an increase of 4.8%, while the Scotland figures show a decrease of 5%
A17: =IF(AB21="*","[text statement not available due to suppression of data for confidentiality]",IF(AB30="*","[text statement not available due to suppression of data for confidentiality]","* The rate (per 1,000 pop 0-15) is "&ROUND(AB21,1)&". This is "&AC40&" the comparator average rate of "&ROUND(AB30,1)&", and "&AC41&" the Scotland average rate of "&ROUND(AB32,1))) -> * The rate (per 1,000 pop 0-15) is 3.5. This is similar to the comparator average rate of 3.6, and similar to the Scotland average rate of 3.6
B19: ='DATA CP REG'!B3 -> 2016 | D19: 2016 | E19: 2016 | F19: ='DATA CP REG'!C3 -> 2017 | H19: 2017 | I19: 2017 | J19: ='DATA CP REG'!D3 -> 2018 | L19: 2018 | M19: 2018 | N19: ='DATA CP REG'!E3 -> 2019 | P19: 2019 | Q19: 2019 | R19: ='DATA CP REG'!F3 -> 2020 | T19: 2020 | U19: 2020 | V19: ='DATA CP REG'!G3 -> 2021 | X19: 2021 | Y19: 2021 | Z19: ='DATA CP REG'!H3 -> 2022 | AB19: 2022 | AC19: 2022
B20: Number | C20: ='DATA CP REG'!#REF! ->  | D20: Rate | E20: % change | F20: Number | G20: ='DATA CP REG'!#REF! ->  | H20: Rate | I20: % change | J20: Number | K20: ='DATA CP REG'!#REF! ->  | L20: Rate | M20: % change | N20: Number | O20: ='DATA CP REG'!#REF! ->  | P20: Rate | Q20: % change | R20: Number | S20: ='DATA CP REG'!#REF! ->  | T20: Rate | U20: % change | V20: Number | W20: ='DATA CP REG'!#REF! ->  | X20: Rate | Y20: % change | Z20: Number | AA20: ='DATA CP REG'!#REF! ->  | AB20: Rate | AC20: Quartile
A21: =OFFSET('REF EA Name'!$B$2,'Select an authority'!$A$1,0) -> Dumfries & Galloway | B21: =OFFSET('DATA CP REG'!$B$3,'Select an authority'!$A$1,0) -> 109 | D21: =OFFSET('DATA CP REG'!$S$3,'Select an authority'!$A$1,0) -> 4.615905819 | E21: =IF(B21=0,"",F21/B21-1) -> 0.4311926606 | F21: =OFFSET('DATA CP REG'!$C$3,'Select an authority'!$A$1,0) -> 156 | H21: =OFFSET('DATA CP REG'!$T$3,'Select an authority'!$A$1,0) -> 6.641972155 | I21: =IF(F21=0,"",J21/F21-1) -> 0.2243589744 | J21: =OFFSET('DATA CP REG'!$D$3,'Select an authority'!$A$1,0) -> 191 | L21: =OFFSET('DATA CP REG'!$U$3,'Select an authority'!$A$1,0) -> 8.154030055 | M21: =IF(J21=0,"",N21/J21-1) -> -0.2565445026 | N21: =OFFSET('DATA CP REG'!$E$3,'Select an authority'!$A$1,0) -> 142 | P21: =OFFSET('DATA CP REG'!$V$3,'Select an authority'!$A$1,0) -> 6.109366261 | Q21: =IF(N21=0,"",R21/N21-1) -> -0.7042253521 | R21: =OFFSET('DATA CP REG'!$F$3,'Select an authority'!$A$1,0) -> 42 | T21: =OFFSET('DATA CP REG'!$W$3,'Select an authority'!$A$1,0) -> 1.822125813 | U21: =IF(R21=0,"",V21/R21-1) -> 0.4523809524 | V21: =OFFSET('DATA CP REG'!$G$3,'Select an authority'!$A$1,0) -> 61 | X21: =OFFSET('DATA CP REG'!$X$3,'Select an authority'!$A$1,0) -> 2.665850887 | Y21: =IF(V21=0,"",Z21/V21-1) -> 0.2950819672 | Z21: =OFFSET('DATA CP REG'!$H$3,'Select an authority'!$A$1,0) -> 79 | AB21: =OFFSET('DATA CP REG'!$Y$3,'Select an authority'!$A$1,0) -> 3.452495411 | AC21: =IF(AB21="*","",IF(RANK(AB21,'DATA CP REG'!$Y$4:$Y$35)<9,1,IF(RANK(AB21,'DATA CP REG'!$Y$4:$Y$35)<17,2,IF(RANK(AB21,'DATA CP REG'!$Y$4:$Y$35)<25,3,4)))) -> 3
A23: Comparator Authorities:
A24: =OFFSET('REF EA Name'!$B$2, A3,0) -> Angus | B24: =IF(A3<33,OFFSET('DATA CP REG'!$B$3,$A3,0)," ") -> 151 | C24: =OFFSET('DATA CP REG'!$J$3,$A3,0) -> 19445 | D24: =IF($A3=33,"",B24*1000/C24) -> 7.765492415 | E24: =IF($A3=33,"",IF(B24=0,"",F24/B24-1)) -> -0.1655629139 | F24: =IF(A3<33,OFFSET('DATA CP REG'!$C$3,$A3,0),"") -> 126 | G24: =OFFSET('DATA CP REG'!$K$3,$A3,0) -> 19288 | H24: =IF($A3=33,"",F24*1000/G24) -> 6.532559104 | I24: =IF($A3=33,"",IF(F24=0,"",J24/F24-1)) -> 0.2222222222 | J24: =IF(A3<33,OFFSET('DATA CP REG'!$D$3,$A3,0),"") -> 154 | K24: =OFFSET('DATA CP REG'!$L$3,$A3,0) -> 19253 | L24: =IF($A3=33,"",J24*1000/K24) -> 7.998753441 | M24: =IF($A3=33,"",IF(J24=0,"",N24/J24-1)) -> -0.3636363636 | N24: =IF(A3<33,OFFSET('DATA CP REG'!$E$3,$A3,0),"") -> 98 | O24: =OFFSET('DATA CP REG'!$M$3,$A3,0) -> 19145 | P24: =IF($A3=33,"",N24*1000/O24) -> 5.118829982 | Q24: =IF($A3=33,"",IF(N24=0,"",R24/N24-1)) -> 0.1020408163 | R24: =IF(A3<33,OFFSET('DATA CP REG'!$F$3,$A3,0),"") -> 108 | S24: =OFFSET('DATA CP REG'!$N$3,$A3,0) -> 18908 | T24: =IF($A3=33,"",R24*1000/S24) -> 5.711867992 | U24: =IF($A3=33,"",IF(R24=0,"",V24/R24-1)) -> -0.1203703704 | V24: =IF(A3<33,OFFSET('DATA CP REG'!$G$3,$A3,0),"") -> 95 | W24: =OFFSET('DATA CP REG'!$O$3,$A3,0) -> 18639 | X24: =IF($A3=33,"",V24*1000/W24) -> 5.096839959 | Y24: =IF($A3=33,"",IF(V24=0,"",Z24/V24-1)) -> -0.01052631579 | Z24: =IF(A3<33,OFFSET('DATA CP REG'!$H$3,$A3,0),"") -> 94 | AA24: =OFFSET('DATA CP REG'!$P$3,$A3,0) -> 18639 | AB24: =IF($A3=33,"",Z24*1000/AA24) -> 5.043189012 | AC24: =IF(AB24="*","",IF(A3<33,IF(RANK(AB24,'DATA CP REG'!$Y$4:$Y$35)<9,1,IF(RANK(AB24,'DATA CP REG'!$Y$4:$Y$35)<17,2,IF(RANK(AB24,'DATA CP REG'!$Y$4:$Y$35)<25,3,4))),"")) -> 1
A25: =OFFSET('REF EA Name'!$B$2,A4,0) -> Highland | B25: =IF(A4<33,OFFSET('DATA CP REG'!$B$3,$A4,0),"") -> 168 | C25: =OFFSET('DATA CP REG'!$J$3,$A4,0) -> 39972 | D25: =IF($A4=33,"",B25*1000/C25) -> 4.202942059 | E25: =IF($A4=33,"",IF(B25=0,"",F25/B25-1)) -> -0.1785714286 | F25: =IF(A4<33,OFFSET('DATA CP REG'!$C$3,$A4,0),"") -> 138 | G25: =OFFSET('DATA CP REG'!$K$3,$A4,0) -> 39555 | H25: =IF($A4=33,"",F25*1000/G25) -> 3.488813045 | I25: =IF($A4=33,"",IF(F25=0,"",J25/F25-1)) -> 0.0652173913 | J25: =IF(A4<33,OFFSET('DATA CP REG'!$D$3,$A4,0),"") -> 147 | K25: =OFFSET('DATA CP REG'!$L$3,$A4,0) -> 39335 | L25: =IF($A4=33,"",J25*1000/K25) -> 3.737129783 | M25: =IF($A4=33,"",IF(J25=0,"",N25/J25-1)) -> 0.02721088435 | N25: =IF(A4<33,OFFSET('DATA CP REG'!$E$3,$A4,0),"") -> 151 | O25: =OFFSET('DATA CP REG'!$M$3,$A4,0) -> 39036 | P25: =IF($A4=33,"",N25*1000/O25) -> 3.868224203 | Q25: =IF($A4=33,"",IF(N25=0,"",R25/N25-1)) -> 0.08609271523 | R25: =IF(A4<33,OFFSET('DATA CP REG'!$F$3,$A4,0),"") -> 164 | S25: =OFFSET('DATA CP REG'!$N$3,$A4,0) -> 38490 | T25: =IF($A4=33,"",R25*1000/S25) -> 4.260846973 | U25: =IF($A4=33,"",IF(R25=0,"",V25/R25-1)) -> -0.3597560976 | V25: =IF(A4<33,OFFSET('DATA CP REG'!$G$3,$A4,0),"") -> 105 | W25: =OFFSET('DATA CP REG'!$O$3,$A4,0) -> 38130 | X25: =IF($A4=33,"",V25*1000/W25) -> 2.753737215 | Y25: =IF($A4=33,"",IF(V25=0,"",Z25/V25-1)) -> 0.2952380952 | Z25: =IF(A4<33,OFFSET('DATA CP REG'!$H$3,$A4,0),"") -> 136 | AA25: =OFFSET('DATA CP REG'!$P$3,$A4,0) -> 38130 | AB25: =IF($A4=33,"",Z25*1000/AA25) -> 3.566745345 | AC25: =IF(AB25="*","",IF(A4<33,IF(RANK(AB25,'DATA CP REG'!$Y$4:$Y$35)<9,1,IF(RANK(AB25,'DATA CP REG'!$Y$4:$Y$35)<17,2,IF(RANK(AB25,'DATA CP REG'!$Y$4:$Y$35)<25,3,4))),"")) -> 3
A26: =OFFSET('REF EA Name'!$B$2,A5,0) -> Argyll & Bute | B26: =IF(A5<33,OFFSET('DATA CP REG'!$B$3,$A5,0),"") -> 64 | C26: =OFFSET('DATA CP REG'!$J$3,$A5,0) -> 13238 | D26: =IF($A5=33,"",B26*1000/C26) -> 4.834567155 | E26: =IF($A5=33,"",IF(B26=0,"",F26/B26-1)) -> 0.140625 | F26: =IF(A5<33,OFFSET('DATA CP REG'!$C$3,$A5,0),"") -> 73 | G26: =OFFSET('DATA CP REG'!$K$3,$A5,0) -> 13163 | H26: =IF($A5=33,"",F26*1000/G26) -> 5.545848211 | I26: =IF($A5=33,"",IF(F26=0,"",J26/F26-1)) -> -0.2191780822 | J26: =IF(A5<33,OFFSET('DATA CP REG'!$D$3,$A5,0),"") -> 57 | K26: =OFFSET('DATA CP REG'!$L$3,$A5,0) -> 13024 | L26: =IF($A5=33,"",J26*1000/K26) -> 4.376535627 | M26: =IF($A5=33,"",IF(J26=0,"",N26/J26-1)) -> -0.01754385965 | N26: =IF(A5<33,OFFSET('DATA CP REG'!$E$3,$A5,0),"") -> 56 | O26: =OFFSET('DATA CP REG'!$M$3,$A5,0) -> 12906 | P26: =IF($A5=33,"",N26*1000/O26) -> 4.339067101 | Q26: =IF($A5=33,"",IF(N26=0,"",R26/N26-1)) -> 0.1964285714 | R26: =IF(A5<33,OFFSET('DATA CP REG'!$F$3,$A5,0),"") -> 67 | S26: =OFFSET('DATA CP REG'!$N$3,$A5,0) -> 12577 | T26: =IF($A5=33,"",R26*1000/S26) -> 5.327184543 | U26: =IF($A5=33,"",IF(R26=0,"",V26/R26-1)) -> -0.2835820896 | V26: =IF(A5<33,OFFSET('DATA CP REG'!$G$3,$A5,0),"") -> 48 | W26: =OFFSET('DATA CP REG'!$O$3,$A5,0) -> 12441 | X26: =IF($A5=33,"",V26*1000/W26) -> 3.858210755 | Y26: =IF($A5=33,"",IF(V26=0,"",Z26/V26-1)) -> -0.375 | Z26: =IF(A5<33,OFFSET('DATA CP REG'!$H$3,$A5,0),"") -> 30 | AA26: =OFFSET('DATA CP REG'!$P$3,$A5,0) -> 12441 | AB26: =IF($A5=33,"",Z26*1000/AA26) -> 2.411381722 | AC26: =IF(AB26="*","",IF(A5<33,IF(RANK(AB26,'DATA CP REG'!$Y$4:$Y$35)<9,1,IF(RANK(AB26,'DATA CP REG'!$Y$4:$Y$35)<17,2,IF(RANK(AB26,'DATA CP REG'!$Y$4:$Y$35)<25,3,4))),"")) -> 4
A27: =OFFSET('REF EA Name'!$B$2,A6,0) -> Scottish Borders | B27: =IF(A6<33,OFFSET('DATA CP REG'!$B$3,$A6,0),"") -> 83 | C27: =OFFSET('DATA CP REG'!$J$3,$A6,0) -> 19002 | D27: =IF($A6=33,"",B27*1000/C27) -> 4.367961267 | E27: =IF($A6=33,"",IF(B27=0,"",F27/B27-1)) -> -0.3855421687 | F27: =IF(A6<33,OFFSET('DATA CP REG'!$C$3,$A6,0),"") -> 51 | G27: =OFFSET('DATA CP REG'!$K$3,$A6,0) -> 19026 | H27: =IF($A6=33,"",F27*1000/G27) -> 2.680542416 | I27: =IF($A6=33,"",IF(F27=0,"",J27/F27-1)) -> 0.4705882353 | J27: =IF(A6<33,OFFSET('DATA CP REG'!$D$3,$A6,0),"") -> 75 | K27: =OFFSET('DATA CP REG'!$L$3,$A6,0) -> 19046 | L27: =IF($A6=33,"",J27*1000/K27) -> 3.937834716 | M27: =IF($A6=33,"",IF(J27=0,"",N27/J27-1)) -> -0.2 | N27: =IF(A6<33,OFFSET('DATA CP REG'!$E$3,$A6,0),"") -> 60 | O27: =OFFSET('DATA CP REG'!$M$3,$A6,0) -> 19023 | P27: =IF($A6=33,"",N27*1000/O27) -> 3.154076644 | Q27: =IF($A6=33,"",IF(N27=0,"",R27/N27-1)) -> -0.3833333333 | R27: =IF(A6<33,OFFSET('DATA CP REG'!$F$3,$A6,0),"") -> 37 | S27: =OFFSET('DATA CP REG'!$N$3,$A6,0) -> 18824 | T27: =IF($A6=33,"",R27*1000/S27) -> 1.965575861 | U27: =IF($A6=33,"",IF(R27=0,"",V27/R27-1)) -> 0.5945945946 | V27: =IF(A6<33,OFFSET('DATA CP REG'!$G$3,$A6,0),"") -> 59 | W27: =OFFSET('DATA CP REG'!$O$3,$A6,0) -> 18723 | X27: =IF($A6=33,"",V27*1000/W27) -> 3.151204401 | Y27: =IF($A6=33,"",IF(V27=0,"",Z27/V27-1)) -> 0 | Z27: =IF(A6<33,OFFSET('DATA CP REG'!$H$3,$A6,0),"") -> 59 | AA27: =OFFSET('DATA CP REG'!$P$3,$A6,0) -> 18723 | AB27: =IF($A6=33,"",Z27*1000/AA27) -> 3.151204401 | AC27: =IF(AB27="*","",IF(A6<33,IF(RANK(AB27,'DATA CP REG'!$Y$4:$Y$35)<9,1,IF(RANK(AB27,'DATA CP REG'!$Y$4:$Y$35)<17,2,IF(RANK(AB27,'DATA CP REG'!$Y$4:$Y$35)<25,3,4))),"")) -> 4
A28: =OFFSET('REF EA Name'!$B$2,A7,0) -> Moray | B28: =IF(A7<33,OFFSET('DATA CP REG'!$B$3,$A7,0),"") -> 87 | C28: =OFFSET('DATA CP REG'!$J$3,$A7,0) -> 16527 | D28: =IF($A7=33,"",B28*1000/C28) -> 5.264113269 | E28: =IF($A7=33,"",IF(B28=0,"",F28/B28-1)) -> 0.1264367816 | F28: =IF(A7<33,OFFSET('DATA CP REG'!$C$3,$A7,0),"") -> 98 | G28: =OFFSET('DATA CP REG'!$K$3,$A7,0) -> 16362 | H28: =IF($A7=33,"",F28*1000/G28) -> 5.989487838 | I28: =IF($A7=33,"",IF(F28=0,"",J28/F28-1)) -> -0.1224489796 | J28: =IF(A7<33,OFFSET('DATA CP REG'!$D$3,$A7,0),"") -> 86 | K28: =OFFSET('DATA CP REG'!$L$3,$A7,0) -> 16173 | L28: =IF($A7=33,"",J28*1000/K28) -> 5.317504483 | M28: =IF($A7=33,"",IF(J28=0,"",N28/J28-1)) -> 0.1046511628 | N28: =IF(A7<33,OFFSET('DATA CP REG'!$E$3,$A7,0),"") -> 95 | O28: =OFFSET('DATA CP REG'!$M$3,$A7,0) -> 16145 | P28: =IF($A7=33,"",N28*1000/O28) -> 5.884174667 | Q28: =IF($A7=33,"",IF(N28=0,"",R28/N28-1)) -> -0.5789473684 | R28: =IF(A7<33,OFFSET('DATA CP REG'!$F$3,$A7,0),"") -> 40 | S28: =OFFSET('DATA CP REG'!$N$3,$A7,0) -> 16037 | T28: =IF($A7=33,"",R28*1000/S28) -> 2.494232088 | U28: =IF($A7=33,"",IF(R28=0,"",V28/R28-1)) -> 0.15 | V28: =IF(A7<33,OFFSET('DATA CP REG'!$G$3,$A7,0),"") -> 46 | W28: =OFFSET('DATA CP REG'!$O$3,$A7,0) -> 15941 | X28: =IF($A7=33,"",V28*1000/W28) -> 2.8856408 | Y28: =IF($A7=33,"",IF(V28=0,"",Z28/V28-1)) -> 0.1086956522 | Z28: =IF(A7<33,OFFSET('DATA CP REG'!$H$3,$A7,0),"") -> 51 | AA28: =OFFSET('DATA CP REG'!$P$3,$A7,0) -> 15941 | AB28: =IF($A7=33,"",Z28*1000/AA28) -> 3.199297409 | AC28: =IF(AB28="*","",IF(A7<33,IF(RANK(AB28,'DATA CP REG'!$Y$4:$Y$35)<9,1,IF(RANK(AB28,'DATA CP REG'!$Y$4:$Y$35)<17,2,IF(RANK(AB28,'DATA CP REG'!$Y$4:$Y$35)<25,3,4))),"")) -> 3
A30: Comparator authorities | B30: =SUM(B24:B28) -> 553 | C30: =SUM(C24:C28) -> 108184 | D30: =1000*B30/(SUMIF(B24,">0",C24)+SUMIF(B25,">0",C25)+SUMIF(B26,">0",C26)+SUMIF(B27,">0",C27)+SUMIF(B28,">0",C28)) -> 5.111661614 | E30: =IF(B30=0,"",SUM(F24:F28)/SUM(B24:B28)-1) -> -0.1211573237 | F30: =SUM(F24:F28) -> 486 | G30: =SUM(G24:G28) -> 107394 | H30: =1000*F30/(SUMIF(F24,">0",G24)+SUMIF(F25,">0",G25)+SUMIF(F26,">0",G26)+SUMIF(F27,">0",G27)+SUMIF(F28,">0",G28)) -> 4.52539248 | I30: =IF(F30=0,"",SUM(J24:J28)/SUM(F24:F28)-1) -> 0.06790123457 | J30: =SUM(J24:J28) -> 519 | K30: =SUM(K24:K28) -> 106831 | L30: =1000*J30/(SUMIF(J24,">0",K24)+SUMIF(J25,">0",K25)+SUMIF(J26,">0",K26)+SUMIF(J27,">0",K27)+SUMIF(J28,">0",K28)) -> 4.858140427 | M30: =IF(J30=0,"",SUM(N24:N28)/SUM(J24:J28)-1) -> -0.1136801541 | N30: =SUM(N24:N28) -> 460 | O30: =SUM(O24:O28) -> 106255 | P30: =1000*N30/(SUMIF(N24,">0",O24)+SUMIF(N25,">0",O25)+SUMIF(N26,">0",O26)+SUMIF(N27,">0",O27)+SUMIF(N28,">0",O28)) -> 4.329208037 | Q30: =IF(N30=0,"",SUM(R24:R28)/SUM(N24:N28)-1) -> -0.09565217391 | R30: =SUM(R24:R28) -> 416 | S30: =SUM(S24:S28) -> 104836 | T30: =1000*R30/(SUMIF(R24,">0",S24)+SUMIF(R25,">0",S25)+SUMIF(R26,">0",S26)+SUMIF(R27,">0",S27)+SUMIF(R28,">0",S28)) -> 3.96810256 | U30: =IF(R30=0,"",SUM(V24:V28)/SUM(R24:R28)-1) -> -0.1514423077 | V30: =SUM(V24:V28) -> 353 | W30: =SUM(W24:W28) -> 103874 | X30: =1000*V30/(SUMIF(V24,">0",W24)+SUMIF(V25,">0",W25)+SUMIF(V26,">0",W26)+SUMIF(V27,">0",W27)+SUMIF(V28,">0",W28)) -> 3.398347999 | Y30: =IF(V30=0,"",SUM(Z24:Z28)/SUM(V24:V28)-1) -> 0.04815864023 | Z30: =SUM(Z24:Z28) -> 370 | AA30: =SUM(AA24:AA28) -> 103874 | AB30: =1000*Z30/(SUMIF(Z24,">0",AA24)+SUMIF(Z25,">0",AA25)+SUMIF(Z26,">0",AA26)+SUMIF(Z27,">0",AA27)+SUMIF(Z28,">0",AA28)) -> 3.562007817
A32: Scotland [Note 1],[Note 2] | B32: ='DATA CP REG'!$B$36 -> 4273 | C32: ='DATA CP REG'!$J$36 -> 915917 | D32: =B32*1000/C32 -> 4.665269888 | E32: =IF(B32=0,"",F32/B32-1) -> 0.004680552305 | F32: ='DATA CP REG'!$C$36 -> 4293 | G32: ='DATA CP REG'!$K$36 -> 917442 | H32: =F32*1000/G32 -> 4.679314878 | I32: =IF(F32=0,"",J32/F32-1) -> -0.01094805497 | J32: ='DATA CP REG'!$D$36 -> 4246 | K32: ='DATA CP REG'!$L$36 -> 919502 | L32: =J32*1000/K32 -> 4.617716982 | M32: =IF(J32=0,"",N32/J32-1) -> 0.0115402732 | N32: ='DATA CP REG'!$E$36 -> 4295 | O32: ='DATA CP REG'!$M$36 -> 921397 | P32: =N32*1000/O32 -> 4.661400026 | Q32: =IF(N32=0,"",R32/N32-1) -> -0.07636786962 | R32: ='DATA CP REG'!$F$36 -> 3967 | S32: ='DATA CP REG'!$N$36 -> 916783 | T32: =R32*1000/S32 -> 4.327087217 | U32: =IF(R32=0,"",V32/R32-1) -> -0.1280564658 | V32: ='DATA CP REG'!$G$36 -> 3459 | W32: ='DATA CP REG'!$O$36 -> 911522 | X32: =V32*1000/W32 -> 3.794752074 | Y32: =IF(V32=0,"",Z32/V32-1) -> -0.05001445504 | Z32: ='DATA CP REG'!$H$36 -> 3286 | AA32: ='DATA CP REG'!$P$36 -> 911522 | AB32: =Z32*1000/AA32 -> 3.604959617
A34: Notes
A35: [Note 1] | B35: =IF('DATA CP CON'!A38="","",'DATA CP CON'!A38) -> Figures for 2022 are provisional and may be revised with the publication of 2023 statistics.
A36: [Note 2] | B36: =IF('DATA CP CON'!A39="","",'DATA CP CON'!A39) -> Population figures source: NRS mid-year population estimates for 2016-2021
A37: [Note 3] | B37: =IF('DATA CP CON'!A40="","",'DATA CP CON'!A40) -> Source: Scottish Government CP Returns
U40: =U21-U30 -> 0.6038232601 | X40: =X21-X30 -> -0.7324971114 | Y40: =Y21-Y30 -> 0.246923327 | AB40: =AB21-AB30 -> -0.1095124059 | AC40: =IF(AB40<-0.5,"less than",IF(AB40>0.5,"greater than","similar to")) -> similar to
U41: =U21-U32 -> 0.5804374182 | X41: =X21-X32 -> -1.128901187 | Y41: =Y21-Y32 -> 0.3450964223 | AB41: =AB21-AB32 -> -0.1524642058 | AC41: =IF(AB41<-0.5,"less than",IF(AB41>0.5,"greater than","similar to")) -> similar to
U43: =V21-R21 -> 19 | Y43: =Z21-V21 -> 18
U44: =IF(U43<0,"a decrease of ",IF(U43>=0,"an increase of ")) -> an increase of | Y44: =IF(Y43<0,"a decrease of ",IF(Y43>=0,"an increase of ")) -> an increase of
U46: =IF(U30<0,"a decrease of ",IF(U30>=0,"an increase of ")) -> a decrease of | Y46: =IF(Y30<0,"a decrease of ",IF(Y30>=0,"an increase of ")) -> an increase of
U47: =IF(U32<0,"a decrease of ",IF(U32>=0,"an increase of ")) -> a decrease of | Y47: =IF(Y32<0,"a decrease of ",IF(Y32>=0,"an increase of ")) -> a decrease of

Sheet CP on Register
A1: ='DATA CP ON REG'!A1 -> Child Protection: On Child Protection Register: as at 31 July 2016-2022
B2: select comparators:
A3: =N3 -> 3 | N3: =VLOOKUP('Select an authority'!$A$1,'REF CAs'!$A$1:$F$32,2,0) -> 3
A4: =N4 -> 16 | N4: =VLOOKUP('Select an authority'!$A$1,'REF CAs'!$A$1:$F$32,3,0) -> 16
A5: =N5 -> 4 | N5: =VLOOKUP('Select an authority'!$A$1,'REF CAs'!$A$1:$F$32,4,0) -> 4
A6: =N6 -> 26 | N6: =VLOOKUP('Select an authority'!$A$1,'REF CAs'!$A$1:$F$32,5,0) -> 26
A7: =N7 -> 19 | N7: =VLOOKUP('Select an authority'!$A$1,'REF CAs'!$A$1:$F$32,6,0) -> 19
A15: =IF(Z21="*","[text statement not available due to suppression of data for confidentiality]",IF(Y21="","[text statement not available due to suppression of data for confidentiality]","* The number of registrations following a case conference in "&A21&" in "&Z19&" was "&ROUND(Z21,0)&" ("&Y44&ROUND((SQRT((Y21*100)^2)),1)&"% from "&ROUND(V21,0)&" in "&V19&")")) -> * The number of registrations following a case conference in Dumfries & Galloway in 2022 was 41 (an increase of 20.6% from 34 in 2021)
A16: =IF(Y30="","[text statement not available due to suppression of data for confidentiality]","* The comparator authorities show "&Y46&ROUND(SQRT((Y30*100)^2),1)&"%, while the Scotland figures show "&Y47&ROUND(SQRT((100*Y32)^2),1)&"%") -> * The comparator authorities show an increase of 8.3%, while the Scotland figures show a decrease of 4.2%
A17: =IF(AB21="*","[text statement not available due to suppression of data for confidentiality]",IF(AB30="*","[text statement not available due to suppression of data for confidentiality]","* The rate (per 1,000 pop 0-15) is "&ROUND(AB21,1)&". This is "&AC40&" the comparator average rate of "&ROUND(AB30,1)&", and "&AC41&" the Scotland average rate of "&ROUND(AB32,1))) -> * The rate (per 1,000 pop 0-15) is 1.8. This is less than the comparator average rate of 2.5, and similar to the Scotland average rate of 2.2
B19: 2016 | D19: 2016 | E19: 2016 | F19: 2017 | H19: 2017 | I19: 2017 | J19: 2018 | L19: 2018 | M19: 2018 | N19: 2019 | P19: 2019 | Q19: 2019 | R19: 2020 | T19: 2020 | U19: 2020 | V19: 2021 | X19: 2021 | Y19: 2021 | Z19: 2022 | AB19: 2022 | AC19: 2022
B20: Number | C20: ='DATA CP ON REG'!#REF! ->  | D20: Rate | E20: % change | F20: Number | G20: ='DATA CP ON REG'!#REF! ->  | H20: Rate | I20: % change | J20: Number | K20: ='DATA CP ON REG'!#REF! ->  | L20: Rate | M20: % change | N20: Number | O20: ='DATA CP ON REG'!#REF! ->  | P20: Rate | Q20: % change | R20: Number | S20: ='DATA CP ON REG'!#REF! ->  | T20: Rate | U20: % change | V20: Number | W20: ='DATA CP ON REG'!#REF! ->  | X20: Rate | Y20: % change | Z20: Number | AA20: ='DATA CP ON REG'!#REF! ->  | AB20: Rate | AC20: Quartile
A21: =OFFSET('REF EA Name'!$B$2,'Select an authority'!$A$1,0) -> Dumfries & Galloway | B21: =OFFSET('DATA CP ON REG'!$B$3,'Select an authority'!$A$1,0) -> 61 | D21: =OFFSET('DATA CP ON REG'!$S$3,'Select an authority'!$A$1,0) -> 2.583213348 | E21: =IF(B21=0,"",F21/B21-1) -> 0.2786885246 | F21: =OFFSET('DATA CP ON REG'!$C$3,'Select an authority'!$A$1,0) -> 78 | H21: =OFFSET('DATA CP ON REG'!$T$3,'Select an authority'!$A$1,0) -> 3.320986077 | I21: =IF(F21=0,"",J21/F21-1) -> 0.1923076923 | J21: =OFFSET('DATA CP ON REG'!$D$3,'Select an authority'!$A$1,0) -> 93 | L21: =OFFSET('DATA CP ON REG'!$U$3,'Select an authority'!$A$1,0) -> 3.970286885 | M21: =IF(J21=0,"",N21/J21-1) -> -0.8064516129 | N21: =OFFSET('DATA CP ON REG'!$E$3,'Select an authority'!$A$1,0) -> 18 | P21: =OFFSET('DATA CP ON REG'!$V$3,'Select an authority'!$A$1,0) -> 0.7744267091 | Q21: =IF(N21=0,"",R21/N21-1) -> 0.4444444444 | R21: =OFFSET('DATA CP ON REG'!$F$3,'Select an authority'!$A$1,0) -> 26 | T21: =OFFSET('DATA CP ON REG'!$W$3,'Select an authority'!$A$1,0) -> 1.127982646 | U21: =IF(R21=0,"",V21/R21-1) -> 0.3076923077 | V21: =OFFSET('DATA CP ON REG'!$G$3,'Select an authority'!$A$1,0) -> 34 | X21: =OFFSET('DATA CP ON REG'!$X$3,'Select an authority'!$A$1,0) -> 1.485884101 | Y21: =IF(V21=0,"",Z21/V21-1) -> 0.2058823529 | Z21: =OFFSET('DATA CP ON REG'!$H$3,'Select an authority'!$A$1,0) -> 41 | AB21: =OFFSET('DATA CP ON REG'!$Y$3,'Select an authority'!$A$1,0) -> 1.791801416 | AC21: =IF(AB21="*","",IF(RANK(AB21,'DATA CP ON REG'!$Y$4:$Y$35)<9,1,IF(RANK(AB21,'DATA CP ON REG'!$Y$4:$Y$35)<17,2,IF(RANK(AB21,'DATA CP ON REG'!$Y$4:$Y$35)<25,3,4)))) -> 3
A23: Comparator Authorities:
A24: =OFFSET('REF EA Name'!$B$2, A3,0) -> Angus | B24: =IF(A3<33,OFFSET('DATA CP ON REG'!$B$3,$A3,0)," ") -> 96 | C24: =OFFSET('DATA CP ON REG'!$J$3,$A3,0) -> 19445 | D24: =IF($A3=33,"",B24*1000/C24) -> 4.9370018 | E24: =IF($A3=33,"",IF(B24=0,"",F24/B24-1)) -> -0.46875 | F24: =IF(A3<33,OFFSET('DATA CP ON REG'!$C$3,$A3,0),"") -> 51 | G24: =OFFSET('DATA CP ON REG'!$K$3,$A3,0) -> 19288 | H24: =IF($A3=33,"",F24*1000/G24) -> 2.644131066 | I24: =IF($A3=33,"",IF(F24=0,"",J24/F24-1)) -> 0.2549019608 | J24: =IF(A3<33,OFFSET('DATA CP ON REG'!$D$3,$A3,0),"") -> 64 | K24: =OFFSET('DATA CP ON REG'!$L$3,$A3,0) -> 19253 | L24: =IF($A3=33,"",J24*1000/K24) -> 3.324157274 | M24: =IF($A3=33,"",IF(J24=0,"",N24/J24-1)) -> -0.296875 | N24: =IF(A3<33,OFFSET('DATA CP ON REG'!$E$3,$A3,0),"") -> 45 | O24: =OFFSET('DATA CP ON REG'!$M$3,$A3,0) -> 19145 | P24: =IF($A3=33,"",N24*1000/O24) -> 2.350483155 | Q24: =IF($A3=33,"",IF(N24=0,"",R24/N24-1)) -> -0.2222222222 | R24: =IF(A3<33,OFFSET('DATA CP ON REG'!$F$3,$A3,0),"") -> 35 | S24: =OFFSET('DATA CP ON REG'!$N$3,$A3,0) -> 18908 | T24: =IF($A3=33,"",R24*1000/S24) -> 1.851068331 | U24: =IF($A3=33,"",IF(R24=0,"",V24/R24-1)) -> 0.2857142857 | V24: =IF(A3<33,OFFSET('DATA CP ON REG'!$G$3,$A3,0),"") -> 45 | W24: =OFFSET('DATA CP ON REG'!$O$3,$A3,0) -> 18639 | X24: =IF($A3=33,"",V24*1000/W24) -> 2.414292612 | Y24: =IF($A3=33,"",IF(V24=0,"",Z24/V24-1)) -> 0.3111111111 | Z24: =IF(A3<33,OFFSET('DATA CP ON REG'!$H$3,$A3,0),"") -> 59 | AA24: =OFFSET('DATA CP ON REG'!$P$3,$A3,0) -> 18639 | AB24: =IF($A3=33,"",Z24*1000/AA24) -> 3.165405869 | AC24: =IF(AB24="*","",IF(A3<33,IF(RANK(AB24,'DATA CP ON REG'!$Y$4:$Y$35)<9,1,IF(RANK(AB24,'DATA CP ON REG'!$Y$4:$Y$35)<17,2,IF(RANK(AB24,'DATA CP ON REG'!$Y$4:$Y$35)<25,3,4))),"")) -> 1
A25: =OFFSET('REF EA Name'!$B$2,A4,0) -> Highland | B25: =IF(A4<33,OFFSET('DATA CP ON REG'!$B$3,$A4,0),"") -> 104 | C25: =OFFSET('DATA CP ON REG'!$J$3,$A4,0) -> 39972 | D25: =IF($A4=33,"",B25*1000/C25) -> 2.601821275 | E25: =IF($A4=33,"",IF(B25=0,"",F25/B25-1)) -> -0.01923076923 | F25: =IF(A4<33,OFFSET('DATA CP ON REG'!$C$3,$A4,0),"") -> 102 | G25: =OFFSET('DATA CP ON REG'!$K$3,$A4,0) -> 39555 | H25: =IF($A4=33,"",F25*1000/G25) -> 2.578687903 | I25: =IF($A4=33,"",IF(F25=0,"",J25/F25-1)) -> -0.2058823529 | J25: =IF(A4<33,OFFSET('DATA CP ON REG'!$D$3,$A4,0),"") -> 81 | K25: =OFFSET('DATA CP ON REG'!$L$3,$A4,0) -> 39335 | L25: =IF($A4=33,"",J25*1000/K25) -> 2.059234778 | M25: =IF($A4=33,"",IF(J25=0,"",N25/J25-1)) -> 0.1234567901 | N25: =IF(A4<33,OFFSET('DATA CP ON REG'!$E$3,$A4,0),"") -> 91 | O25: =OFFSET('DATA CP ON REG'!$M$3,$A4,0) -> 39036 | P25: =IF($A4=33,"",N25*1000/O25) -> 2.331181474 | Q25: =IF($A4=33,"",IF(N25=0,"",R25/N25-1)) -> 0.4175824176 | R25: =IF(A4<33,OFFSET('DATA CP ON REG'!$F$3,$A4,0),"") -> 129 | S25: =OFFSET('DATA CP ON REG'!$N$3,$A4,0) -> 38490 | T25: =IF($A4=33,"",R25*1000/S25) -> 3.351519875 | U25: =IF($A4=33,"",IF(R25=0,"",V25/R25-1)) -> -0.2558139535 | V25: =IF(A4<33,OFFSET('DATA CP ON REG'!$G$3,$A4,0),"") -> 96 | W25: =OFFSET('DATA CP ON REG'!$O$3,$A4,0) -> 38130 | X25: =IF($A4=33,"",V25*1000/W25) -> 2.517702596 | Y25: =IF($A4=33,"",IF(V25=0,"",Z25/V25-1)) -> -0.03125 | Z25: =IF(A4<33,OFFSET('DATA CP ON REG'!$H$3,$A4,0),"") -> 93 | AA25: =OFFSET('DATA CP ON REG'!$P$3,$A4,0) -> 38130 | AB25: =IF($A4=33,"",Z25*1000/AA25) -> 2.43902439 | AC25: =IF(AB25="*","",IF(A4<33,IF(RANK(AB25,'DATA CP ON REG'!$Y$4:$Y$35)<9,1,IF(RANK(AB25,'DATA CP ON REG'!$Y$4:$Y$35)<17,2,IF(RANK(AB25,'DATA CP ON REG'!$Y$4:$Y$35)<25,3,4))),"")) -> 2
A26: =OFFSET('REF EA Name'!$B$2,A5,0) -> Argyll & Bute | B26: =IF(A5<33,OFFSET('DATA CP ON REG'!$B$3,$A5,0),"") -> 40 | C26: =OFFSET('DATA CP ON REG'!$J$3,$A5,0) -> 13238 | D26: =IF($A5=33,"",B26*1000/C26) -> 3.021604472 | E26: =IF($A5=33,"",IF(B26=0,"",F26/B26-1)) -> -0.225 | F26: =IF(A5<33,OFFSET('DATA CP ON REG'!$C$3,$A5,0),"") -> 31 | G26: =OFFSET('DATA CP ON REG'!$K$3,$A5,0) -> 13163 | H26: =IF($A5=33,"",F26*1000/G26) -> 2.355086227 | I26: =IF($A5=33,"",IF(F26=0,"",J26/F26-1)) -> 0 | J26: =IF(A5<33,OFFSET('DATA CP ON REG'!$D$3,$A5,0),"") -> 31 | K26: =OFFSET('DATA CP ON REG'!$L$3,$A5,0) -> 13024 | L26: =IF($A5=33,"",J26*1000/K26) -> 2.38022113 | M26: =IF($A5=33,"",IF(J26=0,"",N26/J26-1)) -> -0.09677419355 | N26: =IF(A5<33,OFFSET('DATA CP ON REG'!$E$3,$A5,0),"") -> 28 | O26: =OFFSET('DATA CP ON REG'!$M$3,$A5,0) -> 12906 | P26: =IF($A5=33,"",N26*1000/O26) -> 2.16953355 | Q26: =IF($A5=33,"",IF(N26=0,"",R26/N26-1)) -> 0.75 | R26: =IF(A5<33,OFFSET('DATA CP ON REG'!$F$3,$A5,0),"") -> 49 | S26: =OFFSET('DATA CP ON REG'!$N$3,$A5,0) -> 12577 | T26: =IF($A5=33,"",R26*1000/S26) -> 3.896000636 | U26: =IF($A5=33,"",IF(R26=0,"",V26/R26-1)) -> -0.3469387755 | V26: =IF(A5<33,OFFSET('DATA CP ON REG'!$G$3,$A5,0),"") -> 32 | W26: =OFFSET('DATA CP ON REG'!$O$3,$A5,0) -> 12441 | X26: =IF($A5=33,"",V26*1000/W26) -> 2.572140503 | Y26: =IF($A5=33,"",IF(V26=0,"",Z26/V26-1)) -> -0.34375 | Z26: =IF(A5<33,OFFSET('DATA CP ON REG'!$H$3,$A5,0),"") -> 21 | AA26: =OFFSET('DATA CP ON REG'!$P$3,$A5,0) -> 12441 | AB26: =IF($A5=33,"",Z26*1000/AA26) -> 1.687967205 | AC26: =IF(AB26="*","",IF(A5<33,IF(RANK(AB26,'DATA CP ON REG'!$Y$4:$Y$35)<9,1,IF(RANK(AB26,'DATA CP ON REG'!$Y$4:$Y$35)<17,2,IF(RANK(AB26,'DATA CP ON REG'!$Y$4:$Y$35)<25,3,4))),"")) -> 4
A27: =OFFSET('REF EA Name'!$B$2,A6,0) -> Scottish Borders | B27: =IF(A6<33,OFFSET('DATA CP ON REG'!$B$3,$A6,0),"") -> 67 | C27: =OFFSET('DATA CP ON REG'!$J$3,$A6,0) -> 19002 | D27: =IF($A6=33,"",B27*1000/C27) -> 3.525944637 | E27: =IF($A6=33,"",IF(B27=0,"",F27/B27-1)) -> -0.4179104478 | F27: =IF(A6<33,OFFSET('DATA CP ON REG'!$C$3,$A6,0),"") -> 39 | G27: =OFFSET('DATA CP ON REG'!$K$3,$A6,0) -> 19026 | H27: =IF($A6=33,"",F27*1000/G27) -> 2.049826553 | I27: =IF($A6=33,"",IF(F27=0,"",J27/F27-1)) -> 0.2820512821 | J27: =IF(A6<33,OFFSET('DATA CP ON REG'!$D$3,$A6,0),"") -> 50 | K27: =OFFSET('DATA CP ON REG'!$L$3,$A6,0) -> 19046 | L27: =IF($A6=33,"",J27*1000/K27) -> 2.625223144 | M27: =IF($A6=33,"",IF(J27=0,"",N27/J27-1)) -> -0.08 | N27: =IF(A6<33,OFFSET('DATA CP ON REG'!$E$3,$A6,0),"") -> 46 | O27: =OFFSET('DATA CP ON REG'!$M$3,$A6,0) -> 19023 | P27: =IF($A6=33,"",N27*1000/O27) -> 2.418125427 | Q27: =IF($A6=33,"",IF(N27=0,"",R27/N27-1)) -> -0.2608695652 | R27: =IF(A6<33,OFFSET('DATA CP ON REG'!$F$3,$A6,0),"") -> 34 | S27: =OFFSET('DATA CP ON REG'!$N$3,$A6,0) -> 18824 | T27: =IF($A6=33,"",R27*1000/S27) -> 1.806204845 | U27: =IF($A6=33,"",IF(R27=0,"",V27/R27-1)) -> 0 | V27: =IF(A6<33,OFFSET('DATA CP ON REG'!$G$3,$A6,0),"") -> 34 | W27: =OFFSET('DATA CP ON REG'!$O$3,$A6,0) -> 18723 | X27: =IF($A6=33,"",V27*1000/W27) -> 1.815948299 | Y27: =IF($A6=33,"",IF(V27=0,"",Z27/V27-1)) -> 0.1470588235 | Z27: =IF(A6<33,OFFSET('DATA CP ON REG'!$H$3,$A6,0),"") -> 39 | AA27: =OFFSET('DATA CP ON REG'!$P$3,$A6,0) -> 18723 | AB27: =IF($A6=33,"",Z27*1000/AA27) -> 2.082999519 | AC27: =IF(AB27="*","",IF(A6<33,IF(RANK(AB27,'DATA CP ON REG'!$Y$4:$Y$35)<9,1,IF(RANK(AB27,'DATA CP ON REG'!$Y$4:$Y$35)<17,2,IF(RANK(AB27,'DATA CP ON REG'!$Y$4:$Y$35)<25,3,4))),"")) -> 3
A28: =OFFSET('REF EA Name'!$B$2,A7,0) -> Moray | B28: =IF(A7<33,OFFSET('DATA CP ON REG'!$B$3,$A7,0),"") -> 64 | C28: =OFFSET('DATA CP ON REG'!$J$3,$A7,0) -> 16527 | D28: =IF($A7=33,"",B28*1000/C28) -> 3.872451141 | E28: =IF($A7=33,"",IF(B28=0,"",F28/B28-1)) -> 0.234375 | F28: =IF(A7<33,OFFSET('DATA CP ON REG'!$C$3,$A7,0),"") -> 79 | G28: =OFFSET('DATA CP ON REG'!$K$3,$A7,0) -> 16362 | H28: =IF($A7=33,"",F28*1000/G28) -> 4.828260604 | I28: =IF($A7=33,"",IF(F28=0,"",J28/F28-1)) -> -0.2151898734 | J28: =IF(A7<33,OFFSET('DATA CP ON REG'!$D$3,$A7,0),"") -> 62 | K28: =OFFSET('DATA CP ON REG'!$L$3,$A7,0) -> 16173 | L28: =IF($A7=33,"",J28*1000/K28) -> 3.833549743 | M28: =IF($A7=33,"",IF(J28=0,"",N28/J28-1)) -> -0.2419354839 | N28: =IF(A7<33,OFFSET('DATA CP ON REG'!$E$3,$A7,0),"") -> 47 | O28: =OFFSET('DATA CP ON REG'!$M$3,$A7,0) -> 16145 | P28: =IF($A7=33,"",N28*1000/O28) -> 2.911117993 | Q28: =IF($A7=33,"",IF(N28=0,"",R28/N28-1)) -> -0.3404255319 | R28: =IF(A7<33,OFFSET('DATA CP ON REG'!$F$3,$A7,0),"") -> 31 | S28: =OFFSET('DATA CP ON REG'!$N$3,$A7,0) -> 16037 | T28: =IF($A7=33,"",R28*1000/S28) -> 1.933029868 | U28: =IF($A7=33,"",IF(R28=0,"",V28/R28-1)) -> 0.1290322581 | V28: =IF(A7<33,OFFSET('DATA CP ON REG'!$G$3,$A7,0),"") -> 35 | W28: =OFFSET('DATA CP ON REG'!$O$3,$A7,0) -> 15941 | X28: =IF($A7=33,"",V28*1000/W28) -> 2.195596261 | Y28: =IF($A7=33,"",IF(V28=0,"",Z28/V28-1)) -> 0.4285714286 | Z28: =IF(A7<33,OFFSET('DATA CP ON REG'!$H$3,$A7,0),"") -> 50 | AA28: =OFFSET('DATA CP ON REG'!$P$3,$A7,0) -> 15941 | AB28: =IF($A7=33,"",Z28*1000/AA28) -> 3.136566087 | AC28: =IF(AB28="*","",IF(A7<33,IF(RANK(AB28,'DATA CP ON REG'!$Y$4:$Y$35)<9,1,IF(RANK(AB28,'DATA CP ON REG'!$Y$4:$Y$35)<17,2,IF(RANK(AB28,'DATA CP ON REG'!$Y$4:$Y$35)<25,3,4))),"")) -> 1
A30: Comparator authorities | B30: =SUM(B24:B28) -> 371 | C30: =SUM(C24:C28) -> 108184 | D30: =1000*B30/(SUMIF(B24,">0",C24)+SUMIF(B25,">0",C25)+SUMIF(B26,">0",C26)+SUMIF(B27,">0",C27)+SUMIF(B28,">0",C28)) -> 3.429342601 | E30: =IF(B30=0,"",SUM(F24:F28)/SUM(B24:B28)-1) -> -0.1859838275 | F30: =SUM(F24:F28) -> 302 | G30: =SUM(G24:G28) -> 107394 | H30: =1000*F30/(SUMIF(F24,">0",G24)+SUMIF(F25,">0",G25)+SUMIF(F26,">0",G26)+SUMIF(F27,">0",G27)+SUMIF(F28,">0",G28)) -> 2.812075162 | I30: =IF(F30=0,"",SUM(J24:J28)/SUM(F24:F28)-1) -> -0.04635761589 | J30: =SUM(J24:J28) -> 288 | K30: =SUM(K24:K28) -> 106831 | L30: =1000*J30/(SUMIF(J24,">0",K24)+SUMIF(J25,">0",K25)+SUMIF(J26,">0",K26)+SUMIF(J27,">0",K27)+SUMIF(J28,">0",K28)) -> 2.695846711 | M30: =IF(J30=0,"",SUM(N24:N28)/SUM(J24:J28)-1) -> -0.1076388889 | N30: =SUM(N24:N28) -> 257 | O30: =SUM(O24:O28) -> 106255 | P30: =1000*N30/(SUMIF(N24,">0",O24)+SUMIF(N25,">0",O25)+SUMIF(N26,">0",O26)+SUMIF(N27,">0",O27)+SUMIF(N28,">0",O28)) -> 2.418709708 | Q30: =IF(N30=0,"",SUM(R24:R28)/SUM(N24:N28)-1) -> 0.08171206226 | R30: =SUM(R24:R28) -> 278 | S30: =SUM(S24:S28) -> 104836 | T30: =1000*R30/(SUMIF(R24,">0",S24)+SUMIF(R25,">0",S25)+SUMIF(R26,">0",S26)+SUMIF(R27,">0",S27)+SUMIF(R28,">0",S28)) -> 2.651760846 | U30: =IF(R30=0,"",SUM(V24:V28)/SUM(R24:R28)-1) -> -0.1294964029 | V30: =SUM(V24:V28) -> 242 | W30: =SUM(W24:W28) -> 103874 | X30: =1000*V30/(SUMIF(V24,">0",W24)+SUMIF(V25,">0",W25)+SUMIF(V26,">0",W26)+SUMIF(V27,">0",W27)+SUMIF(V28,">0",W28)) -> 2.329745653 | Y30: =IF(V30=0,"",SUM(Z24:Z28)/SUM(V24:V28)-1) -> 0.0826446281 | Z30: =SUM(Z24:Z28) -> 262 | AA30: =SUM(AA24:AA28) -> 103874 | AB30: =1000*Z30/(SUMIF(Z24,">0",AA24)+SUMIF(Z25,">0",AA25)+SUMIF(Z26,">0",AA26)+SUMIF(Z27,">0",AA27)+SUMIF(Z28,">0",AA28)) -> 2.522286616
A32: Scotland [Note 1],[Note 2] | B32: ='DATA CP ON REG'!$B$36 -> 2715 | C32: ='DATA CP ON REG'!$J$36 -> 915917 | D32: =B32*1000/C32 -> 2.964242393 | E32: =IF(B32=0,"",F32/B32-1) -> -0.0423572744 | F32: ='DATA CP ON REG'!$C$36 -> 2600 | G32: ='DATA CP ON REG'!$K$36 -> 917442 | H32: =F32*1000/G32 -> 2.833966616 | I32: =IF(F32=0,"",J32/F32-1) -> -0.02692307692 | J32: ='DATA CP ON REG'!$D$36 -> 2530 | K32: ='DATA CP ON REG'!$L$36 -> 919502 | L32: =J32*1000/K32 -> 2.751489393 | M32: =IF(J32=0,"",N32/J32-1) -> 0.01976284585 | N32: ='DATA CP ON REG'!$E$36 -> 2580 | O32: ='DATA CP ON REG'!$M$36 -> 921397 | P32: =N32*1000/O32 -> 2.800095941 | Q32: =IF(N32=0,"",R32/N32-1) -> 0.02364341085 | R32: ='DATA CP ON REG'!$F$36 -> 2641 | S32: ='DATA CP ON REG'!$N$36 -> 916783 | T32: =R32*1000/S32 -> 2.880725319 | U32: =IF(R32=0,"",V32/R32-1) -> -0.1976524044 | V32: ='DATA CP ON REG'!$G$36 -> 2119 | W32: ='DATA CP ON REG'!$O$36 -> 911522 | X32: =V32*1000/W32 -> 2.324683332 | Y32: =IF(V32=0,"",Z32/V32-1) -> -0.04152902312 | Z32: ='DATA CP ON REG'!$H$36 -> 2031 | AA32: ='DATA CP ON REG'!$P$36 -> 911522 | AB32: =Z32*1000/AA32 -> 2.228141504
A34: Notes
A35: [Note 1] | B35: =IF('DATA CP CON'!A38="","",'DATA CP CON'!A38) -> Figures for 2022 are provisional and may be revised with the publication of 2023 statistics.
A36: [Note 2] | B36: =IF('DATA CP CON'!A39="","",'DATA CP CON'!A39) -> Population figures source: NRS mid-year population estimates for 2016-2021
A37: [Note 3] | B37: =IF('DATA CP CON'!A40="","",'DATA CP CON'!A40) -> Source: Scottish Government CP Returns
U40: =U21-U30 -> 0.4371887106 | X40: =X21-X30 -> -0.8438615523 | Y40: =Y21-Y30 -> 0.1232377248 | AB40: =AB21-AB30 -> -0.7304852005 | AC40: =IF(AB40<-0.5,"less than",IF(AB40>0.5,"greater than","similar to")) -> less than
U41: =U21-U32 -> 0.5053447121 | X41: =X21-X32 -> -0.8387992308 | Y41: =Y21-Y32 -> 0.2474113761 | AB41: =AB21-AB32 -> -0.436340088 | AC41: =IF(AB41<-0.5,"less than",IF(AB41>0.5,"greater than","similar to")) -> similar to
U43: =V21-R21 -> 8 | Y43: =Z21-V21 -> 7
U44: =IF(U43<0,"a decrease of ",IF(U43>=0,"an increase of ")) -> an increase of | Y44: =IF(Y43<0,"a decrease of ",IF(Y43>=0,"an increase of ")) -> an increase of
U46: =IF(U30<0,"a decrease of ",IF(U30>=0,"an increase of ")) -> a decrease of | Y46: =IF(Y30<0,"a decrease of ",IF(Y30>=0,"an increase of ")) -> an increase of
U47: =IF(U32<0,"a decrease of ",IF(U32>=0,"an increase of ")) -> a decrease of | Y47: =IF(Y32<0,"a decrease of ",IF(Y32>=0,"an increase of ")) -> a decrease of

Sheet CP de-registrations
A1: ='DATA CP DEREG'!A1 -> Child Protection: De-registrations: 31 July 2016-2022
A3: 11 | E3: =VLOOKUP('Select an authority'!$A$1,'REF CAs'!$A$1:$F$32,2,0) -> 3 | I3: =VLOOKUP('Select an authority'!$A$1,'REF CAs'!$A$1:$F$32,2,0) -> 3
A4: 12 | E4: =VLOOKUP('Select an authority'!$A$1,'REF CAs'!$A$1:$F$32,3,0) -> 16 | I4: =VLOOKUP('Select an authority'!$A$1,'REF CAs'!$A$1:$F$32,3,0) -> 16
A5: 28 | E5: =VLOOKUP('Select an authority'!$A$1,'REF CAs'!$A$1:$F$32,4,0) -> 4 | I5: =VLOOKUP('Select an authority'!$A$1,'REF CAs'!$A$1:$F$32,4,0) -> 4
A6: 7 | E6: =VLOOKUP('Select an authority'!$A$1,'REF CAs'!$A$1:$F$32,5,0) -> 26 | I6: =VLOOKUP('Select an authority'!$A$1,'REF CAs'!$A$1:$F$32,5,0) -> 26
A7: 20 | E7: =VLOOKUP('Select an authority'!$A$1,'REF CAs'!$A$1:$F$32,6,0) -> 19 | I7: =VLOOKUP('Select an authority'!$A$1,'REF CAs'!$A$1:$F$32,6,0) -> 19
A15: =IF(Z21="*","[text statement not available due to suppression of data for confidentiality]",IF(Y21="","[text statement not available due to suppression of data for confidentiality]","* The number of de-registrations in "&A21&" in "&Z19&" is "&ROUND(Z21,0)&" ("&Y45&ROUND((SQRT((Y21*100)^2)),1)&"% from "&ROUND(V21,0)&" in "&V19&")")) -> * The number of de-registrations in Dumfries & Galloway in 2022 is 72 (an increase of 35.8% from 53 in 2021)
A16: =IF(Y30="","[text statement not available due to suppression of data for confidentiality]","* The comparator authorities show "&Y47&ROUND(SQRT((Y30*100)^2),1)&"%, while the estimated Scotland figures show "&Y48&ROUND(SQRT((100*Y32)^2),1)&"%") -> * The comparator authorities show an increase of 4.3%, while the estimated Scotland figures show a decrease of 15.4%
A17: =IF(AB21="*","[text statement not available due to suppression of data for confidentiality]",IF(AB30="*","[text statement not available due to suppression of data for confidentiality]","* The rate (per 1,000 pop 0-15) is "&ROUND(AB21,1)&". This is "&AC41&" the comparator average rate of "&ROUND(AB30,1)&", and "&AC42&" the estimated AJ7Scotland average rate of "&ROUND(AB32,1))) -> * The rate (per 1,000 pop 0-15) is 3.1. This is greater than the comparator average rate of 2.3, and less than the estimated AJ7Scotland average rate of 3.7
B19: 2016 | D19: 2016 | E19: 2016 | F19: 2017 | H19: 2017 | I19: 2017 | J19: 2018 | L19: 2018 | M19: 2018 | N19: 2019 | P19: 2019 | Q19: 2019 | R19: 2020 | T19: 2020 | U19: 2020 | V19: 2021 | X19: 2021 | Y19: 2021 | Z19: 2022 | AB19: 2022 | AC19: 2022
B20: Number | C20: ='DATA CP DEREG'!#REF! ->  | D20: Rate | E20: % change | F20: Number | G20: ='DATA CP DEREG'!#REF! ->  | H20: Rate | I20: % change | J20: Number | K20: ='DATA CP DEREG'!#REF! ->  | L20: Rate | M20: % change | N20: =J20 -> Number | O20: ='DATA CP DEREG'!#REF! ->  | P20: Rate | Q20: % change | R20: =N20 -> Number | S20: ='DATA CP DEREG'!#REF! ->  | T20: Rate | U20: % change | V20: =R20 -> Number | W20: ='DATA CP DEREG'!#REF! ->  | X20: Rate | Y20: % change | Z20: =V20 -> Number | AA20: =W20 ->  | AB20: =X20 -> Rate | AC20: Quartile
A21: =OFFSET('REF EA Name'!$B$2,'Select an authority'!$A$1,0) -> Dumfries & Galloway | B21: =OFFSET('DATA CP DEREG'!B3,'Select an authority'!$A$1,0) -> 136 | D21: =OFFSET('DATA CP DEREG'!$S$3,'Select an authority'!$A$1,0) -> 5.759295333 | E21: =IF(B21=0,"",F21/B21-1) -> 0.02205882353 | F21: =OFFSET('DATA CP DEREG'!C3,'Select an authority'!$A$1,0) -> 139 | H21: =OFFSET('DATA CP DEREG'!$T$3,'Select an authority'!$A$1,0) -> 5.918167497 | I21: =IF(F21=0,"",J21/F21-1) -> 0.2661870504 | J21: =OFFSET('DATA CP DEREG'!D3,'Select an authority'!$A$1,0) -> 176 | L21: =OFFSET('DATA CP DEREG'!$U$3,'Select an authority'!$A$1,0) -> 7.513661202 | M21: =IF(J21=0,"",N21/J21-1) -> 0.2329545455 | N21: =OFFSET('DATA CP DEREG'!E3,'Select an authority'!$A$1,0) -> 217 | P21: =OFFSET('DATA CP DEREG'!$V$3,'Select an authority'!$A$1,0) -> 9.336144215 | Q21: =IF(N21=0,"",R21/N21-1) -> -0.8433179724 | R21: =OFFSET('DATA CP DEREG'!F3,'Select an authority'!$A$1,0) -> 34 | T21: =OFFSET('DATA CP DEREG'!$W$3,'Select an authority'!$A$1,0) -> 1.47505423 | U21: =IF(R21=0,"",V21/R21-1) -> 0.5588235294 | V21: =OFFSET('DATA CP DEREG'!G3,'Select an authority'!$A$1,0) -> 53 | X21: =OFFSET('DATA CP DEREG'!$X$3,'Select an authority'!$A$1,0) -> 2.316231099 | Y21: =IF(V21=0,"",Z21/V21-1) -> 0.358490566 | Z21: =OFFSET('DATA CP DEREG'!H3,'Select an authority'!$A$1,0) -> 72 | AB21: =OFFSET('DATA CP DEREG'!$Y$3,'Select an authority'!$A$1,0) -> 3.146578096 | AC21: =IF(AB21="*","",IF(RANK(AB21,'DATA CP DEREG'!$Y$4:$Y$35)<9,1,IF(RANK(AB21,'DATA CP DEREG'!$Y$4:$Y$35)<17,2,IF(RANK(AB21,'DATA CP DEREG'!$Y$4:$Y$35)<25,3,4)))) -> 3
A23: Comparator Authorities:
A24: =OFFSET('REF EA Name'!$B$2, A3,0) -> East Lothian | B24: =IF($A3=33,"",OFFSET('DATA CP DEREG'!$B$3,$A3,0)) -> 45 | C24: =OFFSET('DATA CP DEREG'!$J$3,$A3,0) -> 18989 | D24: =IF($A3=33,"",B24*1000/C24) -> 2.369793038 | E24: =IF($A3=33,"",IF(B24=0,"",F24/B24-1)) -> 0.4222222222 | F24: =IF($A3=33,"",OFFSET('DATA CP DEREG'!$C$3,$A3,0)) -> 64 | G24: =OFFSET('DATA CP DEREG'!$K$3,$A3,0) -> 19051 | H24: =IF($A3=33,"",F24*1000/G24) -> 3.359403706 | I24: =IF($A3=33,"",IF(F24=0,"",J24/F24-1)) -> 0.375 | J24: =IF($A3=33,"",OFFSET('DATA CP DEREG'!$D$3,$A3,0)) -> 88 | K24: =OFFSET('DATA CP DEREG'!$L$3,$A3,0) -> 19350 | L24: =IF($A3=33,"",J24*1000/K24) -> 4.547803618 | M24: =IF($A3=33,"",IF(J24=0,"",N24/J24-1)) -> -0.2727272727 | N24: =IF($A3=33,"",OFFSET('DATA CP DEREG'!$E$3,$A3,0)) -> 64 | O24: =OFFSET('DATA CP DEREG'!$M$3,$A3,0) -> 19700 | P24: =IF($A3=33,"",N24*1000/O24) -> 3.248730964 | Q24: =IF($A3=33,"",IF(N24=0,"",R24/N24-1)) -> 0.015625 | R24: =IF($A3=33,"",OFFSET('DATA CP DEREG'!$F$3,$A3,0)) -> 65 | S24: =OFFSET('DATA CP DEREG'!$N$3,$A3,0) -> 19701 | T24: =IF($A3=33,"",R24*1000/S24) -> 3.299324907 | U24: =IF($A3=33,"",V24/R24-1) -> 0.01538461538 | V24: =IF($A3=33,"",OFFSET('DATA CP DEREG'!$G$3,$A3,0)) -> 66 | W24: =OFFSET('DATA CP DEREG'!$O$3,$A3,0) -> 19822 | X24: =IF($A3=33,"",V24*1000/W24) -> 3.32963374 | Y24: =IF($A3=33,"",IF(V24=0,"",Z24/V24-1)) -> -0.07575757576 | Z24: =IF($A3=33,"",OFFSET('DATA CP DEREG'!$H$3,$A3,0)) -> 61 | AA24: =OFFSET('DATA CP DEREG'!$P$3,$A3,0) -> 19822 | AB24: =IF($A3=33,"",Z24*1000/AA24) -> 3.07738876 | AC24: =IF(AB24="*","",IF(A3<33,IF(RANK(AB24,'DATA CP DEREG'!$Y$4:$Y$35)<9,1,IF(RANK(AB24,'DATA CP DEREG'!$Y$4:$Y$35)<17,2,IF(RANK(AB24,'DATA CP DEREG'!$Y$4:$Y$35)<25,3,4))),"")) -> 3
A25: =OFFSET('REF EA Name'!$B$2,A4,0) -> East Renfrewshire | B25: =IF($A4=33,"",OFFSET('DATA CP DEREG'!$B$3,$A4,0)) -> 50 | C25: =OFFSET('DATA CP DEREG'!$J$3,$A4,0) -> 18662 | D25: =IF($A4=33,"",B25*1000/C25) -> 2.679241239 | E25: =IF($A4=33,"",IF(B25=0,"",F25/B25-1)) -> -0.48 | F25: =IF($A4=33,"",OFFSET('DATA CP DEREG'!$C$3,$A4,0)) -> 26 | G25: =OFFSET('DATA CP DEREG'!$K$3,$A4,0) -> 19029 | H25: =IF($A4=33,"",F25*1000/G25) -> 1.366335593 | I25: =IF($A4=33,"",IF(F25=0,"",J25/F25-1)) -> -0.1538461538 | J25: =IF($A4=33,"",OFFSET('DATA CP DEREG'!$D$3,$A4,0)) -> 22 | K25: =OFFSET('DATA CP DEREG'!$L$3,$A4,0) -> 19322 | L25: =IF($A4=33,"",J25*1000/K25) -> 1.138598489 | M25: =IF($A4=33,"",IF(J25=0,"",N25/J25-1)) -> -0.09090909091 | N25: =IF($A4=33,"",OFFSET('DATA CP DEREG'!$E$3,$A4,0)) -> 20 | O25: =OFFSET('DATA CP DEREG'!$M$3,$A4,0) -> 19525 | P25: =IF($A4=33,"",N25*1000/O25) -> 1.024327785 | Q25: =IF($A4=33,"",IF(N25=0,"",R25/N25-1)) -> 0.25 | R25: =IF($A4=33,"",OFFSET('DATA CP DEREG'!$F$3,$A4,0)) -> 25 | S25: =OFFSET('DATA CP DEREG'!$N$3,$A4,0) -> 19646 | T25: =IF($A4=33,"",R25*1000/S25) -> 1.272523669 | U25: =IF($A4=33,"",V25/R25-1) -> -0.24 | V25: =IF($A4=33,"",OFFSET('DATA CP DEREG'!$G$3,$A4,0)) -> 19 | W25: =OFFSET('DATA CP DEREG'!$O$3,$A4,0) -> 19701 | X25: =IF($A4=33,"",V25*1000/W25) -> 0.9644180498 | Y25: =IF($A4=33,"",IF(V25=0,"",Z25/V25-1)) -> 0.2105263158 | Z25: =IF($A4=33,"",OFFSET('DATA CP DEREG'!$H$3,$A4,0)) -> 23 | AA25: =OFFSET('DATA CP DEREG'!$P$3,$A4,0) -> 19701 | AB25: =IF($A4=33,"",Z25*1000/AA25) -> 1.167453429 | AC25: =IF(AB25="*","",IF(A4<33,IF(RANK(AB25,'DATA CP DEREG'!$Y$4:$Y$35)<9,1,IF(RANK(AB25,'DATA CP DEREG'!$Y$4:$Y$35)<17,2,IF(RANK(AB25,'DATA CP DEREG'!$Y$4:$Y$35)<25,3,4))),"")) -> 4
A26: =OFFSET('REF EA Name'!$B$2,A5,0) -> South Ayrshire | B26: =IF($A5=33,"",OFFSET('DATA CP DEREG'!$B$3,$A5,0)) -> 72 | C26: =OFFSET('DATA CP DEREG'!$J$3,$A5,0) -> 17760 | D26: =IF($A5=33,"",B26*1000/C26) -> 4.054054054 | E26: =IF($A5=33,"",IF(B26=0,"",F26/B26-1)) -> 0.5138888889 | F26: =IF($A5=33,"",OFFSET('DATA CP DEREG'!$C$3,$A5,0)) -> 109 | G26: =OFFSET('DATA CP DEREG'!$K$3,$A5,0) -> 17716 | H26: =IF($A5=33,"",F26*1000/G26) -> 6.152630391 | I26: =IF($A5=33,"",IF(F26=0,"",J26/F26-1)) -> -0.1376146789 | J26: =IF($A5=33,"",OFFSET('DATA CP DEREG'!$D$3,$A5,0)) -> 94 | K26: =OFFSET('DATA CP DEREG'!$L$3,$A5,0) -> 17638 | L26: =IF($A5=33,"",J26*1000/K26) -> 5.329402427 | M26: =IF($A5=33,"",IF(J26=0,"",N26/J26-1)) -> -0.1063829787 | N26: =IF($A5=33,"",OFFSET('DATA CP DEREG'!$E$3,$A5,0)) -> 84 | O26: =OFFSET('DATA CP DEREG'!$M$3,$A5,0) -> 17608 | P26: =IF($A5=33,"",N26*1000/O26) -> 4.770558837 | Q26: =IF($A5=33,"",IF(N26=0,"",R26/N26-1)) -> -0.3452380952 | R26: =IF($A5=33,"",OFFSET('DATA CP DEREG'!$F$3,$A5,0)) -> 55 | S26: =OFFSET('DATA CP DEREG'!$N$3,$A5,0) -> 17418 | T26: =IF($A5=33,"",R26*1000/S26) -> 3.157653003 | U26: =IF($A5=33,"",V26/R26-1) -> -0.2181818182 | V26: =IF($A5=33,"",OFFSET('DATA CP DEREG'!$G$3,$A5,0)) -> 43 | W26: =OFFSET('DATA CP DEREG'!$O$3,$A5,0) -> 17244 | X26: =IF($A5=33,"",V26*1000/W26) -> 2.49362097 | Y26: =IF($A5=33,"",IF(V26=0,"",Z26/V26-1)) -> -0.2790697674 | Z26: =IF($A5=33,"",OFFSET('DATA CP DEREG'!$H$3,$A5,0)) -> 31 | AA26: =OFFSET('DATA CP DEREG'!$P$3,$A5,0) -> 17244 | AB26: =IF($A5=33,"",Z26*1000/AA26) -> 1.797726746 | AC26: =IF(AB26="*","",IF(A5<33,IF(RANK(AB26,'DATA CP DEREG'!$Y$4:$Y$35)<9,1,IF(RANK(AB26,'DATA CP DEREG'!$Y$4:$Y$35)<17,2,IF(RANK(AB26,'DATA CP DEREG'!$Y$4:$Y$35)<25,3,4))),"")) -> 4
A27: =OFFSET('REF EA Name'!$B$2,A6,0) -> Dumfries & Galloway | B27: =IF($A6=33,"",OFFSET('DATA CP DEREG'!$B$3,$A6,0)) -> 136 | C27: =OFFSET('DATA CP DEREG'!$J$3,$A6,0) -> 23614 | D27: =IF($A6=33,"",B27*1000/C27) -> 5.759295333 | E27: =IF($A6=33,"",IF(B27=0,"",F27/B27-1)) -> 0.02205882353 | F27: =IF($A6=33,"",OFFSET('DATA CP DEREG'!$C$3,$A6,0)) -> 139 | G27: =OFFSET('DATA CP DEREG'!$K$3,$A6,0) -> 23487 | H27: =IF($A6=33,"",F27*1000/G27) -> 5.918167497 | I27: =IF($A6=33,"",IF(F27=0,"",J27/F27-1)) -> 0.2661870504 | J27: =IF($A6=33,"",OFFSET('DATA CP DEREG'!$D$3,$A6,0)) -> 176 | K27: =OFFSET('DATA CP DEREG'!$L$3,$A6,0) -> 23424 | L27: =IF($A6=33,"",J27*1000/K27) -> 7.513661202 | M27: =IF($A6=33,"",IF(J27=0,"",N27/J27-1)) -> 0.2329545455 | N27: =IF($A6=33,"",OFFSET('DATA CP DEREG'!$E$3,$A6,0)) -> 217 | O27: =OFFSET('DATA CP DEREG'!$M$3,$A6,0) -> 23243 | P27: =IF($A6=33,"",N27*1000/O27) -> 9.336144215 | Q27: =IF($A6=33,"",IF(N27=0,"",R27/N27-1)) -> -0.8433179724 | R27: =IF($A6=33,"",OFFSET('DATA CP DEREG'!$F$3,$A6,0)) -> 34 | S27: =OFFSET('DATA CP DEREG'!$N$3,$A6,0) -> 23050 | T27: =IF($A6=33,"",R27*1000/S27) -> 1.47505423 | U27: =IF($A6=33,"",V27/R27-1) -> 0.5588235294 | V27: =IF($A6=33,"",OFFSET('DATA CP DEREG'!$G$3,$A6,0)) -> 53 | W27: =OFFSET('DATA CP DEREG'!$O$3,$A6,0) -> 22882 | X27: =IF($A6=33,"",V27*1000/W27) -> 2.316231099 | Y27: =IF($A6=33,"",IF(V27=0,"",Z27/V27-1)) -> 0.358490566 | Z27: =IF($A6=33,"",OFFSET('DATA CP DEREG'!$H$3,$A6,0)) -> 72 | AA27: =OFFSET('DATA CP DEREG'!$P$3,$A6,0) -> 22882 | AB27: =IF($A6=33,"",Z27*1000/AA27) -> 3.146578096 | AC27: =IF(AB27="*","",IF(A6<33,IF(RANK(AB27,'DATA CP DEREG'!$Y$4:$Y$35)<9,1,IF(RANK(AB27,'DATA CP DEREG'!$Y$4:$Y$35)<17,2,IF(RANK(AB27,'DATA CP DEREG'!$Y$4:$Y$35)<25,3,4))),"")) -> 3
A28: =OFFSET('REF EA Name'!$B$2,A7,0) -> Na h-Eileanan Siar | B28: =IF($A7=33,"",OFFSET('DATA CP DEREG'!$B$3,$A7,0)) -> 4 | C28: =OFFSET('DATA CP DEREG'!$J$3,$A7,0) -> 4307 | D28: =IF($A7=33,"",B28*1000/C28) -> 0.9287206873 | E28: =IF($A7=33,"",IF(B28=0,"",F28/B28-1)) -> 0.5 | F28: =IF($A7=33,"",OFFSET('DATA CP DEREG'!$C$3,$A7,0)) -> 6 | G28: =OFFSET('DATA CP DEREG'!$K$3,$A7,0) -> 4367 | H28: =IF($A7=33,"",F28*1000/G28) -> 1.373940921 | I28: =IF($A7=33,"",IF(F28=0,"",J28/F28-1)) -> 0.8333333333 | J28: =IF($A7=33,"",OFFSET('DATA CP DEREG'!$D$3,$A7,0)) -> 11 | K28: =OFFSET('DATA CP DEREG'!$L$3,$A7,0) -> 4328 | L28: =IF($A7=33,"",J28*1000/K28) -> 2.541589649 | M28: =IF($A7=33,"",IF(J28=0,"",N28/J28-1)) -> -0.4545454545 | N28: =IF($A7=33,"",OFFSET('DATA CP DEREG'!$E$3,$A7,0)) -> 6 | O28: =OFFSET('DATA CP DEREG'!$M$3,$A7,0) -> 4254 | P28: =IF($A7=33,"",N28*1000/O28) -> 1.410437236 | Q28: =IF($A7=33,"",IF(N28=0,"",R28/N28-1)) -> 0.6666666667 | R28: =IF($A7=33,"",OFFSET('DATA CP DEREG'!$F$3,$A7,0)) -> 10 | S28: =OFFSET('DATA CP DEREG'!$N$3,$A7,0) -> 4135 | T28: =IF($A7=33,"",R28*1000/S28) -> 2.418379686 | U28: =IF($A7=33,"",V28/R28-1) -> -0.3 | V28: =IF($A7=33,"",OFFSET('DATA CP DEREG'!$G$3,$A7,0)) -> 7 | W28: =OFFSET('DATA CP DEREG'!$O$3,$A7,0) -> 4060 | X28: =IF($A7=33,"",V28*1000/W28) -> 1.724137931 | Y28: =IF($A7=33,"",IF(V28=0,"",Z28/V28-1)) -> 0.2857142857 | Z28: =IF($A7=33,"",OFFSET('DATA CP DEREG'!$H$3,$A7,0)) -> 9 | AA28: =OFFSET('DATA CP DEREG'!$P$3,$A7,0) -> 4060 | AB28: =IF($A7=33,"",Z28*1000/AA28) -> 2.216748768 | AC28: =IF(AB28="*","",IF(A7<33,IF(RANK(AB28,'DATA CP DEREG'!$Y$4:$Y$35)<9,1,IF(RANK(AB28,'DATA CP DEREG'!$Y$4:$Y$35)<17,2,IF(RANK(AB28,'DATA CP DEREG'!$Y$4:$Y$35)<25,3,4))),"")) -> 4
A30: Comparator authorities | B30: =SUM(B24:B28) -> 307 | C30: =SUM(C24:C28) -> 83332 | D30: =1000*B30/(SUMIF(B24,">0",C24)+SUMIF(B25,">0",C25)+SUMIF(B26,">0",C26)+SUMIF(B27,">0",C27)+SUMIF(B28,">0",C28)) -> 3.684058945 | E30: =IF(B30=0,"",SUM(F24:F28)/SUM(B24:B28)-1) -> 0.1205211726 | F30: =SUM(F24:F28) -> 344 | G30: =SUM(G24:G28) -> 83650 | H30: =1000*F30/(SUMIF(F24,">0",G24)+SUMIF(F25,">0",G25)+SUMIF(F26,">0",G26)+SUMIF(F27,">0",G27)+SUMIF(F28,">0",G28)) -> 4.112372983 | I30: =IF(F30=0,"",SUM(J24:J28)/SUM(F24:F28)-1) -> 0.136627907 | J30: =SUM(J24:J28) -> 391 | K30: =SUM(K24:K28) -> 84062 | L30: =1000*J30/(SUMIF(J24,">0",K24)+SUMIF(J25,">0",K25)+SUMIF(J26,">0",K26)+SUMIF(J27,">0",K27)+SUMIF(J28,">0",K28)) -> 4.651328781 | M30: =IF(J30=0,"",SUM(N24:N28)/SUM(J24:J28)-1) -> 0 | N30: =SUM(N24:N28) -> 391 | O30: =SUM(O24:O28) -> 84330 | P30: =1000*N30/(SUMIF(N24,">0",O24)+SUMIF(N25,">0",O25)+SUMIF(N26,">0",O26)+SUMIF(N27,">0",O27)+SUMIF(N28,">0",O28)) -> 4.636546899 | Q30: =IF(N30=0,"",SUM(R24:R28)/SUM(N24:N28)-1) -> -0.5166240409 | R30: =SUM(R24:R28) -> 189 | S30: =SUM(S24:S28) -> 83950 | T30: =1000*R30/(SUMIF(R24,">0",S24)+SUMIF(R25,">0",S25)+SUMIF(R26,">0",S26)+SUMIF(R27,">0",S27)+SUMIF(R28,">0",S28)) -> 2.251340083 | U30: =IF(R30=0,"",SUM(V24:V28)/SUM(R24:R28)-1) -> -0.005291005291 | V30: =SUM(V24:V28) -> 188 | W30: =SUM(W24:W28) -> 83709 | X30: =1000*V30/(SUMIF(V24,">0",W24)+SUMIF(V25,">0",W25)+SUMIF(V26,">0",W26)+SUMIF(V27,">0",W27)+SUMIF(V28,">0",W28)) -> 2.245875593 | Y30: =IF(V30=0,"",SUM(Z24:Z28)/SUM(V24:V28)-1) -> 0.04255319149 | Z30: =SUM(Z24:Z28) -> 196 | AA30: =SUM(AA24:AA28) -> 83709 | AB30: =1000*Z30/(SUMIF(Z24,">0",AA24)+SUMIF(Z25,">0",AA25)+SUMIF(Z26,">0",AA26)+SUMIF(Z27,">0",AA27)+SUMIF(Z28,">0",AA28)) -> 2.341444767
A32: Scotland [Note 1],[Note 2] | B32: ='DATA CP DEREG'!$B$36 -> 4299 | C32: ='DATA CP DEREG'!$J$36 -> 915917 | D32: =B32*1000/C32 -> 4.69365674 | E32: =IF(B32=0,"",F32/B32-1) -> 0.02488950919 | F32: ='DATA CP DEREG'!$C$36 -> 4406 | G32: ='DATA CP DEREG'!$K$36 -> 917442 | H32: =F32*1000/G32 -> 4.802483427 | I32: =IF(F32=0,"",J32/F32-1) -> -0.02042669088 | J32: ='DATA CP DEREG'!$D$36 -> 4316 | K32: ='DATA CP DEREG'!$L$36 -> 919502 | L32: =J32*1000/K32 -> 4.693845147 | M32: =IF(J32=0,"",N32/J32-1) -> -0.01645041705 | N32: ='DATA CP DEREG'!$E$36 -> 4245 | O32: ='DATA CP DEREG'!$M$36 -> 921397 | P32: =N32*1000/O32 -> 4.607134601 | Q32: =IF(N32=0,"",R32/N32-1) -> -0.08080094229 | R32: ='DATA CP DEREG'!$F$36 -> 3902 | S32: ='DATA CP DEREG'!$N$36 -> 916783 | T32: =R32*1000/S32 -> 4.256187124 | U32: =IF(R32=0,"",V32/R32-1) -> 0.01870835469 | V32: ='DATA CP DEREG'!$G$36 -> 3975 | W32: ='DATA CP DEREG'!$O$36 -> 911522 | X32: =V32*1000/W32 -> 4.360838246 | Y32: =IF(V32=0,"",Z32/V32-1) -> -0.1537106918 | Z32: ='DATA CP DEREG'!$H$36 -> 3364 | AA32: ='DATA CP DEREG'!$P$36 -> 911522 | AB32: =Z32*1000/AA32 -> 3.690530783
A34: Notes
A35: [Note 1] | B35: =IF('DATA CP CON'!A38="","",'DATA CP CON'!A38) -> Figures for 2022 are provisional and may be revised with the publication of 2023 statistics.
A36: [Note 2] | B36: =IF('DATA CP CON'!A39="","",'DATA CP CON'!A39) -> Population figures source: NRS mid-year population estimates for 2016-2021
A37: [Note 3] | B37: =IF('DATA CP CON'!A40="","",'DATA CP CON'!A40) -> Source: Scottish Government CP Returns
Q41: =Q21-Q30 -> -0.3266939314 | T41: =T21-T30 -> -0.7762858534 | U41: =U21-U30 -> 0.5641145347 | X41: =X21-X30 -> 0.07035550585 | Y41: =Y21-Y30 -> 0.3159373745 | AB41: =AB21-AB30 -> 0.8051333293 | AC41: =IF(AB41<-0.5,"less than",IF(AB41>0.5,"greater than","similar to")) -> greater than
Q42: =Q21-Q32 -> -0.7625170301 | T42: =T21-T32 -> -2.781132894 | U42: =U21-U32 -> 0.5401151747 | X42: =X21-X32 -> -2.044607148 | Y42: =Y21-Y32 -> 0.5122012579 | AB42: =AB21-AB32 -> -0.5439526863 | AC42: =IF(AB42<-0.5,"less than",IF(AB42>0.5,"greater than","similar to")) -> less than
Q44: =R21-N21 -> -183 | U44: =V21-R21 -> 19 | Y44: =Z21-V21 -> 19
Q45: =IF(Q44<0,"a decrease of ",IF(Q44>=0,"an increase of ")) -> a decrease of | U45: =IF(U44<0,"a decrease of ",IF(U44>=0,"an increase of ")) -> an increase of | Y45: =IF(Y44<0,"a decrease of ",IF(Y44>=0,"an increase of ")) -> an increase of
Q47: =IF(Q30<0,"a decrease of ",IF(Q30>=0,"an increase of ")) -> a decrease of | U47: =IF(U30<0,"a decrease of ",IF(U30>=0,"an increase of ")) -> a decrease of | Y47: =IF(Y30<0,"a decrease of ",IF(Y30>=0,"an increase of ")) -> an increase of
Q48: =IF(Q32<0,"a decrease of ",IF(Q32>=0,"an increase of ")) -> a decrease of | U48: =IF(U32<0,"a decrease of ",IF(U32>=0,"an increase of ")) -> an increase of | Y48: =IF(Y32<0,"a decrease of ",IF(Y32>=0,"an increase of ")) -> a decrease of

Sheet DATA CP CON (hidden)
A1: Child Protection: Case conferences: 31 July 2016-2022
A2: Number of child protection case conferences: 31 July 2016-2022 | J2: Population Aged 0-15 | R2: Number of child protection referrals that resulted in a case conference per 1,000 children: year ended 31 July 2016-2022
A3: Council | B3: 2016 | C3: 2017 | D3: 2018 | E3: 2019 | F3: 2020 | G3: 2021 | H3: 2022 | J3: 2016 | K3: 2017 | L3: 2018 | M3: 2019 | N3: 2020 | O3: 2021 | P3: 2022 | R3: Council | S3: =B3 -> 2016 | T3: =C3 -> 2017 | U3: 2018 | V3: 2019 | W3: 2020 | X3: 2021 | Y3: 2022
A4: Aberdeen City | B4: 196 | C4: 205 | D4: 176 | E4: 208 | F4: 195 | G4: 160 | H4: 175 | J4: 34187 | K4: 34495 | L4: 34833 | M4: 35423 | N4: 35789 | O4: 35860 | P4: 35860 | R4: Aberdeen City | S4: =IFERROR(B4*1000/J4,"*") -> 5.733173428 | T4: =IFERROR(C4*1000/K4,"*") -> 5.942890274 | U4: =IFERROR(D4*1000/L4,"*") -> 5.05267993 | V4: =IFERROR(E4*1000/M4,"*") -> 5.871891144 | W4: =IFERROR(F4*1000/N4,"*") -> 5.448601526 | X4: =IFERROR(G4*1000/O4,"*") -> 4.461795873 | Y4: =IFERROR(H4*1000/P4,"*") -> 4.880089236
A5: Aberdeenshire | B5: 117 | C5: 134 | D5: 127 | E5: 154 | F5: 165 | G5: 117 | H5: 126 | J5: 48871 | K5: 48888 | L5: 49033 | M5: 49016 | N5: 48674 | O5: 48578 | P5: 48578 | R5: Aberdeenshire | S5: 2.394057826 | T5: 2.740958927 | U5: 2.590092387 | V5: 3.141831239 | W5: 3.389900152 | X5: 2.408497674 | Y5: 2.593766726
A6: Angus | B6: 181 | C6: 171 | D6: 202 | E6: 143 | F6: 130 | G6: 111 | H6: 98 | J6: 19445 | K6: 19288 | L6: 19253 | M6: 19145 | N6: 18908 | O6: 18639 | P6: 18639 | R6: Angus | S6: 9.308305477 | T6: 8.865615927 | U6: 10.4918714 | V6: 7.469313137 | W6: 6.875396657 | X6: 5.95525511 | Y6: 5.2577928
A7: Argyll & Bute | B7: 73 | C7: 92 | D7: 80 | E7: 68 | F7: 75 | G7: 54 | H7: 38 | J7: 13238 | K7: 13163 | L7: 13024 | M7: 12906 | N7: 12577 | O7: 12441 | P7: 12441 | R7: Argyll & Bute | S7: 5.514428161 | T7: 6.989288156 | U7: 6.142506143 | V7: 5.268867194 | W7: 5.96326628 | X7: 4.340487099 | Y7: 3.054416848
A8: City of Edinburgh | B8: 482 | C8: 368 | D8: 312 | E8: 201 | F8: 199 | G8: 200 | H8: 175 | J8: 77364 | K8: 78052 | L8: 78501 | M8: 79067 | N8: 79150 | O8: 78826 | P8: 78826 | R8: City of Edinburgh | S8: 6.230287989 | T8: 4.714805514 | U8: 3.974471663 | V8: 2.542147799 | W8: 2.514213519 | X8: 2.537233908 | Y8: 2.220079669
A9: Clackmannanshire | B9: 26 | C9: 59 | D9: 76 | E9: 71 | F9: 111 | G9: 100 | H9: 37 | J9: 9024 | K9: 9020 | L9: 8980 | M9: 8946 | N9: 8897 | O9: 8877 | P9: 8877 | R9: Clackmannanshire | S9: 2.881205674 | T9: 6.541019956 | U9: 8.46325167 | V9: 7.936507937 | W9: 12.47611554 | X9: 11.26506703 | Y9: 4.1680748
A10: Dumfries and Galloway | B10: 149 | C10: 227 | D10: 284 | E10: 209 | F10: 69 | G10: 93 | H10: 90 | J10: 23614 | K10: 23487 | L10: 23424 | M10: 23243 | N10: 23050 | O10: 22882 | P10: 22882 | R10: Dumfries and Galloway | S10: 6.309816211 | T10: 9.66492102 | U10: 12.12431694 | V10: 8.991954567 | W10: 2.993492408 | X10: 4.064330041 | Y10: 3.93322262
A11: Dundee City | B11: 174 | C11: 153 | D11: 157 | E11: 180 | F11: 157 | G11: 147 | H11: 146 | J11: 23849 | K11: 23998 | L11: 24016 | M11: 24044 | N11: 23958 | O11: 23704 | P11: 23704 | R11: Dundee City | S11: 7.295903392 | T11: 6.375531294 | U11: 6.537308461 | V11: 7.486275162 | W11: 6.553134652 | X11: 6.201484981 | Y11: 6.159298009
A12: East Ayrshire | B12: 196 | C12: 230 | D12: 289 | E12: 257 | F12: 234 | G12: 182 | H12: 134 | J12: 21259 | K12: 21164 | L12: 21119 | M12: 21053 | N12: 20869 | O12: 20792 | P12: 20792 | R12: East Ayrshire | S12: 9.21962463 | T12: 10.86751087 | U12: 13.68436005 | V12: 12.20728637 | W12: 11.21280368 | X12: 8.753366679 | Y12: 6.444786456
A13: East Dunbartonshire | B13: 91 | C13: 88 | D13: 116 | E13: 103 | F13: 87 | G13: 88 | H13: 84 | J13: 18810 | K13: 19061 | L13: 19224 | M13: 19398 | N13: 19500 | O13: 19528 | P13: 19528 | R13: East Dunbartonshire | S13: 4.837852206 | T13: 4.616756728 | U13: 6.034124012 | V13: 5.309825755 | W13: 4.461538462 | X13: 4.506349857 | Y13: 4.301515772
A14: East Lothian | B14: 79 | C14: 85 | D14: 85 | E14: 92 | F14: 74 | G14: 58 | H14: 77 | J14: 18989 | K14: 19051 | L14: 19350 | M14: 19700 | N14: 19701 | O14: 19822 | P14: 19822 | R14: East Lothian | S14: 4.160303334 | T14: 4.461708047 | U14: 4.392764858 | V14: 4.670050761 | W14: 3.75615451 | X14: 2.926041772 | Y14: 3.884572697
A15: East Renfrewshire | B15: 38 | C15: 50 | D15: 26 | E15: 54 | F15: 20 | G15: 18 | H15: 25 | J15: 18662 | K15: 19029 | L15: 19322 | M15: 19525 | N15: 19646 | O15: 19701 | P15: 19701 | R15: East Renfrewshire | S15: 2.036223342 | T15: 2.627568448 | U15: 1.345616396 | V15: 2.765685019 | W15: 1.018018935 | X15: 0.9136592051 | Y15: 1.268971118
A16: Falkirk | B16: 137 | C16: 150 | D16: 107 | E16: 132 | F16: 192 | G16: 157 | H16: 190 | J16: 28359 | K16: 28329 | L16: 28230 | M16: 28112 | N16: 27886 | O16: 27564 | P16: 27564 | R16: Falkirk | S16: 4.830917874 | T16: 5.294927459 | U16: 3.790294013 | V16: 4.695503699 | W16: 6.885175357 | X16: 5.695835147 | Y16: 6.893048904
A17: Fife | B17: 347 | C17: 340 | D17: 379 | E17: 349 | F17: 328 | G17: 292 | H17: 272 | J17: 64372 | K17: 64333 | L17: 64473 | M17: 64552 | N17: 64152 | O17: 63680 | P17: 63680 | R17: Fife | S17: 5.390542472 | T17: 5.285001477 | U17: 5.87842973 | V17: 5.406493989 | W17: 5.112856965 | X17: 4.585427136 | Y17: 4.271356784
A18: Glasgow City | B18: 971 | C18: 769 | D18: 668 | E18: 709 | F18: 669 | G18: 558 | H18: 460 | J18: 98487 | K18: 99137 | L18: 99938 | M18: 100666 | N18: 100478 | O18: 99881 | P18: 99881 | R18: Glasgow City | S18: 9.85916923 | T18: 7.756942413 | U18: 6.684144169 | V18: 7.043093001 | W18: 6.658173929 | X18: 5.586648111 | Y18: 4.605480522
A19: Highland | B19: 194 | C19: 163 | D19: 175 | E19: 177 | F19: 175 | G19: 124 | H19: 140 | J19: 39972 | K19: 39555 | L19: 39335 | M19: 39036 | N19: 38490 | O19: 38130 | P19: 38130 | R19: Highland | S19: 4.853397378 | T19: 4.120844394 | U19: 4.448964027 | V19: 4.534276053 | W19: 4.54663549 | X19: 3.25203252 | Y19: 3.67164962
A20: Inverclyde | B20: 106 | C20: 95 | D20: 70 | E20: 92 | F20: 125 | G20: 116 | H20: 76 | J20: 12851 | K20: 12701 | L20: 12628 | M20: 12603 | N20: 12413 | O20: 12197 | P20: 12197 | R20: Inverclyde | S20: 8.24838534 | T20: 7.479726006 | U20: 5.543237251 | V20: 7.299849242 | W20: 10.07008781 | X20: 9.510535378 | Y20: 6.23104042
A21: Midlothian | B21: 126 | C21: 155 | D21: 131 | E21: 135 | F21: 114 | G21: 103 | H21: 99 | J21: 16884 | K21: 17229 | L21: 17590 | M21: 17953 | N21: 18089 | O21: 18281 | P21: 18281 | R21: Midlothian | S21: 7.462686567 | T21: 8.996459458 | U21: 7.447413303 | V21: 7.519634601 | W21: 6.302172591 | X21: 5.634265084 | Y21: 5.415458673
A22: Moray | B22: 97 | C22: 114 | D22: 91 | E22: 113 | F22: 50 | G22: 55 | H22: 60 | J22: 16527 | K22: 16362 | L22: 16173 | M22: 16145 | N22: 16037 | O22: 15941 | P22: 15941 | R22: Moray | S22: 5.86918376 | T22: 6.967363403 | U22: 5.62666172 | V22: 6.99907092 | W22: 3.11779011 | X22: 3.450222696 | Y22: 3.763879305
A23: Na h-Eileanan Siar | B23: 9 | C23: 10 | D23: 26 | E23: 19 | F23: 26 | G23: 42 | H23: 27 | J23: 4307 | K23: 4367 | L23: 4328 | M23: 4254 | N23: 4135 | O23: 4060 | P23: 4060 | R23: Na h-Eileanan Siar | S23: 2.089621546 | T23: 2.289901534 | U23: 6.007393715 | V23: 4.466384579 | W23: 6.287787183 | X23: 10.34482759 | Y23: 6.650246305
A24: North Ayrshire | B24: 175 | C24: 154 | D24: 300 | E24: 285 | F24: 298 | G24: 285 | H24: 220 | J24: 23128 | K24: 22901 | L24: 22780 | M24: 22468 | N24: 22280 | O24: 21891 | P24: 21891 | R24: North Ayrshire | S24: 7.566585956 | T24: 6.724597179 | U24: 13.16944688 | V24: 12.68470714 | W24: 13.37522442 | X24: 13.01904892 | Y24: 10.04979215
A25: North Lanarkshire | B25: 323 | C25: 331 | D25: 286 | E25: 361 | F25: 286 | G25: 273 | H25: 207 | J25: 63299 | K25: 63011 | L25: 62955 | M25: 62836 | N25: 62278 | O25: 61606 | P25: 61606 | R25: North Lanarkshire | S25: 5.102766236 | T25: 5.253051055 | U25: 4.542927488 | V25: 5.745114266 | W25: 4.592311892 | X25: 4.431386553 | Y25: 3.360062332
A26: Orkney Islands | B26: 16 | C26: 17 | D26: 18 | E26: 17 | F26: 15 | G26: 7 | H26: 18 | J26: 3516 | K26: 3545 | L26: 3544 | M26: 3582 | N26: 3571 | O26: 3553 | P26: 3553 | R26: Orkney Islands | S26: 4.550625711 | T26: 4.795486601 | U26: 5.079006772 | V26: 4.745951982 | W26: 4.20050406 | X26: 1.970166057 | Y26: 5.066141289
A27: Perth and Kinross | B27: 123 | C27: 111 | D27: 118 | E27: 162 | F27: 130 | G27: 111 | H27: 95 | J27: 24514 | K27: 24453 | L27: 24425 | M27: 24421 | N27: 24244 | O27: 24218 | P27: 24218 | R27: Perth and Kinross | S27: 5.017540997 | T27: 4.539320329 | U27: 4.83111566 | V27: 6.633634986 | W27: 5.36215146 | X27: 4.583367743 | Y27: 3.922702122
A28: Renfrewshire | B28: 221 | C28: 270 | D28: 213 | E28: 249 | F28: 225 | G28: 181 | H28: 201 | J28: 29954 | K28: 30039 | L28: 30171 | M28: 30267 | N28: 30182 | O28: 29784 | P28: 29784 | R28: Renfrewshire | S28: 7.377979569 | T28: 8.98831519 | U28: 7.059759372 | V28: 8.226781643 | W28: 7.454774369 | X28: 6.07708837 | Y28: 6.748589847
A29: Scottish Borders | B29: 91 | C29: 59 | D29: 88 | E29: 68 | F29: 44 | G29: 61 | H29: 64 | J29: 19002 | K29: 19026 | L29: 19046 | M29: 19023 | N29: 18824 | O29: 18723 | P29: 18723 | R29: Scottish Borders | S29: 4.788969582 | T29: 3.101019657 | U29: 4.620392733 | V29: 3.574620197 | W29: 2.337441564 | X29: 3.258024889 | Y29: 3.418255621
A30: Shetland Islands | B30: 28 | C30: 17 | D30: 15 | E30: 24 | F30: 15 | G30: 22 | H30: 18 | J30: 4233 | K30: 4233 | L30: 4205 | M30: 4198 | N30: 4158 | O30: 4104 | P30: 4104 | R30: Shetland Islands | S30: 6.61469407 | T30: 4.016064257 | U30: 3.567181926 | V30: 5.717008099 | W30: 3.607503608 | X30: 5.360623782 | Y30: 4.385964912
A31: South Ayrshire | B31: 130 | C31: 147 | D31: 109 | E31: 128 | F31: 64 | G31: 39 | H31: 52 | J31: 17760 | K31: 17716 | L31: 17638 | M31: 17608 | N31: 17418 | O31: 17244 | P31: 17244 | R31: South Ayrshire | S31: 7.31981982 | T31: 8.297584105 | U31: 6.179838984 | V31: 7.26942299 | W31: 3.674359858 | X31: 2.261656228 | Y31: 3.015541638
A32: South Lanarkshire | B32: 419 | C32: 384 | D32: 440 | E32: 322 | F32: 406 | G32: 351 | H32: 322 | J32: 54876 | K32: 55151 | L32: 55260 | M32: 55649 | N32: 55550 | O32: 55700 | P32: 55700 | R32: South Lanarkshire | S32: 7.635396166 | T32: 6.962702399 | U32: 7.962359754 | V32: 5.786267498 | W32: 7.308730873 | X32: 6.301615799 | Y32: 5.780969479
A33: Stirling | B33: 73 | C33: 61 | D33: 100 | E33: 63 | F33: 60 | G33: 79 | H33: 57 | J33: 15493 | K33: 15425 | L33: 15514 | M33: 15417 | N33: 15153 | O33: 14948 | P33: 14948 | R33: Stirling | S33: 4.711805331 | T33: 3.954619125 | U33: 6.445790899 | V33: 4.086398132 | W33: 3.959611958 | X33: 5.284987958 | Y33: 3.81321916
A34: West Dunbartonshire | B34: 159 | C34: 251 | D34: 221 | E34: 163 | F34: 153 | G34: 162 | H34: 125 | J34: 15764 | K34: 15790 | L34: 15705 | M34: 15647 | N34: 15484 | O34: 15234 | P34: 15234 | R34: West Dunbartonshire | S34: 10.08627252 | T34: 15.8961368 | U34: 14.07195161 | V34: 10.4173324 | W34: 9.881167657 | X34: 10.63410792 | Y34: 8.205330182
A35: West Lothian | B35: 160 | C35: 193 | D35: 170 | E35: 220 | F35: 209 | G35: 190 | H35: 227 | J35: 35307 | K35: 35443 | L35: 35485 | M35: 35494 | N35: 35242 | O35: 35133 | P35: 35133 | R35: West Lothian | S35: 4.53167927 | T35: 5.445362977 | U35: 4.790756658 | V35: 6.198230687 | W35: 5.930423926 | X35: 5.408020949 | Y35: 6.461161871
A36: Scotland | B36: 5707 | C36: 5653 | D36: 5655 | E36: 5528 | F36: 5100 | G36: 4536 | H36: 4135 | J36: 915917 | K36: 917442 | L36: 919502 | M36: 921397 | N36: 916783 | O36: 911522 | P36: 911522 | R36: Scotland | S36: 6.230913937 | T36: 6.161697415 | U36: 6.150068189 | V36: 5.999585412 | W36: 5.562930377 | X36: 4.976292399 | Y36: 4.536368842
A37: Notes
A38: Figures for 2022 are provisional and may be revised with the publication of 2023 statistics.
A39: Population figures source: NRS mid-year population estimates for 2016-2021
A40: Source: Scottish Government CP Returns
A41: Initial, pre-birth and transfer in case conferences

Sheet DATA CP REG (hidden)
A1: Child Protection: Registrations: 31 July 2016-2022
A2: Number of registrations following a case conference: 31 July 2016-2022 | J2: Population Aged 0-15 | R2: Number of registrations following a case conference per 1,000 children: 31 July 2016-2022
A3: Council | B3: 2016 | C3: 2017 | D3: 2018 | E3: 2019 | F3: 2020 | G3: 2021 | H3: 2022 | J3: ='DATA CP CON'!J3 -> 2016 | K3: ='DATA CP CON'!K3 -> 2017 | L3: ='DATA CP CON'!L3 -> 2018 | M3: ='DATA CP CON'!M3 -> 2019 | N3: ='DATA CP CON'!N3 -> 2020 | O3: ='DATA CP CON'!O3 -> 2021 | P3: ='DATA CP CON'!P3 -> 2022 | R3: Council | S3: ='DATA CP CON'!S3 -> 2016 | T3: ='DATA CP CON'!T3 -> 2017 | U3: ='DATA CP CON'!U3 -> 2018 | V3: ='DATA CP CON'!V3 -> 2019 | W3: ='DATA CP CON'!W3 -> 2020 | X3: ='DATA CP CON'!X3 -> 2021 | Y3: ='DATA CP CON'!Y3 -> 2022
A4: Aberdeen City | B4: 156 | C4: 164 | D4: 150 | E4: 162 | F4: 168 | G4: 141 | H4: 156 | J4: ='DATA CP CON'!J4 -> 34187 | K4: ='DATA CP CON'!K4 -> 34495 | L4: ='DATA CP CON'!L4 -> 34833 | M4: ='DATA CP CON'!M4 -> 35423 | N4: ='DATA CP CON'!N4 -> 35789 | O4: ='DATA CP CON'!O4 -> 35860 | P4: ='DATA CP CON'!P4 -> 35860 | R4: Aberdeen City | S4: =IFERROR(B4*1000/J4,"*") -> 4.563138035 | T4: =IFERROR(C4*1000/K4,"*") -> 4.754312219 | U4: =IFERROR(D4*1000/L4,"*") -> 4.306261304 | V4: =IFERROR(E4*1000/M4,"*") -> 4.573299833 | W4: =IFERROR(F4*1000/N4,"*") -> 4.694179776 | X4: =IFERROR(G4*1000/O4,"*") -> 3.931957613 | Y4: =IFERROR(H4*1000/P4,"*") -> 4.350250976
A5: Aberdeenshire | B5: 109 | C5: 124 | D5: 116 | E5: 142 | F5: 154 | G5: 107 | H5: 120 | J5: ='DATA CP CON'!J5 -> 48871 | K5: ='DATA CP CON'!K5 -> 48888 | L5: ='DATA CP CON'!L5 -> 49033 | M5: ='DATA CP CON'!M5 -> 49016 | N5: ='DATA CP CON'!N5 -> 48674 | O5: ='DATA CP CON'!O5 -> 48578 | P5: ='DATA CP CON'!P5 -> 48578 | R5: Aberdeenshire | S5: 2.230361564 | T5: 2.536409753 | U5: 2.365753676 | V5: 2.89701322 | W5: 3.163906809 | X5: 2.202643172 | Y5: 2.470254024
A6: Angus | B6: 151 | C6: 126 | D6: 154 | E6: 98 | F6: 108 | G6: 95 | H6: 94 | J6: ='DATA CP CON'!J6 -> 19445 | K6: ='DATA CP CON'!K6 -> 19288 | L6: ='DATA CP CON'!L6 -> 19253 | M6: ='DATA CP CON'!M6 -> 19145 | N6: ='DATA CP CON'!N6 -> 18908 | O6: ='DATA CP CON'!O6 -> 18639 | P6: ='DATA CP CON'!P6 -> 18639 | R6: Angus | S6: 7.765492415 | T6: 6.532559104 | U6: 7.998753441 | V6: 5.118829982 | W6: 5.711867992 | X6: 5.096839959 | Y6: 5.043189012
A7: Argyll & Bute | B7: 64 | C7: 73 | D7: 57 | E7: 56 | F7: 67 | G7: 48 | H7: 30 | J7: ='DATA CP CON'!J7 -> 13238 | K7: ='DATA CP CON'!K7 -> 13163 | L7: ='DATA CP CON'!L7 -> 13024 | M7: ='DATA CP CON'!M7 -> 12906 | N7: ='DATA CP CON'!N7 -> 12577 | O7: ='DATA CP CON'!O7 -> 12441 | P7: ='DATA CP CON'!P7 -> 12441 | R7: Argyll & Bute | S7: 4.834567155 | T7: 5.545848211 | U7: 4.376535627 | V7: 4.339067101 | W7: 5.327184543 | X7: 3.858210755 | Y7: 2.411381722
A8: City of Edinburgh | B8: 411 | C8: 302 | D8: 285 | E8: 180 | F8: 178 | G8: 166 | H8: 162 | J8: ='DATA CP CON'!J8 -> 77364 | K8: ='DATA CP CON'!K8 -> 78052 | L8: ='DATA CP CON'!L8 -> 78501 | M8: ='DATA CP CON'!M8 -> 79067 | N8: ='DATA CP CON'!N8 -> 79150 | O8: ='DATA CP CON'!O8 -> 78826 | P8: ='DATA CP CON'!P8 -> 78826 | R8: City of Edinburgh | S8: 5.312548472 | T8: 3.869215395 | U8: 3.630527 | V8: 2.276550267 | W8: 2.248894504 | X8: 2.105904143 | Y8: 2.055159465
A9: Clackmannanshire | B9: 25 | C9: 46 | D9: 58 | E9: 58 | F9: 73 | G9: 80 | H9: 30 | J9: ='DATA CP CON'!J9 -> 9024 | K9: ='DATA CP CON'!K9 -> 9020 | L9: ='DATA CP CON'!L9 -> 8980 | M9: ='DATA CP CON'!M9 -> 8946 | N9: ='DATA CP CON'!N9 -> 8897 | O9: ='DATA CP CON'!O9 -> 8877 | P9: ='DATA CP CON'!P9 -> 8877 | R9: Clackmannanshire | S9: 2.770390071 | T9: 5.099778271 | U9: 6.458797327 | V9: 6.483344512 | W9: 8.205012926 | X9: 9.012053622 | Y9: 3.379520108
A10: Dumfries and Galloway | B10: 109 | C10: 156 | D10: 191 | E10: 142 | F10: 42 | G10: 61 | H10: 79 | J10: ='DATA CP CON'!J10 -> 23614 | K10: ='DATA CP CON'!K10 -> 23487 | L10: ='DATA CP CON'!L10 -> 23424 | M10: ='DATA CP CON'!M10 -> 23243 | N10: ='DATA CP CON'!N10 -> 23050 | O10: ='DATA CP CON'!O10 -> 22882 | P10: ='DATA CP CON'!P10 -> 22882 | R10: Dumfries and Galloway | S10: 4.615905819 | T10: 6.641972155 | U10: 8.154030055 | V10: 6.109366261 | W10: 1.822125813 | X10: 2.665850887 | Y10: 3.452495411
A11: Dundee City | B11: 151 | C11: 144 | D11: 142 | E11: 168 | F11: 156 | G11: 145 | H11: 106 | J11: ='DATA CP CON'!J11 -> 23849 | K11: ='DATA CP CON'!K11 -> 23998 | L11: ='DATA CP CON'!L11 -> 24016 | M11: ='DATA CP CON'!M11 -> 24044 | N11: ='DATA CP CON'!N11 -> 23958 | O11: ='DATA CP CON'!O11 -> 23704 | P11: ='DATA CP CON'!P11 -> 23704 | R11: Dundee City | S11: 6.331502369 | T11: 6.000500042 | U11: 5.91272485 | V11: 6.987190151 | W11: 6.511394941 | X11: 6.117111036 | Y11: 4.471819102
A12: East Ayrshire | B12: 140 | C12: 177 | D12: 158 | E12: 191 | F12: 155 | G12: 126 | H12: 96 | J12: ='DATA CP CON'!J12 -> 21259 | K12: ='DATA CP CON'!K12 -> 21164 | L12: ='DATA CP CON'!L12 -> 21119 | M12: ='DATA CP CON'!M12 -> 21053 | N12: ='DATA CP CON'!N12 -> 20869 | O12: ='DATA CP CON'!O12 -> 20792 | P12: ='DATA CP CON'!P12 -> 20792 | R12: East Ayrshire | S12: 6.585446164 | T12: 8.363258363 | U12: 7.48141484 | V12: 9.072341234 | W12: 7.427284489 | X12: 6.060023086 | Y12: 4.617160446
A13: East Dunbartonshire | B13: 78 | C13: 77 | D13: 101 | E13: 82 | F13: 47 | G13: 64 | H13: 56 | J13: ='DATA CP CON'!J13 -> 18810 | K13: ='DATA CP CON'!K13 -> 19061 | L13: ='DATA CP CON'!L13 -> 19224 | M13: ='DATA CP CON'!M13 -> 19398 | N13: ='DATA CP CON'!N13 -> 19500 | O13: ='DATA CP CON'!O13 -> 19528 | P13: ='DATA CP CON'!P13 -> 19528 | R13: East Dunbartonshire | S13: 4.146730463 | T13: 4.039662137 | U13: 5.253849355 | V13: 4.227239922 | W13: 2.41025641 | X13: 3.27734535 | Y13: 2.867677181
A14: East Lothian | B14: 66 | C14: 62 | D14: 72 | E14: 83 | F14: 64 | G14: 50 | H14: 73 | J14: ='DATA CP CON'!J14 -> 18989 | K14: ='DATA CP CON'!K14 -> 19051 | L14: ='DATA CP CON'!L14 -> 19350 | M14: ='DATA CP CON'!M14 -> 19700 | N14: ='DATA CP CON'!N14 -> 19701 | O14: ='DATA CP CON'!O14 -> 19822 | P14: ='DATA CP CON'!P14 -> 19822 | R14: East Lothian | S14: 3.475696456 | T14: 3.25442234 | U14: 3.720930233 | V14: 4.21319797 | W14: 3.248566063 | X14: 2.522449803 | Y14: 3.682776713
A15: East Renfrewshire | B15: 29 | C15: 34 | D15: 11 | E15: 26 | F15: 19 | G15: 18 | H15: 25 | J15: ='DATA CP CON'!J15 -> 18662 | K15: ='DATA CP CON'!K15 -> 19029 | L15: ='DATA CP CON'!L15 -> 19322 | M15: ='DATA CP CON'!M15 -> 19525 | N15: ='DATA CP CON'!N15 -> 19646 | O15: ='DATA CP CON'!O15 -> 19701 | P15: ='DATA CP CON'!P15 -> 19701 | R15: East Renfrewshire | S15: 1.553959919 | T15: 1.786746545 | U15: 0.5692992444 | V15: 1.33162612 | W15: 0.9671179884 | X15: 0.9136592051 | Y15: 1.268971118
A16: Falkirk | B16: 116 | C16: 127 | D16: 99 | E16: 127 | F16: 158 | G16: 124 | H16: 142 | J16: ='DATA CP CON'!J16 -> 28359 | K16: ='DATA CP CON'!K16 -> 28329 | L16: ='DATA CP CON'!L16 -> 28230 | M16: ='DATA CP CON'!M16 -> 28112 | N16: ='DATA CP CON'!N16 -> 27886 | O16: ='DATA CP CON'!O16 -> 27564 | P16: ='DATA CP CON'!P16 -> 27564 | R16: Falkirk | S16: 4.090412215 | T16: 4.483038582 | U16: 3.506907545 | V16: 4.517643711 | W16: 5.665925554 | X16: 4.49862139 | Y16: 5.151647076
A17: Fife | B17: 294 | C17: 314 | D17: 325 | E17: 318 | F17: 292 | G17: 258 | H17: 246 | J17: ='DATA CP CON'!J17 -> 64372 | K17: ='DATA CP CON'!K17 -> 64333 | L17: ='DATA CP CON'!L17 -> 64473 | M17: ='DATA CP CON'!M17 -> 64552 | N17: ='DATA CP CON'!N17 -> 64152 | O17: ='DATA CP CON'!O17 -> 63680 | P17: ='DATA CP CON'!P17 -> 63680 | R17: Fife | S17: 4.567203132 | T17: 4.880854305 | U17: 5.040869821 | V17: 4.926260999 | W17: 4.551689737 | X17: 4.051507538 | Y17: 3.863065327
A18: Glasgow City | B18: 599 | C18: 488 | D18: 411 | E18: 534 | F18: 463 | G18: 355 | H18: 328 | J18: ='DATA CP CON'!J18 -> 98487 | K18: ='DATA CP CON'!K18 -> 99137 | L18: ='DATA CP CON'!L18 -> 99938 | M18: ='DATA CP CON'!M18 -> 100666 | N18: ='DATA CP CON'!N18 -> 100478 | O18: ='DATA CP CON'!O18 -> 99881 | P18: ='DATA CP CON'!P18 -> 99881 | R18: Glasgow City | S18: 6.082020977 | T18: 4.922481011 | U18: 4.112549781 | V18: 5.304670892 | W18: 4.607973885 | X18: 3.554229533 | Y18: 3.28390785
A19: Highland | B19: 168 | C19: 138 | D19: 147 | E19: 151 | F19: 164 | G19: 105 | H19: 136 | J19: ='DATA CP CON'!J19 -> 39972 | K19: ='DATA CP CON'!K19 -> 39555 | L19: ='DATA CP CON'!L19 -> 39335 | M19: ='DATA CP CON'!M19 -> 39036 | N19: ='DATA CP CON'!N19 -> 38490 | O19: ='DATA CP CON'!O19 -> 38130 | P19: ='DATA CP CON'!P19 -> 38130 | R19: Highland | S19: 4.202942059 | T19: 3.488813045 | U19: 3.737129783 | V19: 3.868224203 | W19: 4.260846973 | X19: 2.753737215 | Y19: 3.566745345
A20: Inverclyde | B20: 57 | C20: 47 | D20: 50 | E20: 64 | F20: 98 | G20: 61 | H20: 68 | J20: ='DATA CP CON'!J20 -> 12851 | K20: ='DATA CP CON'!K20 -> 12701 | L20: ='DATA CP CON'!L20 -> 12628 | M20: ='DATA CP CON'!M20 -> 12603 | N20: ='DATA CP CON'!N20 -> 12413 | O20: ='DATA CP CON'!O20 -> 12197 | P20: ='DATA CP CON'!P20 -> 12197 | R20: Inverclyde | S20: 4.435452494 | T20: 3.700496024 | U20: 3.959455179 | V20: 5.078155995 | W20: 7.894948844 | X20: 5.001229811 | Y20: 5.575141428
A21: Midlothian | B21: 99 | C21: 129 | D21: 100 | E21: 112 | F21: 96 | G21: 83 | H21: 58 | J21: ='DATA CP CON'!J21 -> 16884 | K21: ='DATA CP CON'!K21 -> 17229 | L21: ='DATA CP CON'!L21 -> 17590 | M21: ='DATA CP CON'!M21 -> 17953 | N21: ='DATA CP CON'!N21 -> 18089 | O21: ='DATA CP CON'!O21 -> 18281 | P21: ='DATA CP CON'!P21 -> 18281 | R21: Midlothian | S21: 5.863539446 | T21: 7.487375936 | U21: 5.685048323 | V21: 6.238511669 | W21: 5.307092708 | X21: 4.540233029 | Y21: 3.17269296
A22: Moray | B22: 87 | C22: 98 | D22: 86 | E22: 95 | F22: 40 | G22: 46 | H22: 51 | J22: ='DATA CP CON'!J22 -> 16527 | K22: ='DATA CP CON'!K22 -> 16362 | L22: ='DATA CP CON'!L22 -> 16173 | M22: ='DATA CP CON'!M22 -> 16145 | N22: ='DATA CP CON'!N22 -> 16037 | O22: ='DATA CP CON'!O22 -> 15941 | P22: ='DATA CP CON'!P22 -> 15941 | R22: Moray | S22: 5.264113269 | T22: 5.989487838 | U22: 5.317504483 | V22: 5.884174667 | W22: 2.494232088 | X22: 2.8856408 | Y22: 3.199297409
A23: Na h-Eileanan Siar | B23: 5 | C23: 6 | D23: 12 | E23: 6 | F23: 9 | G23: 9 | H23: 15 | J23: ='DATA CP CON'!J23 -> 4307 | K23: ='DATA CP CON'!K23 -> 4367 | L23: ='DATA CP CON'!L23 -> 4328 | M23: ='DATA CP CON'!M23 -> 4254 | N23: ='DATA CP CON'!N23 -> 4135 | O23: ='DATA CP CON'!O23 -> 4060 | P23: ='DATA CP CON'!P23 -> 4060 | R23: Na h-Eileanan Siar | S23: 1.160900859 | T23: 1.373940921 | U23: 2.772643253 | V23: 1.410437236 | W23: 2.176541717 | X23: 2.216748768 | Y23: 3.694581281
A24: North Ayrshire | B24: 150 | C24: 139 | D24: 272 | E24: 237 | F24: 246 | G24: 242 | H24: 199 | J24: ='DATA CP CON'!J24 -> 23128 | K24: ='DATA CP CON'!K24 -> 22901 | L24: ='DATA CP CON'!L24 -> 22780 | M24: ='DATA CP CON'!M24 -> 22468 | N24: ='DATA CP CON'!N24 -> 22280 | O24: ='DATA CP CON'!O24 -> 21891 | P24: ='DATA CP CON'!P24 -> 21891 | R24: North Ayrshire | S24: 6.485645105 | T24: 6.069603947 | U24: 11.94029851 | V24: 10.54833541 | W24: 11.04129264 | X24: 11.05477137 | Y24: 9.09049381
A25: North Lanarkshire | B25: 240 | C25: 275 | D25: 219 | E25: 282 | F25: 218 | G25: 207 | H25: 169 | J25: ='DATA CP CON'!J25 -> 63299 | K25: ='DATA CP CON'!K25 -> 63011 | L25: ='DATA CP CON'!L25 -> 62955 | M25: ='DATA CP CON'!M25 -> 62836 | N25: ='DATA CP CON'!N25 -> 62278 | O25: ='DATA CP CON'!O25 -> 61606 | P25: ='DATA CP CON'!P25 -> 61606 | R25: North Lanarkshire | S25: 3.791529092 | T25: 4.364317341 | U25: 3.478675244 | V25: 4.487873194 | W25: 3.50043354 | X25: 3.360062332 | Y25: 2.743239295
A26: Orkney Islands | B26: 5 | C26: 16 | D26: 10 | E26: 7 | F26: 12 | G26: 7 | H26: 17 | J26: ='DATA CP CON'!J26 -> 3516 | K26: ='DATA CP CON'!K26 -> 3545 | L26: ='DATA CP CON'!L26 -> 3544 | M26: ='DATA CP CON'!M26 -> 3582 | N26: ='DATA CP CON'!N26 -> 3571 | O26: ='DATA CP CON'!O26 -> 3553 | P26: ='DATA CP CON'!P26 -> 3553 | R26: Orkney Islands | S26: 1.422070535 | T26: 4.513399154 | U26: 2.821670429 | V26: 1.954215522 | W26: 3.360403248 | X26: 1.970166057 | Y26: 4.784688995
A27: Perth and Kinross | B27: 100 | C27: 103 | D27: 109 | E27: 142 | F27: 119 | G27: 89 | H27: 81 | J27: ='DATA CP CON'!J27 -> 24514 | K27: ='DATA CP CON'!K27 -> 24453 | L27: ='DATA CP CON'!L27 -> 24425 | M27: ='DATA CP CON'!M27 -> 24421 | N27: ='DATA CP CON'!N27 -> 24244 | O27: ='DATA CP CON'!O27 -> 24218 | P27: ='DATA CP CON'!P27 -> 24218 | R27: Perth and Kinross | S27: 4.079301624 | T27: 4.212162107 | U27: 4.462640737 | V27: 5.814667704 | W27: 4.908430952 | X27: 3.674952515 | Y27: 3.344619704
A28: Renfrewshire | B28: 133 | C28: 194 | D28: 128 | E28: 160 | F28: 136 | G28: 113 | H28: 121 | J28: ='DATA CP CON'!J28 -> 29954 | K28: ='DATA CP CON'!K28 -> 30039 | L28: ='DATA CP CON'!L28 -> 30171 | M28: ='DATA CP CON'!M28 -> 30267 | N28: ='DATA CP CON'!N28 -> 30182 | O28: ='DATA CP CON'!O28 -> 29784 | P28: ='DATA CP CON'!P28 -> 29784 | R28: Renfrewshire | S28: 4.44014155 | T28: 6.458270914 | U28: 4.242484505 | V28: 5.286285393 | W28: 4.505996952 | X28: 3.793983347 | Y28: 4.062583938
A29: Scottish Borders | B29: 83 | C29: 51 | D29: 75 | E29: 60 | F29: 37 | G29: 59 | H29: 59 | J29: ='DATA CP CON'!J29 -> 19002 | K29: ='DATA CP CON'!K29 -> 19026 | L29: ='DATA CP CON'!L29 -> 19046 | M29: ='DATA CP CON'!M29 -> 19023 | N29: ='DATA CP CON'!N29 -> 18824 | O29: ='DATA CP CON'!O29 -> 18723 | P29: ='DATA CP CON'!P29 -> 18723 | R29: Scottish Borders | S29: 4.367961267 | T29: 2.680542416 | U29: 3.937834716 | V29: 3.154076644 | W29: 1.965575861 | X29: 3.151204401 | Y29: 3.151204401
A30: Shetland Islands | B30: 26 | C30: 13 | D30: 13 | E30: 22 | F30: 11 | G30: 19 | H30: 18 | J30: ='DATA CP CON'!J30 -> 4233 | K30: ='DATA CP CON'!K30 -> 4233 | L30: ='DATA CP CON'!L30 -> 4205 | M30: ='DATA CP CON'!M30 -> 4198 | N30: ='DATA CP CON'!N30 -> 4158 | O30: ='DATA CP CON'!O30 -> 4104 | P30: ='DATA CP CON'!P30 -> 4104 | R30: Shetland Islands | S30: 6.142215923 | T30: 3.071107961 | U30: 3.091557669 | V30: 5.240590758 | W30: 2.645502646 | X30: 4.62962963 | Y30: 4.385964912
A31: South Ayrshire | B31: 81 | C31: 99 | D31: 78 | E31: 77 | F31: 47 | G31: 33 | H31: 34 | J31: ='DATA CP CON'!J31 -> 17760 | K31: ='DATA CP CON'!K31 -> 17716 | L31: ='DATA CP CON'!L31 -> 17638 | M31: ='DATA CP CON'!M31 -> 17608 | N31: ='DATA CP CON'!N31 -> 17418 | O31: ='DATA CP CON'!O31 -> 17244 | P31: ='DATA CP CON'!P31 -> 17244 | R31: South Ayrshire | S31: 4.560810811 | T31: 5.588168887 | U31: 4.422270099 | V31: 4.373012267 | W31: 2.69835802 | X31: 1.913709116 | Y31: 1.971700302
A32: South Lanarkshire | B32: 273 | C32: 251 | D32: 295 | E32: 220 | F32: 280 | G32: 239 | H32: 225 | J32: ='DATA CP CON'!J32 -> 54876 | K32: ='DATA CP CON'!K32 -> 55151 | L32: ='DATA CP CON'!L32 -> 55260 | M32: ='DATA CP CON'!M32 -> 55649 | N32: ='DATA CP CON'!N32 -> 55550 | O32: ='DATA CP CON'!O32 -> 55700 | P32: ='DATA CP CON'!P32 -> 55700 | R32: South Lanarkshire | S32: 4.974852394 | T32: 4.551141412 | U32: 5.33840029 | V32: 3.953350465 | W32: 5.04050405 | X32: 4.290843806 | Y32: 4.039497307
A33: Stirling | B33: 71 | C33: 55 | D33: 88 | E33: 58 | F33: 58 | G33: 76 | H33: 51 | J33: ='DATA CP CON'!J33 -> 15493 | K33: ='DATA CP CON'!K33 -> 15425 | L33: ='DATA CP CON'!L33 -> 15514 | M33: ='DATA CP CON'!M33 -> 15417 | N33: ='DATA CP CON'!N33 -> 15153 | O33: ='DATA CP CON'!O33 -> 14948 | P33: ='DATA CP CON'!P33 -> 14948 | R33: Stirling | S33: 4.582714774 | T33: 3.565640194 | U33: 5.672295991 | V33: 3.76208082 | W33: 3.827624893 | X33: 5.084292213 | Y33: 3.411827669
A34: West Dunbartonshire | B34: 77 | C34: 128 | D34: 95 | E34: 71 | F34: 88 | G34: 80 | H34: 69 | J34: ='DATA CP CON'!J34 -> 15764 | K34: ='DATA CP CON'!K34 -> 15790 | L34: ='DATA CP CON'!L34 -> 15705 | M34: ='DATA CP CON'!M34 -> 15647 | N34: ='DATA CP CON'!N34 -> 15484 | O34: ='DATA CP CON'!O34 -> 15234 | P34: ='DATA CP CON'!P34 -> 15234 | R34: West Dunbartonshire | S34: 4.884547069 | T34: 8.106396453 | U34: 6.049028972 | V34: 4.537611044 | W34: 5.683285973 | X34: 5.251411317 | Y34: 4.529342261
A35: West Lothian | B35: 120 | C35: 137 | D35: 139 | E35: 164 | F35: 164 | G35: 153 | H35: 172 | J35: ='DATA CP CON'!J35 -> 35307 | K35: ='DATA CP CON'!K35 -> 35443 | L35: ='DATA CP CON'!L35 -> 35485 | M35: ='DATA CP CON'!M35 -> 35494 | N35: ='DATA CP CON'!N35 -> 35242 | O35: ='DATA CP CON'!O35 -> 35133 | P35: ='DATA CP CON'!P35 -> 35133 | R35: West Lothian | S35: 3.398759453 | T35: 3.865361284 | U35: 3.917148091 | V35: 4.620499239 | W35: 4.653538392 | X35: 4.354880027 | Y35: 4.895682122
A36: Scotland | B36: 4273 | C36: 4293 | D36: 4246 | E36: 4295 | F36: 3967 | G36: 3459 | H36: 3286 | J36: =SUM(J4:J35) -> 915917 | K36: =SUM(K4:K35) -> 917442 | L36: =SUM(L4:L35) -> 919502 | M36: =SUM(M4:M35) -> 921397 | N36: =SUM(N4:N35) -> 916783 | O36: =SUM(O4:O35) -> 911522 | P36: =SUM(P4:P35) -> 911522 | R36: Scotland | S36: 4.665269888 | T36: 4.679314878 | U36: 4.617716982 | V36: 4.661400026 | W36: 4.327087217 | X36: 3.794752074 | Y36: 3.604959617
A37: Notes
A38: Cells containing * represent numbers that are supressed to maintain confidentiality.
A39: Population figures source: NRS mid-year population estimates for 2016-2021.
A40: Source: Scottish Government CP Returns
A41: Figures for 2022 are provisional and may be revised with the publication of 2023 statistics.

Sheet DATA CP ON REG (hidden)
A1: Child Protection: On Child Protection Register: as at 31 July 2016-2022
A2: Number of children on child protection registers: as at 31 July 2016-2022 | J2: Population Aged 0-15 | R2: Number of children on child protection registers per 1,000 children: as at 31 July 2016-2022
A3: Council | B3: 2016 | C3: 2017 | D3: 2018 | E3: 2019 | F3: 2020 | G3: 2021 | H3: 2022 | J3: ='DATA CP CON'!J3 -> 2016 | K3: ='DATA CP CON'!K3 -> 2017 | L3: ='DATA CP CON'!L3 -> 2018 | M3: ='DATA CP CON'!M3 -> 2019 | N3: ='DATA CP CON'!N3 -> 2020 | O3: ='DATA CP CON'!O3 -> 2021 | P3: ='DATA CP CON'!P3 -> 2022 | R3: Council | S3: 2016 | T3: 2017 | U3: 2018 | V3: 2019 | W3: 2020 | X3: 2021 | Y3: 2022
A4: Aberdeen City | B4: 118 | C4: 80 | D4: 68 | E4: 119 | F4: 142 | G4: 83 | H4: 115 | J4: ='DATA CP CON'!J4 -> 34187 | K4: ='DATA CP CON'!K4 -> 34495 | L4: ='DATA CP CON'!L4 -> 34833 | M4: ='DATA CP CON'!M4 -> 35423 | N4: ='DATA CP CON'!N4 -> 35789 | O4: ='DATA CP CON'!O4 -> 35860 | P4: ='DATA CP CON'!P4 -> 35860 | R4: Aberdeen City | S4: =IFERROR(B4*1000/J4,"*") -> 3.451604411 | T4: =IFERROR(C4*1000/K4,"*") -> 2.319176692 | U4: =IFERROR(D4*1000/L4,"*") -> 1.952171791 | V4: =IFERROR(E4*1000/M4,"*") -> 3.35939926 | W4: =IFERROR(F4*1000/N4,"*") -> 3.967699572 | X4: =IFERROR(G4*1000/O4,"*") -> 2.314556609 | Y4: =IFERROR(H4*1000/P4,"*") -> 3.206915784
A5: Aberdeenshire | B5: 64 | C5: 77 | D5: 77 | E5: 103 | F5: 111 | G5: 73 | H5: 89 | J5: ='DATA CP CON'!J5 -> 48871 | K5: ='DATA CP CON'!K5 -> 48888 | L5: ='DATA CP CON'!L5 -> 49033 | M5: ='DATA CP CON'!M5 -> 49016 | N5: ='DATA CP CON'!N5 -> 48674 | O5: ='DATA CP CON'!O5 -> 48578 | P5: ='DATA CP CON'!P5 -> 48578 | R5: Aberdeenshire | S5: 1.309570093 | T5: 1.575028637 | U5: 1.570370975 | V5: 2.10135466 | W5: 2.280478284 | X5: 1.502737865 | Y5: 1.832105068
A6: Angus | B6: 96 | C6: 51 | D6: 64 | E6: 45 | F6: 35 | G6: 45 | H6: 59 | J6: ='DATA CP CON'!J6 -> 19445 | K6: ='DATA CP CON'!K6 -> 19288 | L6: ='DATA CP CON'!L6 -> 19253 | M6: ='DATA CP CON'!M6 -> 19145 | N6: ='DATA CP CON'!N6 -> 18908 | O6: ='DATA CP CON'!O6 -> 18639 | P6: ='DATA CP CON'!P6 -> 18639 | R6: Angus | S6: 4.9370018 | T6: 2.644131066 | U6: 3.324157274 | V6: 2.350483155 | W6: 1.851068331 | X6: 2.414292612 | Y6: 3.165405869
A7: Argyll and Bute | B7: 40 | C7: 31 | D7: 31 | E7: 28 | F7: 49 | G7: 32 | H7: 21 | J7: ='DATA CP CON'!J7 -> 13238 | K7: ='DATA CP CON'!K7 -> 13163 | L7: ='DATA CP CON'!L7 -> 13024 | M7: ='DATA CP CON'!M7 -> 12906 | N7: ='DATA CP CON'!N7 -> 12577 | O7: ='DATA CP CON'!O7 -> 12441 | P7: ='DATA CP CON'!P7 -> 12441 | R7: Argyll & Bute | S7: 3.021604472 | T7: 2.355086227 | U7: 2.38022113 | V7: 2.16953355 | W7: 3.896000636 | X7: 2.572140503 | Y7: 1.687967205
A8: City of Edinburgh | B8: 287 | C8: 235 | D8: 189 | E8: 122 | F8: 95 | G8: 97 | H8: 104 | J8: ='DATA CP CON'!J8 -> 77364 | K8: ='DATA CP CON'!K8 -> 78052 | L8: ='DATA CP CON'!L8 -> 78501 | M8: ='DATA CP CON'!M8 -> 79067 | N8: ='DATA CP CON'!N8 -> 79150 | O8: ='DATA CP CON'!O8 -> 78826 | P8: ='DATA CP CON'!P8 -> 78826 | R8: City of Edinburgh | S8: 3.709735794 | T8: 3.010813304 | U8: 2.407612642 | V8: 1.542995181 | W8: 1.200252685 | X8: 1.230558445 | Y8: 1.319361632
A9: Clackmannanshire | B9: 18 | C9: 26 | D9: 37 | E9: 24 | F9: 43 | G9: 41 | H9: 15 | J9: ='DATA CP CON'!J9 -> 9024 | K9: ='DATA CP CON'!K9 -> 9020 | L9: ='DATA CP CON'!L9 -> 8980 | M9: ='DATA CP CON'!M9 -> 8946 | N9: ='DATA CP CON'!N9 -> 8897 | O9: ='DATA CP CON'!O9 -> 8877 | P9: ='DATA CP CON'!P9 -> 8877 | R9: Clackmannanshire | S9: 1.994680851 | T9: 2.88248337 | U9: 4.120267261 | V9: 2.682763246 | W9: 4.833089806 | X9: 4.618677481 | Y9: 1.689760054
A10: Dumfries and Galloway | B10: 61 | C10: 78 | D10: 93 | E10: 18 | F10: 26 | G10: 34 | H10: 41 | J10: ='DATA CP CON'!J10 -> 23614 | K10: ='DATA CP CON'!K10 -> 23487 | L10: ='DATA CP CON'!L10 -> 23424 | M10: ='DATA CP CON'!M10 -> 23243 | N10: ='DATA CP CON'!N10 -> 23050 | O10: ='DATA CP CON'!O10 -> 22882 | P10: ='DATA CP CON'!P10 -> 22882 | R10: Dumfries and Galloway | S10: 2.583213348 | T10: 3.320986077 | U10: 3.970286885 | V10: 0.7744267091 | W10: 1.127982646 | X10: 1.485884101 | Y10: 1.791801416
A11: Dundee City | B11: 79 | C11: 69 | D11: 75 | E11: 90 | F11: 102 | G11: 84 | H11: 61 | J11: ='DATA CP CON'!J11 -> 23849 | K11: ='DATA CP CON'!K11 -> 23998 | L11: ='DATA CP CON'!L11 -> 24016 | M11: ='DATA CP CON'!M11 -> 24044 | N11: ='DATA CP CON'!N11 -> 23958 | O11: ='DATA CP CON'!O11 -> 23704 | P11: ='DATA CP CON'!P11 -> 23704 | R11: Dundee City | S11: 3.312507862 | T11: 2.875239603 | U11: 3.122918055 | V11: 3.743137581 | W11: 4.257450538 | X11: 3.543705704 | Y11: 2.573405332
A12: East Ayrshire | B12: 39 | C12: 96 | D12: 107 | E12: 100 | F12: 75 | G12: 69 | H12: 80 | J12: ='DATA CP CON'!J12 -> 21259 | K12: ='DATA CP CON'!K12 -> 21164 | L12: ='DATA CP CON'!L12 -> 21119 | M12: ='DATA CP CON'!M12 -> 21053 | N12: ='DATA CP CON'!N12 -> 20869 | O12: ='DATA CP CON'!O12 -> 20792 | P12: ='DATA CP CON'!P12 -> 20792 | R12: East Ayrshire | S12: 1.834517146 | T12: 4.536004536 | U12: 5.066527771 | V12: 4.749916876 | W12: 3.593847333 | X12: 3.318584071 | Y12: 3.847633705
A13: East Dunbartonshire | B13: 38 | C13: 42 | D13: 57 | E13: 55 | F13: 37 | G13: 23 | H13: 35 | J13: ='DATA CP CON'!J13 -> 18810 | K13: ='DATA CP CON'!K13 -> 19061 | L13: ='DATA CP CON'!L13 -> 19224 | M13: ='DATA CP CON'!M13 -> 19398 | N13: ='DATA CP CON'!N13 -> 19500 | O13: ='DATA CP CON'!O13 -> 19528 | P13: ='DATA CP CON'!P13 -> 19528 | R13: East Dunbartonshire | S13: 2.02020202 | T13: 2.203452075 | U13: 2.965043695 | V13: 2.83534385 | W13: 1.897435897 | X13: 1.177795985 | Y13: 1.792298238
A14: East Lothian | B14: 47 | C14: 45 | D14: 29 | E14: 48 | F14: 45 | G14: 29 | H14: 41 | J14: ='DATA CP CON'!J14 -> 18989 | K14: ='DATA CP CON'!K14 -> 19051 | L14: ='DATA CP CON'!L14 -> 19350 | M14: ='DATA CP CON'!M14 -> 19700 | N14: ='DATA CP CON'!N14 -> 19701 | O14: ='DATA CP CON'!O14 -> 19822 | P14: ='DATA CP CON'!P14 -> 19822 | R14: East Lothian | S14: 2.475117173 | T14: 2.362080731 | U14: 1.49870801 | V14: 2.436548223 | W14: 2.284148013 | X14: 1.463020886 | Y14: 2.068408839
A15: East Renfrewshire | B15: 12 | C15: 20 | D15: 9 | E15: 15 | F15: 9 | G15: 8 | H15: 10 | J15: ='DATA CP CON'!J15 -> 18662 | K15: ='DATA CP CON'!K15 -> 19029 | L15: ='DATA CP CON'!L15 -> 19322 | M15: ='DATA CP CON'!M15 -> 19525 | N15: ='DATA CP CON'!N15 -> 19646 | O15: ='DATA CP CON'!O15 -> 19701 | P15: ='DATA CP CON'!P15 -> 19701 | R15: East Renfrewshire | S15: 0.6430178973 | T15: 1.051027379 | U15: 0.4657902909 | V15: 0.7682458387 | W15: 0.4581085208 | X15: 0.4060707578 | Y15: 0.5075884473
A16: Falkirk | B16: 82 | C16: 80 | D16: 88 | E16: 124 | F16: 142 | G16: 101 | H16: 75 | J16: ='DATA CP CON'!J16 -> 28359 | K16: ='DATA CP CON'!K16 -> 28329 | L16: ='DATA CP CON'!L16 -> 28230 | M16: ='DATA CP CON'!M16 -> 28112 | N16: ='DATA CP CON'!N16 -> 27886 | O16: ='DATA CP CON'!O16 -> 27564 | P16: ='DATA CP CON'!P16 -> 27564 | R16: Falkirk | S16: 2.89149829 | T16: 2.823961312 | U16: 3.117251151 | V16: 4.410927718 | W16: 5.092160941 | X16: 3.664199681 | Y16: 2.720940357
A17: Fife | B17: 157 | C17: 172 | D17: 170 | E17: 205 | F17: 147 | G17: 152 | H17: 136 | J17: ='DATA CP CON'!J17 -> 64372 | K17: ='DATA CP CON'!K17 -> 64333 | L17: ='DATA CP CON'!L17 -> 64473 | M17: ='DATA CP CON'!M17 -> 64552 | N17: ='DATA CP CON'!N17 -> 64152 | O17: ='DATA CP CON'!O17 -> 63680 | P17: ='DATA CP CON'!P17 -> 63680 | R17: Fife | S17: 2.438948611 | T17: 2.673588982 | U17: 2.636762676 | V17: 3.175734292 | W17: 2.291432847 | X17: 2.386934673 | Y17: 2.135678392
A18: Glasgow City | B18: 511 | C18: 405 | D18: 308 | E18: 415 | F18: 413 | G18: 280 | H18: 270 | J18: ='DATA CP CON'!J18 -> 98487 | K18: ='DATA CP CON'!K18 -> 99137 | L18: ='DATA CP CON'!L18 -> 99938 | M18: ='DATA CP CON'!M18 -> 100666 | N18: ='DATA CP CON'!N18 -> 100478 | O18: ='DATA CP CON'!O18 -> 99881 | P18: ='DATA CP CON'!P18 -> 99881 | R18: Glasgow City | S18: 5.188502036 | T18: 4.085255757 | U18: 3.081910785 | V18: 4.122543858 | W18: 4.110352515 | X18: 2.80333597 | Y18: 2.703216828
A19: Highland | B19: 104 | C19: 102 | D19: 81 | E19: 91 | F19: 129 | G19: 96 | H19: 93 | J19: ='DATA CP CON'!J19 -> 39972 | K19: ='DATA CP CON'!K19 -> 39555 | L19: ='DATA CP CON'!L19 -> 39335 | M19: ='DATA CP CON'!M19 -> 39036 | N19: ='DATA CP CON'!N19 -> 38490 | O19: ='DATA CP CON'!O19 -> 38130 | P19: ='DATA CP CON'!P19 -> 38130 | R19: Highland | S19: 2.601821275 | T19: 2.578687903 | U19: 2.059234778 | V19: 2.331181474 | W19: 3.351519875 | X19: 2.517702596 | Y19: 2.43902439
A20: Inverclyde | B20: 40 | C20: 33 | D20: 31 | E20: 47 | F20: 61 | G20: 26 | H20: 44 | J20: ='DATA CP CON'!J20 -> 12851 | K20: ='DATA CP CON'!K20 -> 12701 | L20: ='DATA CP CON'!L20 -> 12628 | M20: ='DATA CP CON'!M20 -> 12603 | N20: ='DATA CP CON'!N20 -> 12413 | O20: ='DATA CP CON'!O20 -> 12197 | P20: ='DATA CP CON'!P20 -> 12197 | R20: Inverclyde | S20: 3.112598241 | T20: 2.598220613 | U20: 2.454862211 | V20: 3.729270809 | W20: 4.914202852 | X20: 2.131671723 | Y20: 3.607444454
A21: Midlothian | B21: 51 | C21: 64 | D21: 45 | E21: 49 | F21: 49 | G21: 38 | H21: 24 | J21: ='DATA CP CON'!J21 -> 16884 | K21: ='DATA CP CON'!K21 -> 17229 | L21: ='DATA CP CON'!L21 -> 17590 | M21: ='DATA CP CON'!M21 -> 17953 | N21: ='DATA CP CON'!N21 -> 18089 | O21: ='DATA CP CON'!O21 -> 18281 | P21: ='DATA CP CON'!P21 -> 18281 | R21: Midlothian | S21: 3.02061123 | T21: 3.714667131 | U21: 2.558271745 | V21: 2.729348855 | W21: 2.70882857 | X21: 2.078660905 | Y21: 1.312838466
A22: Moray | B22: 64 | C22: 79 | D22: 62 | E22: 47 | F22: 31 | G22: 35 | H22: 50 | J22: ='DATA CP CON'!J22 -> 16527 | K22: ='DATA CP CON'!K22 -> 16362 | L22: ='DATA CP CON'!L22 -> 16173 | M22: ='DATA CP CON'!M22 -> 16145 | N22: ='DATA CP CON'!N22 -> 16037 | O22: ='DATA CP CON'!O22 -> 15941 | P22: ='DATA CP CON'!P22 -> 15941 | R22: Moray | S22: 3.872451141 | T22: 4.828260604 | U22: 3.833549743 | V22: 2.911117993 | W22: 1.933029868 | X22: 2.195596261 | Y22: 3.136566087
A23: Na h-Eileanan Siar | B23: 3 | C23: 3 | D23: 4 | E23: 4 | F23: 3 | G23: 5 | H23: 11 | J23: ='DATA CP CON'!J23 -> 4307 | K23: ='DATA CP CON'!K23 -> 4367 | L23: ='DATA CP CON'!L23 -> 4328 | M23: ='DATA CP CON'!M23 -> 4254 | N23: ='DATA CP CON'!N23 -> 4135 | O23: ='DATA CP CON'!O23 -> 4060 | P23: ='DATA CP CON'!P23 -> 4060 | R23: Na h-Eileanan Siar | S23: 0.6965405154 | T23: 0.6869704603 | U23: 0.9242144177 | V23: 0.9402914904 | W23: 0.7255139057 | X23: 1.231527094 | Y23: 2.709359606
A24: North Ayrshire | B24: 68 | C24: 60 | D24: 154 | E24: 104 | F24: 136 | G24: 115 | H24: 93 | J24: ='DATA CP CON'!J24 -> 23128 | K24: ='DATA CP CON'!K24 -> 22901 | L24: ='DATA CP CON'!L24 -> 22780 | M24: ='DATA CP CON'!M24 -> 22468 | N24: ='DATA CP CON'!N24 -> 22280 | O24: ='DATA CP CON'!O24 -> 21891 | P24: ='DATA CP CON'!P24 -> 21891 | R24: North Ayrshire | S24: 2.940159114 | T24: 2.619972927 | U24: 6.760316067 | V24: 4.628805412 | W24: 6.104129264 | X24: 5.253300443 | Y24: 4.248321228
A25: North Lanarkshire | B25: 115 | C25: 131 | D25: 95 | E25: 162 | F25: 118 | G25: 117 | H25: 84 | J25: ='DATA CP CON'!J25 -> 63299 | K25: ='DATA CP CON'!K25 -> 63011 | L25: ='DATA CP CON'!L25 -> 62955 | M25: ='DATA CP CON'!M25 -> 62836 | N25: ='DATA CP CON'!N25 -> 62278 | O25: ='DATA CP CON'!O25 -> 61606 | P25: ='DATA CP CON'!P25 -> 61606 | R25: North Lanarkshire | S25: 1.816774357 | T25: 2.079002079 | U25: 1.509014375 | V25: 2.57813992 | W25: 1.894730081 | X25: 1.899165666 | Y25: 1.363503555
A26: Orkney Islands | B26: 1 | C26: 3 | D26: 5 | E26: 3 | F26: 9 | G26: 3 | H26: 2 | J26: ='DATA CP CON'!J26 -> 3516 | K26: ='DATA CP CON'!K26 -> 3545 | L26: ='DATA CP CON'!L26 -> 3544 | M26: ='DATA CP CON'!M26 -> 3582 | N26: ='DATA CP CON'!N26 -> 3571 | O26: ='DATA CP CON'!O26 -> 3553 | P26: ='DATA CP CON'!P26 -> 3553 | R26: Orkney Islands | S26: 0.2844141069 | T26: 0.8462623413 | U26: 1.410835214 | V26: 0.837520938 | W26: 2.520302436 | X26: 0.8443568815 | Y26: 0.5629045877
A27: Perth and Kinross | B27: 73 | C27: 81 | D27: 75 | E27: 78 | F27: 95 | G27: 66 | H27: 51 | J27: ='DATA CP CON'!J27 -> 24514 | K27: ='DATA CP CON'!K27 -> 24453 | L27: ='DATA CP CON'!L27 -> 24425 | M27: ='DATA CP CON'!M27 -> 24421 | N27: ='DATA CP CON'!N27 -> 24244 | O27: ='DATA CP CON'!O27 -> 24218 | P27: ='DATA CP CON'!P27 -> 24218 | R27: Perth and Kinross | S27: 2.977890185 | T27: 3.312476997 | U27: 3.07062436 | V27: 3.193972401 | W27: 3.918495298 | X27: 2.725245685 | Y27: 2.105871666
A28: Renfrewshire | B28: 72 | C28: 107 | D28: 103 | E28: 83 | F28: 98 | G28: 71 | H28: 78 | J28: ='DATA CP CON'!J28 -> 29954 | K28: ='DATA CP CON'!K28 -> 30039 | L28: ='DATA CP CON'!L28 -> 30171 | M28: ='DATA CP CON'!M28 -> 30267 | N28: ='DATA CP CON'!N28 -> 30182 | O28: ='DATA CP CON'!O28 -> 29784 | P28: ='DATA CP CON'!P28 -> 29784 | R28: Renfrewshire | S28: 2.403685651 | T28: 3.56203602 | U28: 3.41387425 | V28: 2.742260548 | W28: 3.246968392 | X28: 2.383830244 | Y28: 2.618855761
A29: Scottish Borders | B29: 67 | C29: 39 | D29: 50 | E29: 46 | F29: 34 | G29: 34 | H29: 39 | J29: ='DATA CP CON'!J29 -> 19002 | K29: ='DATA CP CON'!K29 -> 19026 | L29: ='DATA CP CON'!L29 -> 19046 | M29: ='DATA CP CON'!M29 -> 19023 | N29: ='DATA CP CON'!N29 -> 18824 | O29: ='DATA CP CON'!O29 -> 18723 | P29: ='DATA CP CON'!P29 -> 18723 | R29: Scottish Borders | S29: 3.525944637 | T29: 2.049826553 | U29: 2.625223144 | V29: 2.418125427 | W29: 1.806204845 | X29: 1.815948299 | Y29: 2.082999519
A30: Shetland Islands | B30: 17 | C30: 3 | D30: 8 | E30: 12 | F30: 9 | G30: 8 | H30: 14 | J30: ='DATA CP CON'!J30 -> 4233 | K30: ='DATA CP CON'!K30 -> 4233 | L30: ='DATA CP CON'!L30 -> 4205 | M30: ='DATA CP CON'!M30 -> 4198 | N30: ='DATA CP CON'!N30 -> 4158 | O30: ='DATA CP CON'!O30 -> 4104 | P30: ='DATA CP CON'!P30 -> 4104 | R30: Shetland Islands | S30: 4.016064257 | T30: 0.7087172218 | U30: 1.902497027 | V30: 2.85850405 | W30: 2.164502165 | X30: 1.949317739 | Y30: 3.411306043
A31: South Ayrshire | B31: 70 | C31: 60 | D31: 44 | E31: 37 | F31: 29 | G31: 19 | H31: 22 | J31: ='DATA CP CON'!J31 -> 17760 | K31: ='DATA CP CON'!K31 -> 17716 | L31: ='DATA CP CON'!L31 -> 17638 | M31: ='DATA CP CON'!M31 -> 17608 | N31: ='DATA CP CON'!N31 -> 17418 | O31: ='DATA CP CON'!O31 -> 17244 | P31: ='DATA CP CON'!P31 -> 17244 | R31: South Ayrshire | S31: 3.941441441 | T31: 3.386769022 | U31: 2.494613902 | V31: 2.101317583 | W31: 1.66494431 | X31: 1.101832521 | Y31: 1.275806077
A32: South Lanarkshire | B32: 162 | C32: 140 | D32: 180 | E32: 116 | F32: 157 | G32: 119 | H32: 106 | J32: ='DATA CP CON'!J32 -> 54876 | K32: ='DATA CP CON'!K32 -> 55151 | L32: ='DATA CP CON'!L32 -> 55260 | M32: ='DATA CP CON'!M32 -> 55649 | N32: ='DATA CP CON'!N32 -> 55550 | O32: ='DATA CP CON'!O32 -> 55700 | P32: ='DATA CP CON'!P32 -> 55700 | R32: South Lanarkshire | S32: 2.952110212 | T32: 2.53848525 | U32: 3.25732899 | V32: 2.084493881 | W32: 2.826282628 | X32: 2.136445242 | Y32: 1.903052065
A33: Stirling | B33: 44 | C33: 47 | D33: 55 | E33: 42 | F33: 53 | G33: 55 | H33: 35 | J33: ='DATA CP CON'!J33 -> 15493 | K33: ='DATA CP CON'!K33 -> 15425 | L33: ='DATA CP CON'!L33 -> 15514 | M33: ='DATA CP CON'!M33 -> 15417 | N33: ='DATA CP CON'!N33 -> 15153 | O33: ='DATA CP CON'!O33 -> 14948 | P33: ='DATA CP CON'!P33 -> 14948 | R33: Stirling | S33: 2.839992255 | T33: 3.047001621 | U33: 3.545184994 | V33: 2.724265421 | W33: 3.49765723 | X33: 3.679421996 | Y33: 2.341450361
A34: West Dunbartonshire | B34: 48 | C34: 71 | D34: 54 | E34: 44 | F34: 67 | G34: 58 | H34: 41 | J34: ='DATA CP CON'!J34 -> 15764 | K34: ='DATA CP CON'!K34 -> 15790 | L34: ='DATA CP CON'!L34 -> 15705 | M34: ='DATA CP CON'!M34 -> 15647 | N34: ='DATA CP CON'!N34 -> 15484 | O34: ='DATA CP CON'!O34 -> 15234 | P34: ='DATA CP CON'!P34 -> 15234 | R34: West Dunbartonshire | S34: 3.044912459 | T34: 4.496516783 | U34: 3.438395415 | V34: 2.812040647 | W34: 4.327047275 | X34: 3.807273205 | Y34: 2.6913483
A35: West Lothian | B35: 67 | C35: 70 | D35: 82 | E35: 104 | F35: 92 | G35: 103 | H35: 92 | J35: ='DATA CP CON'!J35 -> 35307 | K35: ='DATA CP CON'!K35 -> 35443 | L35: ='DATA CP CON'!L35 -> 35485 | M35: ='DATA CP CON'!M35 -> 35494 | N35: ='DATA CP CON'!N35 -> 35242 | O35: ='DATA CP CON'!O35 -> 35133 | P35: ='DATA CP CON'!P35 -> 35133 | R35: West Lothian | S35: 1.897640694 | T35: 1.975002116 | U35: 2.310835564 | V35: 2.930072688 | W35: 2.610521537 | X35: 2.93171662 | Y35: 2.61862067
A36: Scotland | B36: 2715 | C36: 2600 | D36: 2530 | E36: 2580 | F36: 2641 | G36: 2119 | H36: 2031 | J36: ='DATA CP CON'!J36 -> 915917 | K36: ='DATA CP CON'!K36 -> 917442 | L36: ='DATA CP CON'!L36 -> 919502 | M36: ='DATA CP CON'!M36 -> 921397 | N36: ='DATA CP CON'!N36 -> 916783 | O36: ='DATA CP CON'!O36 -> 911522 | P36: ='DATA CP CON'!P36 -> 911522 | R36: Scotland | S36: 2.964242393 | T36: 2.833966616 | U36: 2.751489393 | V36: 2.800095941 | W36: 2.880725319 | X36: 2.324683332 | Y36: 2.228141504
A37: Notes
A38: Figures for 2022 are provisional and may be revised with the publication of 2023 statistics.
A39: Cells containing * represent numbers that are supressed to maintain confidentiality.
A40: Population figures source: NRS mid-year population estimates for 2016-2021
A41: Source: Scottish Government CP Returns

Sheet DATA CP DEREG (hidden)
A1: Child Protection: De-registrations: 31 July 2016-2022
A2: Number of de-registrations: 31 July 2016-2022 | J2: Population Aged 0-15 | R2: Number of de-registrations per 1,000 children: 31 July 2016-2022
A3: Council | B3: 2016 | C3: 2017 | D3: 2018 | E3: 2019 | F3: 2020 | G3: 2021 | H3: 2022 | J3: ='DATA CP CON'!J3 -> 2016 | K3: ='DATA CP CON'!K3 -> 2017 | L3: ='DATA CP CON'!L3 -> 2018 | M3: ='DATA CP CON'!M3 -> 2019 | N3: ='DATA CP CON'!N3 -> 2020 | O3: ='DATA CP CON'!O3 -> 2021 | P3: ='DATA CP CON'!P3 -> 2022 | R3: Council | S3: =B3 -> 2016 | T3: 2017 | U3: 2018 | V3: 2019 | W3: 2020 | X3: 2021 | Y3: 2022
A4: Aberdeen City | B4: 136 | C4: 202 | D4: 162 | E4: 111 | F4: 145 | G4: 200 | H4: 124 | J4: ='DATA CP CON'!J4 -> 34187 | K4: ='DATA CP CON'!K4 -> 34495 | L4: ='DATA CP CON'!L4 -> 34833 | M4: ='DATA CP CON'!M4 -> 35423 | N4: ='DATA CP CON'!N4 -> 35789 | O4: ='DATA CP CON'!O4 -> 35860 | P4: ='DATA CP CON'!P4 -> 35860 | R4: Aberdeen City | S4: =IFERROR(B4*1000/J4,"*") -> 3.978120338 | T4: =IFERROR(C4*1000/K4,"*") -> 5.855921148 | U4: =IFERROR(D4*1000/L4,"*") -> 4.650762208 | V4: =IFERROR(E4*1000/M4,"*") -> 3.133557293 | W4: =IFERROR(F4*1000/N4,"*") -> 4.051524211 | X4: =IFERROR(G4*1000/O4,"*") -> 5.577244841 | Y4: =IFERROR(H4*1000/P4,"*") -> 3.457891801
A5: Aberdeenshire | B5: 135 | C5: 111 | D5: 116 | E5: 116 | F5: 146 | G5: 145 | H5: 104 | J5: ='DATA CP CON'!J5 -> 48871 | K5: ='DATA CP CON'!K5 -> 48888 | L5: ='DATA CP CON'!L5 -> 49033 | M5: ='DATA CP CON'!M5 -> 49016 | N5: ='DATA CP CON'!N5 -> 48674 | O5: ='DATA CP CON'!O5 -> 48578 | P5: ='DATA CP CON'!P5 -> 48578 | R5: Aberdeenshire | S5: 2.762374414 | T5: 2.270495827 | U5: 2.365753676 | V5: 2.36657418 | W5: 2.999548013 | X5: 2.98489028 | Y5: 2.140886821
A6: Angus | B6: 144 | C6: 171 | D6: 141 | E6: 117 | F6: 116 | G6: 84 | H6: 80 | J6: ='DATA CP CON'!J6 -> 19445 | K6: ='DATA CP CON'!K6 -> 19288 | L6: ='DATA CP CON'!L6 -> 19253 | M6: ='DATA CP CON'!M6 -> 19145 | N6: ='DATA CP CON'!N6 -> 18908 | O6: ='DATA CP CON'!O6 -> 18639 | P6: ='DATA CP CON'!P6 -> 18639 | R6: Angus | S6: 7.4055027 | T6: 8.865615927 | U6: 7.323533995 | V6: 6.111256203 | W6: 6.134969325 | X6: 4.506679543 | Y6: 4.292075755
A7: Argyll and Bute | B7: 57 | C7: 82 | D7: 57 | E7: 59 | F7: 46 | G7: 65 | H7: 41 | J7: ='DATA CP CON'!J7 -> 13238 | K7: ='DATA CP CON'!K7 -> 13163 | L7: ='DATA CP CON'!L7 -> 13024 | M7: ='DATA CP CON'!M7 -> 12906 | N7: ='DATA CP CON'!N7 -> 12577 | O7: ='DATA CP CON'!O7 -> 12441 | P7: ='DATA CP CON'!P7 -> 12441 | R7: Argyll & Bute | S7: 4.305786373 | T7: 6.229582922 | U7: 4.376535627 | V7: 4.571517124 | W7: 3.657469985 | X7: 5.224660397 | Y7: 3.29555502
A8: City of Edinburgh | B8: 379 | C8: 354 | D8: 331 | E8: 247 | F8: 205 | G8: 164 | H8: 155 | J8: ='DATA CP CON'!J8 -> 77364 | K8: ='DATA CP CON'!K8 -> 78052 | L8: ='DATA CP CON'!L8 -> 78501 | M8: ='DATA CP CON'!M8 -> 79067 | N8: ='DATA CP CON'!N8 -> 79150 | O8: ='DATA CP CON'!O8 -> 78826 | P8: ='DATA CP CON'!P8 -> 78826 | R8: City of Edinburgh | S8: 4.898919394 | T8: 4.535437913 | U8: 4.216506796 | V8: 3.123932867 | W8: 2.590018951 | X8: 2.080531804 | Y8: 1.966356278
A9: Clackmannanshire | B9: 64 | C9: 38 | D9: 47 | E9: 71 | F9: 54 | G9: 82 | H9: 56 | J9: ='DATA CP CON'!J9 -> 9024 | K9: ='DATA CP CON'!K9 -> 9020 | L9: ='DATA CP CON'!L9 -> 8980 | M9: ='DATA CP CON'!M9 -> 8946 | N9: ='DATA CP CON'!N9 -> 8897 | O9: ='DATA CP CON'!O9 -> 8877 | P9: ='DATA CP CON'!P9 -> 8877 | R9: Clackmannanshire | S9: 7.092198582 | T9: 4.21286031 | U9: 5.233853007 | V9: 7.936507937 | W9: 6.069461616 | X9: 9.237354962 | Y9: 6.308437535
A10: Dumfries and Galloway | B10: 136 | C10: 139 | D10: 176 | E10: 217 | F10: 34 | G10: 53 | H10: 72 | J10: ='DATA CP CON'!J10 -> 23614 | K10: ='DATA CP CON'!K10 -> 23487 | L10: ='DATA CP CON'!L10 -> 23424 | M10: ='DATA CP CON'!M10 -> 23243 | N10: ='DATA CP CON'!N10 -> 23050 | O10: ='DATA CP CON'!O10 -> 22882 | P10: ='DATA CP CON'!P10 -> 22882 | R10: Dumfries and Galloway | S10: 5.759295333 | T10: 5.918167497 | U10: 7.513661202 | V10: 9.336144215 | W10: 1.47505423 | X10: 2.316231099 | Y10: 3.146578096
A11: Dundee City | B11: 143 | C11: 154 | D11: 136 | E11: 153 | F11: 144 | G11: 163 | H11: 129 | J11: ='DATA CP CON'!J11 -> 23849 | K11: ='DATA CP CON'!K11 -> 23998 | L11: ='DATA CP CON'!L11 -> 24016 | M11: ='DATA CP CON'!M11 -> 24044 | N11: ='DATA CP CON'!N11 -> 23958 | O11: ='DATA CP CON'!O11 -> 23704 | P11: ='DATA CP CON'!P11 -> 23704 | R11: Dundee City | S11: 5.996058535 | T11: 6.417201433 | U11: 5.662891406 | V11: 6.363333888 | W11: 6.010518407 | X11: 6.876476544 | Y11: 5.442119474
A12: East Ayrshire | B12: 160 | C12: 120 | D12: 147 | E12: 198 | F12: 180 | G12: 131 | H12: 81 | J12: ='DATA CP CON'!J12 -> 21259 | K12: ='DATA CP CON'!K12 -> 21164 | L12: ='DATA CP CON'!L12 -> 21119 | M12: ='DATA CP CON'!M12 -> 21053 | N12: ='DATA CP CON'!N12 -> 20869 | O12: ='DATA CP CON'!O12 -> 20792 | P12: ='DATA CP CON'!P12 -> 20792 | R12: East Ayrshire | S12: 7.526224187 | T12: 5.67000567 | U12: 6.960556845 | V12: 9.404835415 | W12: 8.6252336 | X12: 6.300500192 | Y12: 3.895729127
A13: East Dunbartonshire | B13: 91 | C13: 73 | D13: 86 | E13: 84 | F13: 65 | G13: 78 | H13: 44 | J13: ='DATA CP CON'!J13 -> 18810 | K13: ='DATA CP CON'!K13 -> 19061 | L13: ='DATA CP CON'!L13 -> 19224 | M13: ='DATA CP CON'!M13 -> 19398 | N13: ='DATA CP CON'!N13 -> 19500 | O13: ='DATA CP CON'!O13 -> 19528 | P13: ='DATA CP CON'!P13 -> 19528 | R13: East Dunbartonshire | S13: 4.837852206 | T13: 3.829809559 | U13: 4.473574698 | V13: 4.330343334 | W13: 3.333333333 | X13: 3.994264646 | Y13: 2.253174928
A14: East Lothian | B14: 45 | C14: 64 | D14: 88 | E14: 64 | F14: 65 | G14: 66 | H14: 61 | J14: ='DATA CP CON'!J14 -> 18989 | K14: ='DATA CP CON'!K14 -> 19051 | L14: ='DATA CP CON'!L14 -> 19350 | M14: ='DATA CP CON'!M14 -> 19700 | N14: ='DATA CP CON'!N14 -> 19701 | O14: ='DATA CP CON'!O14 -> 19822 | P14: ='DATA CP CON'!P14 -> 19822 | R14: East Lothian | S14: 2.369793038 | T14: 3.359403706 | U14: 4.547803618 | V14: 3.248730964 | W14: 3.299324907 | X14: 3.32963374 | Y14: 3.07738876
A15: East Renfrewshire | B15: 50 | C15: 26 | D15: 22 | E15: 20 | F15: 25 | G15: 19 | H15: 23 | J15: ='DATA CP CON'!J15 -> 18662 | K15: ='DATA CP CON'!K15 -> 19029 | L15: ='DATA CP CON'!L15 -> 19322 | M15: ='DATA CP CON'!M15 -> 19525 | N15: ='DATA CP CON'!N15 -> 19646 | O15: ='DATA CP CON'!O15 -> 19701 | P15: ='DATA CP CON'!P15 -> 19701 | R15: East Renfrewshire | S15: 2.679241239 | T15: 1.366335593 | U15: 1.138598489 | V15: 1.024327785 | W15: 1.272523669 | X15: 0.9644180498 | Y15: 1.167453429
A16: Falkirk | B16: 109 | C16: 129 | D16: 91 | E16: 91 | F16: 140 | G16: 165 | H16: 168 | J16: ='DATA CP CON'!J16 -> 28359 | K16: ='DATA CP CON'!K16 -> 28329 | L16: ='DATA CP CON'!L16 -> 28230 | M16: ='DATA CP CON'!M16 -> 28112 | N16: ='DATA CP CON'!N16 -> 27886 | O16: ='DATA CP CON'!O16 -> 27564 | P16: ='DATA CP CON'!P16 -> 27564 | R16: Falkirk | S16: 3.843576995 | T16: 4.553637615 | U16: 3.223521077 | V16: 3.237051793 | W16: 5.020440364 | X16: 5.986068785 | Y16: 6.0949064
A17: Fife | B17: 319 | C17: 299 | D17: 327 | E17: 283 | F17: 350 | G17: 253 | H17: 262 | J17: ='DATA CP CON'!J17 -> 64372 | K17: ='DATA CP CON'!K17 -> 64333 | L17: ='DATA CP CON'!L17 -> 64473 | M17: ='DATA CP CON'!M17 -> 64552 | N17: ='DATA CP CON'!N17 -> 64152 | O17: ='DATA CP CON'!O17 -> 63680 | P17: ='DATA CP CON'!P17 -> 63680 | R17: Fife | S17: 4.955570745 | T17: 4.647692475 | U17: 5.071890559 | V17: 4.384062461 | W17: 5.455792493 | X17: 3.97298995 | Y17: 4.114321608
A18: Glasgow City | B18: 592 | C18: 594 | D18: 508 | E18: 427 | F18: 465 | G18: 488 | J18: ='DATA CP CON'!J18 -> 98487 | K18: ='DATA CP CON'!K18 -> 99137 | L18: ='DATA CP CON'!L18 -> 99938 | M18: ='DATA CP CON'!M18 -> 100666 | N18: ='DATA CP CON'!N18 -> 100478 | O18: ='DATA CP CON'!O18 -> 99881 | P18: ='DATA CP CON'!P18 -> 99881 | R18: Glasgow City | S18: 6.010945607 | T18: 5.991708444 | U18: 5.083151554 | V18: 4.241749945 | W18: 4.62787874 | X18: 4.885814119 | Y18: *
A19: Highland | B19: 143 | C19: 140 | D19: 168 | E19: 141 | F19: 126 | G19: 136 | H19: 137 | J19: ='DATA CP CON'!J19 -> 39972 | K19: ='DATA CP CON'!K19 -> 39555 | L19: ='DATA CP CON'!L19 -> 39335 | M19: ='DATA CP CON'!M19 -> 39036 | N19: ='DATA CP CON'!N19 -> 38490 | O19: ='DATA CP CON'!O19 -> 38130 | P19: ='DATA CP CON'!P19 -> 38130 | R19: Highland | S19: 3.577504253 | T19: 3.539375553 | U19: 4.271005466 | V19: 3.612050415 | W19: 3.273577553 | X19: 3.566745345 | Y19: 3.592971414
A20: Inverclyde | B20: 59 | C20: 53 | D20: 52 | E20: 48 | F20: 84 | G20: 96 | H20: 47 | J20: ='DATA CP CON'!J20 -> 12851 | K20: ='DATA CP CON'!K20 -> 12701 | L20: ='DATA CP CON'!L20 -> 12628 | M20: ='DATA CP CON'!M20 -> 12603 | N20: ='DATA CP CON'!N20 -> 12413 | O20: ='DATA CP CON'!O20 -> 12197 | P20: ='DATA CP CON'!P20 -> 12197 | R20: Inverclyde | S20: 4.591082406 | T20: 4.172899772 | U20: 4.117833386 | V20: 3.808616996 | W20: 6.767099009 | X20: 7.870787899 | Y20: 3.853406575
A21: Midlothian | B21: 77 | C21: 116 | D21: 119 | E21: 108 | F21: 96 | G21: 94 | H21: 72 | J21: ='DATA CP CON'!J21 -> 16884 | K21: ='DATA CP CON'!K21 -> 17229 | L21: ='DATA CP CON'!L21 -> 17590 | M21: ='DATA CP CON'!M21 -> 17953 | N21: ='DATA CP CON'!N21 -> 18089 | O21: ='DATA CP CON'!O21 -> 18281 | P21: ='DATA CP CON'!P21 -> 18281 | R21: Midlothian | S21: 4.56053068 | T21: 6.732834175 | U21: 6.765207504 | V21: 6.015707681 | W21: 5.307092708 | X21: 5.141950659 | Y21: 3.938515399
A22: Moray | B22: 68 | C22: 83 | D22: 103 | E22: 110 | F22: 56 | G22: 42 | H22: 36 | J22: ='DATA CP CON'!J22 -> 16527 | K22: ='DATA CP CON'!K22 -> 16362 | L22: ='DATA CP CON'!L22 -> 16173 | M22: ='DATA CP CON'!M22 -> 16145 | N22: ='DATA CP CON'!N22 -> 16037 | O22: ='DATA CP CON'!O22 -> 15941 | P22: ='DATA CP CON'!P22 -> 15941 | R22: Moray | S22: 4.114479337 | T22: 5.072729495 | U22: 6.36863909 | V22: 6.813254878 | W22: 3.491924924 | X22: 2.634715513 | Y22: 2.258327583
A23: Na h-Eileanan Siar | B23: 4 | C23: 6 | D23: 11 | E23: 6 | F23: 10 | G23: 7 | H23: 9 | J23: ='DATA CP CON'!J23 -> 4307 | K23: ='DATA CP CON'!K23 -> 4367 | L23: ='DATA CP CON'!L23 -> 4328 | M23: ='DATA CP CON'!M23 -> 4254 | N23: ='DATA CP CON'!N23 -> 4135 | O23: ='DATA CP CON'!O23 -> 4060 | P23: ='DATA CP CON'!P23 -> 4060 | R23: Na h-Eileanan Siar | S23: 0.9287206873 | T23: 1.373940921 | U23: 2.541589649 | V23: 1.410437236 | W23: 2.418379686 | X23: 1.724137931 | Y23: 2.216748768
A24: North Ayrshire | B24: 172 | C24: 147 | D24: 178 | E24: 287 | F24: 214 | G24: 263 | H24: 221 | J24: ='DATA CP CON'!J24 -> 23128 | K24: ='DATA CP CON'!K24 -> 22901 | L24: ='DATA CP CON'!L24 -> 22780 | M24: ='DATA CP CON'!M24 -> 22468 | N24: ='DATA CP CON'!N24 -> 22280 | O24: ='DATA CP CON'!O24 -> 21891 | P24: ='DATA CP CON'!P24 -> 21891 | R24: North Ayrshire | S24: 7.436873054 | T24: 6.418933671 | U24: 7.813871817 | V24: 12.77372263 | W24: 9.60502693 | X24: 12.01406971 | Y24: 10.09547303
A25: North Lanarkshire | B25: 224 | C25: 258 | D25: 255 | E25: 215 | F25: 262 | G25: 208 | H25: 202 | J25: ='DATA CP CON'!J25 -> 63299 | K25: ='DATA CP CON'!K25 -> 63011 | L25: ='DATA CP CON'!L25 -> 62955 | M25: ='DATA CP CON'!M25 -> 62836 | N25: ='DATA CP CON'!N25 -> 62278 | O25: ='DATA CP CON'!O25 -> 61606 | P25: ='DATA CP CON'!P25 -> 61606 | R25: North Lanarkshire | S25: 3.538760486 | T25: 4.094523178 | U25: 4.050512271 | V25: 3.421605449 | W25: 4.206943062 | X25: 3.376294517 | Y25: 3.278901406
A26: Orkney Islands | B26: 10 | C26: 14 | D26: 8 | E26: 9 | F26: 6 | G26: 13 | H26: 16 | J26: ='DATA CP CON'!J26 -> 3516 | K26: ='DATA CP CON'!K26 -> 3545 | L26: ='DATA CP CON'!L26 -> 3544 | M26: ='DATA CP CON'!M26 -> 3582 | N26: ='DATA CP CON'!N26 -> 3571 | O26: ='DATA CP CON'!O26 -> 3553 | P26: ='DATA CP CON'!P26 -> 3553 | R26: Orkney Islands | S26: 2.844141069 | T26: 3.94922426 | U26: 2.257336343 | V26: 2.512562814 | W26: 1.680201624 | X26: 3.65887982 | Y26: 4.503236701
A27: Perth and Kinross | B27: 109 | C27: 95 | D27: 115 | E27: 139 | F27: 102 | G27: 118 | H27: 96 | J27: ='DATA CP CON'!J27 -> 24514 | K27: ='DATA CP CON'!K27 -> 24453 | L27: ='DATA CP CON'!L27 -> 24425 | M27: ='DATA CP CON'!M27 -> 24421 | N27: ='DATA CP CON'!N27 -> 24244 | O27: ='DATA CP CON'!O27 -> 24218 | P27: ='DATA CP CON'!P27 -> 24218 | R27: Perth and Kinross | S27: 4.44643877 | T27: 3.885003885 | U27: 4.708290686 | V27: 5.691822612 | W27: 4.20722653 | X27: 4.872408952 | Y27: 3.963993724
A28: Renfrewshire | B28: 146 | C28: 159 | D28: 132 | E28: 180 | F28: 121 | G28: 140 | H28: 114 | J28: ='DATA CP CON'!J28 -> 29954 | K28: ='DATA CP CON'!K28 -> 30039 | L28: ='DATA CP CON'!L28 -> 30171 | M28: ='DATA CP CON'!M28 -> 30267 | N28: ='DATA CP CON'!N28 -> 30182 | O28: ='DATA CP CON'!O28 -> 29784 | P28: ='DATA CP CON'!P28 -> 29784 | R28: Renfrewshire | S28: 4.874140349 | T28: 5.293118945 | U28: 4.375062146 | V28: 5.947071067 | W28: 4.009011994 | X28: 4.700510341 | Y28: 3.827558421
A29: Scottish Borders | B29: 40 | C29: 79 | D29: 64 | E29: 64 | F29: 49 | G29: 59 | H29: 54 | J29: ='DATA CP CON'!J29 -> 19002 | K29: ='DATA CP CON'!K29 -> 19026 | L29: ='DATA CP CON'!L29 -> 19046 | M29: ='DATA CP CON'!M29 -> 19023 | N29: ='DATA CP CON'!N29 -> 18824 | O29: ='DATA CP CON'!O29 -> 18723 | P29: ='DATA CP CON'!P29 -> 18723 | R29: Scottish Borders | S29: 2.105041575 | T29: 4.152212761 | U29: 3.360285624 | V29: 3.36434842 | W29: 2.603059924 | X29: 3.151204401 | Y29: 2.884153181
A30: Shetland Islands | B30: 22 | C30: 27 | D30: 8 | E30: 18 | F30: 14 | G30: 20 | H30: 12 | J30: ='DATA CP CON'!J30 -> 4233 | K30: ='DATA CP CON'!K30 -> 4233 | L30: ='DATA CP CON'!L30 -> 4205 | M30: ='DATA CP CON'!M30 -> 4198 | N30: ='DATA CP CON'!N30 -> 4158 | O30: ='DATA CP CON'!O30 -> 4104 | P30: ='DATA CP CON'!P30 -> 4104 | R30: Shetland Islands | S30: 5.197259627 | T30: 6.378454996 | U30: 1.902497027 | V30: 4.287756074 | W30: 3.367003367 | X30: 4.873294347 | Y30: 2.923976608
A31: South Ayrshire | B31: 72 | C31: 109 | D31: 94 | E31: 84 | F31: 55 | G31: 43 | H31: 31 | J31: ='DATA CP CON'!J31 -> 17760 | K31: ='DATA CP CON'!K31 -> 17716 | L31: ='DATA CP CON'!L31 -> 17638 | M31: ='DATA CP CON'!M31 -> 17608 | N31: ='DATA CP CON'!N31 -> 17418 | O31: ='DATA CP CON'!O31 -> 17244 | P31: ='DATA CP CON'!P31 -> 17244 | R31: South Ayrshire | S31: 4.054054054 | T31: 6.152630391 | U31: 5.329402427 | V31: 4.770558837 | W31: 3.157653003 | X31: 2.49362097 | Y31: 1.797726746
A32: South Lanarkshire | B32: 298 | C32: 273 | D32: 255 | E32: 284 | F32: 239 | G32: 277 | H32: 238 | J32: ='DATA CP CON'!J32 -> 54876 | K32: ='DATA CP CON'!K32 -> 55151 | L32: ='DATA CP CON'!L32 -> 55260 | M32: ='DATA CP CON'!M32 -> 55649 | N32: ='DATA CP CON'!N32 -> 55550 | O32: ='DATA CP CON'!O32 -> 55700 | P32: ='DATA CP CON'!P32 -> 55700 | R32: South Lanarkshire | S32: 5.430424958 | T32: 4.950046237 | U32: 4.614549403 | V32: 5.103416054 | W32: 4.302430243 | X32: 4.973070018 | Y32: 4.272890485
A33: Stirling | B33: 70 | C33: 52 | D33: 80 | E33: 71 | F33: 47 | G33: 72 | H33: 71 | J33: ='DATA CP CON'!J33 -> 15493 | K33: ='DATA CP CON'!K33 -> 15425 | L33: ='DATA CP CON'!L33 -> 15514 | M33: ='DATA CP CON'!M33 -> 15417 | N33: ='DATA CP CON'!N33 -> 15153 | O33: ='DATA CP CON'!O33 -> 14948 | P33: ='DATA CP CON'!P33 -> 14948 | R33: Stirling | S33: 4.518169496 | T33: 3.371150729 | U33: 5.156632719 | V33: 4.605305831 | W33: 3.101696034 | X33: 4.816697886 | Y33: 4.749799304
A34: West Dunbartonshire | B34: 45 | C34: 105 | D34: 112 | E34: 81 | F34: 65 | G34: 89 | H34: 86 | J34: ='DATA CP CON'!J34 -> 15764 | K34: ='DATA CP CON'!K34 -> 15790 | L34: ='DATA CP CON'!L34 -> 15705 | M34: ='DATA CP CON'!M34 -> 15647 | N34: ='DATA CP CON'!N34 -> 15484 | O34: ='DATA CP CON'!O34 -> 15234 | P34: ='DATA CP CON'!P34 -> 15234 | R34: West Dunbartonshire | S34: 2.85460543 | T34: 6.649778341 | U34: 7.131486788 | V34: 5.176711191 | W34: 4.197881684 | X34: 5.84219509 | Y34: 5.645267166
A35: West Lothian | B35: 180 | C35: 134 | D35: 127 | E35: 142 | F35: 176 | G35: 142 | H35: 184 | J35: ='DATA CP CON'!J35 -> 35307 | K35: ='DATA CP CON'!K35 -> 35443 | L35: ='DATA CP CON'!L35 -> 35485 | M35: ='DATA CP CON'!M35 -> 35494 | N35: ='DATA CP CON'!N35 -> 35242 | O35: ='DATA CP CON'!O35 -> 35133 | P35: ='DATA CP CON'!P35 -> 35133 | R35: West Lothian | S35: 5.098139179 | T35: 3.780718336 | U35: 3.578977033 | V35: 4.000676171 | W35: 4.994041201 | X35: 4.041784078 | Y35: 5.23724134
A36: Scotland | B36: 4299 | C36: 4406 | D36: 4316 | E36: 4245 | F36: 3902 | G36: 3975 | H36: 3364 | J36: =SUM(J4:J35) -> 915917 | K36: =SUM(K4:K35) -> 917442 | L36: =SUM(L4:L35) -> 919502 | M36: =SUM(M4:M35) -> 921397 | N36: =SUM(N4:N35) -> 916783 | O36: =SUM(O4:O35) -> 911522 | P36: =SUM(P4:P35) -> 911522 | R36: Scotland | S36: 4.69365674 | T36: 4.802483427 | U36: 4.693845147 | V36: 4.607134601 | W36: 4.256187124 | X36: 4.360838246 | Y36: 3.690530783
A37: Notes
A38: Figures for 2022 are provisional and may be revised with the publication of 2023 statistics.
A39: Cells containing * represent numbers that are supressed to maintain confidentiality.
A40: Population figures source: NRS mid-year population estimates for 2016-2021
A41: Source: Scottish Government CP Returns

Sheet REF EA Name (hidden)
A1: EA Code | B1: EA Name
A3: 100 | B3: Aberdeen City
A4: 110 | B4: Aberdeenshire
A5: 120 | B5: Angus
A6: 130 | B6: Argyll & Bute
A7: 230 | B7: City of Edinburgh
A8: 150 | B8: Clackmannanshire
A9: 170 | B9: Dumfries & Galloway
A10: 180 | B10: Dundee City
A11: 190 | B11: East Ayrshire
A12: 200 | B12: East Dunbartonshire
A13: 210 | B13: East Lothian
A14: 220 | B14: East Renfrewshire
A15: 240 | B15: Falkirk
A16: 250 | B16: Fife
A17: 260 | B17: Glasgow City
A18: 270 | B18: Highland
A19: 280 | B19: Inverclyde
A20: 290 | B20: Midlothian
A21: 300 | B21: Moray
A22: 235 | B22: Na h-Eileanan Siar
A23: 310 | B23: North Ayrshire
A24: 320 | B24: North Lanarkshire
A25: 330 | B25: Orkney Islands
A26: 340 | B26: Perth & Kinross
A27: 350 | B27: Renfrewshire
A28: 355 | B28: Scottish Borders
A29: 360 | B29: Shetland Islands
A30: 370 | B30: South Ayrshire
A31: 380 | B31: South Lanarkshire
A32: 390 | B32: Stirling
A33: 395 | B33: West Dunbartonshire
A34: 400 | B34: West Lothian
B35: [no comparator]

Sheet REF CAS2 (hidden)
A2: 100 | B2: Aberdeen City | C2: City of Edinburgh | D2: **** | E2: Dundee City | F2: *** | G2: South Ayrshire | H2: *** | I2: Argyll and Bute | J2: *** | K2: Renfrewshire | L2: ***
A3: 110 | B3: Aberdeenshire | C3: Stirling | D3: **** | E3: Perth and Kinross | F3: **** | G3: Highland | H3: **** | I3: Scottish Borders | J3: **** | K3: South Lanarkshire | L3: ****
A4: 120 | B4: Angus | C4: Highland | D4: ***** | E4: Dumfries and Galloway | F4: ***** | G4: Moray | H4: ***** | I4: Scottish Borders | J4: **** | K4: South Ayrshire | L4: ****
A5: 130 | B5: Argyll & Bute | C5: South Ayrshire | D5: ***** | E5: Dumfries and Galloway | F5: **** | G5: Scottish Borders | H5: **** | I5: Highland | J5: **** | K5: Angus | L5: ****
A6: 230 | B6: City of Edinburgh | C6: Aberdeen City | D6: **** | E6: Dundee City | F6: ** | G6: South Ayrshire | H6: ** | I6: Argyll and Bute | J6: ** | K6: Renfrewshire | L6: **
A7: 150 | B7: Clackmannanshire | C7: North Lanarkshire | D7: ***** | E7: West Lothian | F7: **** | G7: Falkirk | H7: **** | I7: South Lanarkshire | J7: **** | K7: East Ayrshire | L7: ****
A8: 170 | B8: Dumfries & Galloway | C8: Angus | D8: ***** | E8: Highland | F8: **** | G8: Argyll and Bute | H8: **** | I8: Scottish Borders | J8: **** | K8: Moray | L8: ****
A9: 180 | B9: Dundee City | C9: Aberdeen City | D9: *** | E9: Renfrewshire | F9: *** | G9: Dumfries and Galloway | H9: *** | I9: Inverclyde | J9: *** | K9: South Ayrshire | L9: ***
A10: 190 | B10: East Ayrshire | C10: North Lanarkshire | D10: ***** | E10: Clackmannanshire | F10: **** | G10: Falkirk | H10: **** | I10: North Ayrshire | J10: **** | K10: West Lothian | L10: ****
A11: 200 | B11: East Dunbartonshire | C11: East Renfrewshire | D11: **** | E11: Stirling | F11: **** | G11: East Lothian | H11: **** | I11: Aberdeenshire | J11: *** | K11: Perth and Kinross | L11: ***
A12: 210 | B12: East Lothian | C12: Stirling | D12: **** | E12: Midlothian | F12: **** | G12: Fife | H12: **** | I12: Aberdeenshire | J12: **** | K12: South Lanarkshire | L12: ****
A13: 220 | B13: East Renfrewshire | C13: East Dunbartonshire | D13: **** | E13: East Lothian | F13: **** | G13: Stirling | H13: *** | I13: Aberdeenshire | J13: *** | K13: Midlothian | L13: ***
A14: 240 | B14: Falkirk | C14: South Lanarkshire | D14: **** | E14: Fife | F14: **** | G14: Clackmannanshire | H14: **** | I14: Moray | J14: **** | K14: Angus | L14: ****
A15: 250 | B15: Fife | C15: South Lanarkshire | D15: ***** | E15: Falkirk | F15: **** | G15: Clackmannanshire | H15: **** | I15: West Lothian | J15: **** | K15: Renfrewshire | L15: ****
A16: 260 | B16: Glasgow City | C16: Dundee City | D16: *** | E16: West Dunbartonshire | F16: *** | G16: Inverclyde | H16: *** | I16: Aberdeen City | J16: *** | K16: Renfrewshire | L16: ***
A17: 270 | B17: Highland | C17: Angus | D17: ***** | E17: Scottish Borders | F17: ***** | G17: Dumfries and Galloway | H17: **** | I17: Moray | J17: **** | K17: Argyll and Bute | L17: ****
A18: 280 | B18: Inverclyde | C18: West Dunbartonshire | D18: **** | E18: North Ayrshire | F18: **** | G18: North Lanarkshire | H18: **** | I18: East Ayrshire | J18: **** | K18: Renfrewshire | L18: ****
A19: 290 | B19: Midlothian | C19: West Lothian | D19: **** | E19: Fife | F19: **** | G19: Clackmannanshire | H19: **** | I19: South Lanarkshire | J19: **** | K19: East Lothian | L19: ****
A20: 300 | B20: Moray | C20: Angus | D20: ***** | E20: Highland | F20: **** | G20: Dumfries and Galloway | H20: **** | I20: Falkirk | J20: **** | K20: Scottish Borders | L20: ****
A21: 235 | B21: Na h-Eileanan Siar | C21: Orkney Islands | D21: **** | E21: Dumfries and Galloway | F21: *** | G21: Scottish Borders | H21: *** | I21: Highland | J21: *** | K21: Moray | L21: ***
A22: 310 | B22: North Ayrshire | C22: North Lanarkshire | D22: **** | E22: Inverclyde | F22: **** | G22: Clackmannanshire | H22: **** | I22: West Dunbartonshire | J22: **** | K22: West Lothian | L22: ****
A23: 320 | B23: North Lanarkshire | C23: Clackmannanshire | D23: ***** | E23: East Ayrshire | F23: ***** | G23: Falkirk | H23: **** | I23: West Lothian | J23: **** | K23: North Ayrshire | L23: ****
A24: 330 | B24: Orkney Islands | C24: Scottish Borders | D24: **** | E24: Highland | F24: **** | G24: Na h-Eileanan Siar | H24: **** | I24: Moray | J24: **** | K24: Shetland Islands | L24: ****
A25: 340 | B25: Perth & Kinross | C25: Scottish Borders | D25: **** | E25: Argyll and Bute | F25: **** | G25: Aberdeenshire | H25: **** | I25: Stirling | J25: **** | K25: Highland | L25: ****
A26: 350 | B26: Renfrewshire | C26: Fife | D26: **** | E26: Falkirk | F26: **** | G26: Clackmannanshire | H26: **** | I26: West Dunbartonshire | J26: **** | K26: South Lanarkshire | L26: ****
A27: 355 | B27: Scottish Borders | C27: Highland | D27: ***** | E27: Angus | F27: **** | G27: Dumfries and Galloway | H27: **** | I27: Argyll and Bute | J27: **** | K27: Perth and Kinross | L27: ****
A28: 360 | B28: Shetland Islands | C28: Orkney Islands | D28: **** | E28: Moray | F28: **** | G28: Highland | H28: **** | I28: Scottish Borders | J28: **** | K28: Angus | L28: ***
A29: 370 | B29: South Ayrshire | C29: Argyll and Bute | D29: ***** | E29: Angus | F29: **** | G29: Dumfries and Galloway | H29: **** | I29: Highland | J29: **** | K29: Scottish Borders | L29: ****
A30: 380 | B30: South Lanarkshire | C30: Fife | D30: ***** | E30: Falkirk | F30: **** | G30: West Lothian | H30: **** | I30: Clackmannanshire | J30: **** | K30: North Lanarkshire | L30: ****
A31: 390 | B31: Stirling | C31: Aberdeenshire | D31: **** | E31: Perth and Kinross | F31: **** | G31: East Lothian | H31: **** | I31: South Ayrshire | J31: **** | K31: Fife | L31: ****
A32: 395 | B32: West Dunbartonshire | C32: Inverclyde | D32: **** | E32: Renfrewshire | F32: **** | G32: North Ayrshire | H32: **** | I32: Clackmannanshire | J32: **** | K32: Midlothian | L32: ****
A33: 400 | B33: West Lothian | C33: Clackmannanshire | D33: **** | E33: South Lanarkshire | F33: **** | G33: Midlothian | H33: **** | I33: North Lanarkshire | J33: **** | K33: Fife | L33: ****

Sheet REF CAs (hidden)
A1: 1 | B1: =INDEX($J$1:$K$32,MATCH(C39,$J$1:$J$32,0),2) -> 5 | C1: =INDEX($J$1:$K$32,MATCH(D39,$J$1:$J$32,0),2) -> 8 | D1: =INDEX($J$1:$K$32,MATCH(E39,$J$1:$J$32,0),2) -> 28 | E1: =INDEX($J$1:$K$32,MATCH(F39,$J$1:$J$32,0),2) -> 4 | F1: =INDEX($J$1:$K$32,MATCH(G39,$J$1:$J$32,0),2) -> 25 | I1: Aberdeen City | J1: Aberdeen City | K1: 1
A2: 2 | B2: =INDEX($J$1:$K$32,MATCH(C40,$J$1:$J$32,0),2) -> 30 | C2: 24 | D2: 16 | E2: 26 | F2: 29 | I2: Aberdeenshire | J2: Aberdeenshire | K2: 2
A3: 3 | B3: 16 | C3: 7 | D3: 19 | E3: 26 | F3: 28 | I3: Angus | J3: Angus | K3: 3
A4: 4 | B4: 28 | C4: 7 | D4: 26 | E4: 16 | F4: 3 | I4: Argyll and Bute | J4: Argyll and Bute | K4: 4
A5: 5 | B5: 1 | C5: 8 | D5: 28 | E5: 4 | F5: 25 | I5: Clackmannanshire | J5: City of Edinburgh | K5: 5
A6: 6 | B6: 22 | C6: 32 | D6: 13 | E6: 29 | F6: 9 | I6: Dumfries and Galloway | J6: Clackmannanshire | K6: 6
A7: 7 | B7: 3 | C7: 16 | D7: 4 | E7: 26 | F7: 19 | I7: Dundee City | J7: Dumfries and Galloway | K7: 7
A8: 8 | B8: 1 | C8: 25 | D8: 7 | E8: 17 | F8: 28 | I8: East Ayrshire | J8: Dundee City | K8: 8
A9: 9 | B9: 22 | C9: 6 | D9: 13 | E9: 21 | F9: 32 | I9: East Dunbartonshire | J9: East Ayrshire | K9: 9
A10: 10 | B10: 12 | C10: 30 | D10: 11 | E10: 2 | F10: 24 | I10: East Lothian | J10: East Dunbartonshire | K10: 10
A11: 11 | B11: 30 | C11: 18 | D11: 14 | E11: 2 | F11: 29 | I11: East Renfrewshire | J11: East Lothian | K11: 11
A12: 12 | B12: 10 | C12: 11 | D12: 30 | E12: 2 | F12: 18 | I12: Edinburgh | J12: East Renfrewshire | K12: 12
A13: 13 | B13: 29 | C13: 14 | D13: 6 | E13: 19 | F13: 3 | I13: Eilean Siar | J13: Falkirk | K13: 13
A14: 14 | B14: 29 | C14: 13 | D14: 6 | E14: 32 | F14: 25 | I14: Falkirk | J14: Fife | K14: 14
A15: 15 | B15: 8 | C15: 31 | D15: 17 | E15: 1 | F15: 25 | I15: Fife | J15: Glasgow City | K15: 15
A16: 16 | B16: 3 | C16: 26 | D16: 7 | E16: 19 | F16: 4 | I16: Glasgow City | J16: Highland | K16: 16
A17: 17 | B17: 31 | C17: 21 | D17: 22 | E17: 9 | F17: 25 | I17: Highland | J17: Inverclyde | K17: 17
A18: 18 | B18: =INDEX($J$1:$K$32,MATCH(C56,$J$1:$J$32,0),2) -> 32 | C18: 14 | D18: 6 | E18: 29 | F18: 11 | I18: Inverclyde | J18: Midlothian | K18: 18
A19: 19 | B19: 3 | C19: 16 | D19: 7 | E19: 13 | F19: 26 | I19: Midlothian | J19: Moray | K19: 19
A20: 20 | B20: 23 | C20: 7 | D20: 26 | E20: 16 | F20: 19 | I20: Moray | J20: Na h-Eileanan Siar | K20: 20
A21: 21 | B21: 22 | C21: 17 | D21: 6 | E21: 31 | F21: 32 | I21: North Ayrshire | J21: North Ayrshire | K21: 21
A22: 22 | B22: 6 | C22: 9 | D22: 13 | E22: 32 | F22: 21 | I22: North Lanarkshire | J22: North Lanarkshire | K22: 22
A23: 23 | B23: 26 | C23: 16 | D23: 20 | E23: 19 | F23: 27 | I23: Orkney Islands | J23: Orkney Islands | K23: 23
A24: 24 | B24: 26 | C24: 4 | D24: 2 | E24: 30 | F24: 16 | I24: Perth and Kinross | J24: Perth and Kinross | K24: 24
A25: 25 | B25: 14 | C25: 13 | D25: 6 | E25: 31 | F25: 29 | I25: Renfrewshire | J25: Renfrewshire | K25: 25
A26: 26 | B26: 16 | C26: 3 | D26: 7 | E26: 4 | F26: 24 | I26: Scottish Borders | J26: Scottish Borders | K26: 26
A27: 27 | B27: 23 | C27: 19 | D27: 16 | E27: 26 | F27: 3 | I27: Shetland Islands | J27: Shetland Islands | K27: 27
A28: 28 | B28: 4 | C28: 3 | D28: 7 | E28: 16 | F28: 26 | I28: South Ayrshire | J28: South Ayrshire | K28: 28
A29: 29 | B29: 14 | C29: 13 | D29: 32 | E29: 6 | F29: 22 | I29: South Lanarkshire | J29: South Lanarkshire | K29: 29
A30: 30 | B30: 2 | C30: 24 | D30: 11 | E30: 28 | F30: 14 | I30: Stirling | J30: Stirling | K30: 30
A31: 31 | B31: 17 | C31: 25 | D31: 21 | E31: 6 | F31: 18 | I31: West Dunbartonshire | J31: West Dunbartonshire | K31: 31
A32: 32 | B32: 6 | C32: 29 | D32: 18 | E32: 22 | F32: 14 | I32: West Lothian | J32: West Lothian | K32: 32
A39: 1 | B39: Aberdeen City | C39: City of Edinburgh | D39: Dundee City | E39: South Ayrshire | F39: Argyll and Bute | G39: Renfrewshire
A40: 2 | B40: Aberdeenshire | C40: Stirling | D40: Perth and Kinross | E40: Highland | F40: Scottish Borders | G40: South Lanarkshire
A41: 3 | B41: Angus | C41: Highland | D41: Dumfries and Galloway | E41: Moray | F41: Scottish Borders | G41: South Ayrshire
A42: 4 | B42: Argyll & Bute | C42: South Ayrshire | D42: Dumfries and Galloway | E42: Scottish Borders | F42: Highland | G42: Angus
A43: 5 | B43: City of Edinburgh | C43: Aberdeen City | D43: Dundee City | E43: South Ayrshire | F43: Argyll and Bute | G43: Renfrewshire
A44: 6 | B44: Clackmannanshire | C44: North Lanarkshire | D44: West Lothian | E44: Falkirk | F44: South Lanarkshire | G44: East Ayrshire
A45: 7 | B45: Dumfries & Galloway | C45: Angus | D45: Highland | E45: Argyll and Bute | F45: Scottish Borders | G45: Moray
A46: 8 | B46: Dundee City | C46: Aberdeen City | D46: Renfrewshire | E46: Dumfries and Galloway | F46: Inverclyde | G46: South Ayrshire
A47: 9 | B47: East Ayrshire | C47: North Lanarkshire | D47: Clackmannanshire | E47: Falkirk | F47: North Ayrshire | G47: West Lothian
A48: 10 | B48: East Dunbartonshire | C48: East Renfrewshire | D48: Stirling | E48: East Lothian | F48: Aberdeenshire | G48: Perth and Kinross
A49: 11 | B49: East Lothian | C49: Stirling | D49: Midlothian | E49: Fife | F49: Aberdeenshire | G49: South Lanarkshire
A50: 12 | B50: East Renfrewshire | C50: East Dunbartonshire | D50: East Lothian | E50: Stirling | F50: Aberdeenshire | G50: Midlothian
A51: 13 | B51: Falkirk | C51: South Lanarkshire | D51: Fife | E51: Clackmannanshire | F51: Moray | G51: Angus
A52: 14 | B52: Fife | C52: South Lanarkshire | D52: Falkirk | E52: Clackmannanshire | F52: West Lothian | G52: Renfrewshire
A53: 15 | B53: Glasgow City | C53: Dundee City | D53: West Dunbartonshire | E53: Inverclyde | F53: Aberdeen City | G53: Renfrewshire
A54: 16 | B54: Highland | C54: Angus | D54: Scottish Borders | E54: Dumfries and Galloway | F54: Moray | G54: Argyll and Bute
A55: 17 | B55: Inverclyde | C55: West Dunbartonshire | D55: North Ayrshire | E55: North Lanarkshire | F55: East Ayrshire | G55: Renfrewshire
A56: 18 | B56: Midlothian | C56: West Lothian | D56: Fife | E56: Clackmannanshire | F56: South Lanarkshire | G56: East Lothian
A57: 19 | B57: Moray | C57: Angus | D57: Highland | E57: Dumfries and Galloway | F57: Falkirk | G57: Scottish Borders
A58: 20 | B58: Na h-Eileanan Siar | C58: Orkney Islands | D58: Dumfries and Galloway | E58: Scottish Borders | F58: Highland | G58: Moray
A59: 21 | B59: North Ayrshire | C59: North Lanarkshire | D59: Inverclyde | E59: Clackmannanshire | F59: West Dunbartonshire | G59: West Lothian
A60: 22 | B60: North Lanarkshire | C60: Clackmannanshire | D60: East Ayrshire | E60: Falkirk | F60: West Lothian | G60: North Ayrshire
A61: 23 | B61: Orkney Islands | C61: Scottish Borders | D61: Highland | E61: Na h-Eileanan Siar | F61: Moray | G61: Shetland Islands
A62: 24 | B62: Perth & Kinross | C62: Scottish Borders | D62: Argyll and Bute | E62: Aberdeenshire | F62: Stirling | G62: Highland
A63: 25 | B63: Renfrewshire | C63: Fife | D63: Falkirk | E63: Clackmannanshire | F63: West Dunbartonshire | G63: South Lanarkshire
A64: 26 | B64: Scottish Borders | C64: Highland | D64: Angus | E64: Dumfries and Galloway | F64: Argyll and Bute | G64: Perth and Kinross
A65: 27 | B65: Shetland Islands | C65: Orkney Islands | D65: Moray | E65: Highland | F65: Scottish Borders | G65: Angus
A66: 28 | B66: South Ayrshire | C66: Argyll and Bute | D66: Angus | E66: Dumfries and Galloway | F66: Highland | G66: Scottish Borders
A67: 29 | B67: South Lanarkshire | C67: Fife | D67: Falkirk | E67: West Lothian | F67: Clackmannanshire | G67: North Lanarkshire
A68: 30 | B68: Stirling | C68: Aberdeenshire | D68: Perth and Kinross | E68: East Lothian | F68: South Ayrshire | G68: Fife
A69: 31 | B69: West Dunbartonshire | C69: Inverclyde | D69: Renfrewshire | E69: North Ayrshire | F69: Clackmannanshire | G69: Midlothian
A70: 32 | B70: West Lothian | C70: Clackmannanshire | D70: South Lanarkshire | E70: Midlothian | F70: North Lanarkshire | G70: Fife
